Workbook

Sheet README
B6: Landscape Monetisation Workbook
B8: TAG and VfM references
B9: TAG Unit A3 - Environmental Impact Appraisal
B10: Supplementary VfM Guidance on Landscape Monetisation
B12: Notes
B13: This tool should be used to derive indicative monetary estimates of a scheme's landscape impacts, in accordance with supplementary VfM guidance.
B14: The Landscape Values worksheet provides present value and annual per-hectare values for a range of broad land types to be used for landscape monetisation. Users are advised to check that the selected appraisal year is correct before applying the values in an appraisal.
B15: The Ecosystem Services worksheets - Inputs (ESS), Calculations (ESS) and Outputs (ESS) - should be used to derive indicative monetary estimates of impacts associated with (i) air quality regulation by vegetation and (ii) carbon sequestration.
B16: Users should refer to the supplementary landscape VfM guidance for further details on the scheme information required for the valuation of these services.
B18: Version Control
B19: Date | C19: Description
B20: 2024-11-01 | C20: Forthcoming Change version. Updated default price and discounting base years (2023); updated economic and demographic assumptions in line with TAG Data Book v2.0 FC, Nov 2024.
B21: 2024-11-01 | C21: Updated economic and demographic assumptions in line with TAG Data Book v1.24, Nov 2024; corrected discounting; minor corrections to ESS calculations.
B22: 2024-05-01 | C22: Updated GDP Deflator, GDP per capita and population in line with latest TAG Data book (v1.23, May 2024)
B23: 2023-11-01 | C23: Updated carbon values (incl. market price adjustment), GDP deflator, GDP per capita and population in line with TAG Data Book v1.22.
B24: 2023-05-01 | C24: Updated GDP Deflator, GDP per capita and population in line with latest TAG Data book (v1.21, May 2023)
B25: 2022-11-01 | C25: Updated GDP Deflator, GDP per capita and population in line with latest TAG Data book (v1.20.1, November 2022)
B26: 2022-05-01 | C26: Updated GDP Deflator, GDP per capita and population in line with latest TAG Data book (v1.18, May 2022)
B27: 2021-11-01 | C27: Updated GDP Deflator, GDP per capita and population in line with latest TAG Data book (v1.17, November 2021)
B28: 2021-07-01 | C28: Initial release
B30: Contact
B31: Transport Appraisal and Strategic Modelling (TASM) Division
B32: Department for Transport
B33: Zone 2/25 Great Minster House
B34: 33 Horseferry Road
B35: London
B36: SW1P 4DR
B37: tasm@dft.gov.uk

Sheet Inputs (values)
B3: Appraisal assumptions
C5: Year values
C6: Source: NA
C8: Appraisal year | H8: 2024 | I8: user input
C10: Values base year for published landscape values | H10: 2010
C11: Price base year for published landscape values | H11: 2010
C12: Default price base year | H12: 2023
C13: Default discount base year | H13: 2023
C15: Discount rates
C16: Source: TAG Data Book v2.0 FC (Nov 2024)
C19: Year | H19: STPR
C20: =$H$13-$H$8 -> -1 | H20: 0.035
C21: 31 | H21: 0.03
C22: 76 | H22: 0.025
C23: 126 | H23: 0.02
C24: 201 | H24: 0.015
C25: 301 | H25: 0.01
B28: Published landscape value per land type
C30: Land type £/ha/year (2010 prices)
C31: Source: | E31: DfT supplementary VfM guidance on landscape monetisation (May 2017)
C34: Urban Core (City Park) | H34: 75153
C35: Urban Fringe (Greenbelt) | H35: 1237
C36: Urban Fringe (forested Land) | H36: 3758
C37: Rural (forested amenity land) | H37: 9222
C38: Agricultural land (extensive) | H38: 4384
C39: Agricultural land (intensive) | H39: 143
C40: Natural and semi-natural land (wetlands) | H40: 9208
C43: Land type perpetual present value (2010 prices)
C44: Source: | E44: DfT supplementary VfM guidance on landscape monetisation (May 2017)
C47: Urban Core (City Park) | H47: 15031000
C48: Urban Fringe (Greenbelt) | H48: 247000
C49: Urban Fringe (forested Land) | H49: 752000
C50: Rural (forested amenity land) | H50: 1844000
C51: Agricultural land (extensive) | H51: 877000
C52: Agricultural land (intensive) | H52: 29000
C53: Natural and semi-natural land (wetlands) | H53: 1842000
B56: Key Parameters
C58: Annual parameters
C59: Source: TAG Data Book v2.0 FC (Nov 2024)
H60: Year | DD60: .
H61: 2000 | I61: 2001 | J61: 2002 | K61: 2003 | L61: 2004 | M61: 2005 | N61: 2006 | O61: 2007 | P61: 2008 | Q61: 2009 | R61: 2010 | S61: 2011 | T61: 2012 | U61: 2013 | V61: 2014 | W61: 2015 | X61: 2016 | Y61: 2017 | Z61: 2018 | AA61: 2019 | AB61: 2020 | AC61: 2021 | AD61: 2022 | AE61: 2023 | AF61: 2024 | AG61: 2025 | AH61: 2026 | AI61: 2027 | AJ61: 2028 | AK61: 2029 | AL61: 2030 | AM61: 2031 | AN61: 2032 | AO61: 2033 | AP61: 2034 | AQ61: 2035 | AR61: 2036 | AS61: 2037 | AT61: 2038 | AU61: 2039 | AV61: 2040 | AW61: 2041 | AX61: 2042 | AY61: 2043 | AZ61: 2044 | BA61: 2045 | BB61: 2046 | BC61: 2047 | BD61: 2048 | BE61: 2049 | BF61: 2050 | BG61: 2051 | BH61: 2052 | BI61: 2053 | BJ61: 2054 | BK61: 2055 | BL61: 2056 | BM61: 2057 | BN61: 2058 | BO61: 2059 | BP61: 2060 | BQ61: 2061 | BR61: 2062 | BS61: 2063 | BT61: 2064 | BU61: 2065 | BV61: 2066 | BW61: 2067 | BX61: 2068 | BY61: 2069 | BZ61: 2070 | CA61: 2071 | CB61: 2072 | CC61: 2073 | CD61: 2074 | CE61: 2075 | CF61: 2076 | CG61: 2077 | CH61: 2078 | CI61: 2079 | CJ61: 2080 | CK61: 2081 | CL61: 2082 | CM61: 2083 | CN61: 2084 | CO61: 2085 | CP61: 2086 | CQ61: 2087 | CR61: 2088 | CS61: 2089 | CT61: 2090 | CU61: 2091 | CV61: 2092 | CW61: 2093 | CX61: 2094 | CY61: 2095 | CZ61: 2096 | DA61: 2097 | DB61: 2098 | DC61: 2099 | DD61: 2100 | DE61: 2101 | DF61: 2102 | DG61: 2103 | DH61: 2104 | DI61: 2105 | DJ61: 2106 | DK61: 2107 | DL61: 2108 | DM61: 2109 | DN61: 2110 | DO61: 2111 | DP61: 2112 | DQ61: 2113 | DR61: 2114 | DS61: 2115 | DT61: 2116 | DU61: 2117 | DV61: 2118 | DW61: 2119 | DX61: 2120 | DY61: 2121 | DZ61: 2122 | EA61: 2123 | EB61: 2124 | EC61: 2125 | ED61: 2126 | EE61: 2127 | EF61: 2128 | EG61: 2129 | EH61: 2130 | EI61: 2131 | EJ61: 2132 | EK61: 2133 | EL61: 2134 | EM61: 2135 | EN61: 2136 | EO61: 2137 | EP61: 2138 | EQ61: 2139 | ER61: 2140 | ES61: 2141 | ET61: 2142 | EU61: 2143 | EV61: 2144 | EW61: 2145 | EX61: 2146 | EY61: 2147 | EZ61: 2148 | FA61: 2149 | FB61: 2150 | FC61: 2151 | FD61: 2152 | FE61: 2153 | FF61: 2154 | FG61: 2155 | FH61: 2156 | FI61: 2157 | FJ61: 2158 | FK61: 2159 | FL61: 2160 | FM61: 2161 | FN61: 2162 | FO61: 2163 | FP61: 2164 | FQ61: 2165 | FR61: 2166 | FS61: 2167 | FT61: 2168 | FU61: 2169 | FV61: 2170 | FW61: 2171 | FX61: 2172 | FY61: 2173 | FZ61: 2174 | GA61: 2175 | GB61: 2176 | GC61: 2177 | GD61: 2178 | GE61: 2179 | GF61: 2180 | GG61: 2181 | GH61: 2182 | GI61: 2183 | GJ61: 2184 | GK61: 2185 | GL61: 2186 | GM61: 2187 | GN61: 2188 | GO61: 2189 | GP61: 2190 | GQ61: 2191 | GR61: 2192 | GS61: 2193 | GT61: 2194 | GU61: 2195 | GV61: 2196 | GW61: 2197 | GX61: 2198 | GY61: 2199 | GZ61: 2200 | HA61: 2201 | HB61: 2202 | HC61: 2203 | HD61: 2204 | HE61: 2205 | HF61: 2206 | HG61: 2207 | HH61: 2208 | HI61: 2209 | HJ61: 2210 | HK61: 2211 | HL61: 2212 | HM61: 2213 | HN61: 2214 | HO61: 2215 | HP61: 2216 | HQ61: 2217 | HR61: 2218 | HS61: 2219 | HT61: 2220 | HU61: 2221 | HV61: 2222 | HW61: 2223 | HX61: 2224 | HY61: 2225 | HZ61: 2226 | IA61: 2227 | IB61: 2228 | IC61: 2229 | ID61: 2230 | IE61: 2231 | IF61: 2232 | IG61: 2233 | IH61: 2234 | II61: 2235 | IJ61: 2236 | IK61: 2237 | IL61: 2238 | IM61: 2239 | IN61: 2240 | IO61: 2241 | IP61: 2242 | IQ61: 2243 | IR61: 2244 | IS61: 2245 | IT61: 2246 | IU61: 2247 | IV61: 2248 | IW61: 2249 | IX61: 2250 | IY61: 2251 | IZ61: 2252 | JA61: 2253 | JB61: 2254 | JC61: 2255 | JD61: 2256 | JE61: 2257 | JF61: 2258 | JG61: 2259 | JH61: 2260 | JI61: 2261 | JJ61: 2262 | JK61: 2263 | JL61: 2264 | JM61: 2265 | JN61: 2266 | JO61: 2267 | JP61: 2268 | JQ61: 2269 | JR61: 2270 | JS61: 2271 | JT61: 2272 | JU61: 2273 | JV61: 2274 | JW61: 2275 | JX61: 2276 | JY61: 2277 | JZ61: 2278 | KA61: 2279 | KB61: 2280 | KC61: 2281 | KD61: 2282 | KE61: 2283 | KF61: 2284 | KG61: 2285 | KH61: 2286 | KI61: 2287 | KJ61: 2288 | KK61: 2289 | KL61: 2290 | KM61: 2291 | KN61: 2292 | KO61: 2293 | KP61: 2294 | KQ61: 2295 | KR61: 2296 | KS61: 2297 | KT61: 2298 | KU61: 2299 | KV61: 2300
C62: GDP Deflator | H62: 57.382 | I62: 58.2456 | J62: 59.4795 | K62: 60.9026 | L62: 62.4978 | M62: 64.3325 | N62: 66.1273 | O62: 67.6155 | P62: 69.9348 | Q62: 71.2427 | R62: 72.3693 | S62: 73.9546 | T62: 75.0919 | U62: 76.6803 | V62: 77.6907 | W62: 78.2058 | X62: 79.7401 | Y62: 81.2218 | Z62: 82.7837 | AA62: 84.5341 | AB62: 89.0172 | AC62: 88.7332 | AD62: 93.2927 | AE62: 100 | AF62: 102.8174339 | AG62: 105.393259 | AH62: 107.492155 | AI62: 109.5957024 | AJ62: 111.7512052 | AK62: 113.9568045 | AL62: 116.577811 | AM62: 119.2591007 | AN62: 122.00206 | AO62: 124.8081073 | AP62: 127.6786938 | AQ62: 130.6153038 | AR62: 133.6194558 | AS62: 136.6927032 | AT62: 139.8366354 | AU62: 143.052878 | AV62: 146.3430942 | AW62: 149.7089854 | AX62: 153.1522921 | AY62: 156.6747948 | AZ62: 160.2783151 | BA62: 163.9647163 | BB62: 167.7359048 | BC62: 171.5938306 | BD62: 175.5404887 | BE62: 179.5779199 | BF62: 183.7082121 | BG62: 187.933501 | BH62: 192.2559715 | BI62: 196.6778588 | BJ62: 201.2014496 | BK62: 205.8290829 | BL62: 210.5631518 | BM62: 215.4061043 | BN62: 220.3604447 | BO62: 225.428735 | BP62: 230.6135959 | BQ62: 235.9177086 | BR62: 241.3438159 | BS62: 246.8947236 | BT62: 252.5733023 | BU62: 258.3824882 | BV62: 264.3252855 | BW62: 270.404767 | BX62: 276.6240767 | BY62: 282.9864304 | BZ62: 289.4951183 | CA62: 296.153506 | CB62: 302.9650367 | CC62: 309.9332325 | CD62: 317.0616969 | CE62: 324.3541159 | CF62: 331.8142606 | CG62: 339.4459886 | CH62: 347.2532463 | CI62: 355.240071 | CJ62: 363.4105926 | CK62: 371.7690362 | CL62: 380.3197241 | CM62: 389.0670777 | CN62: 398.0156205 | CO62: 407.1699798 | CP62: 416.5348893 | CQ62: 426.1151918 | CR62: 435.9158412 | CS62: 445.9419055 | CT62: 456.1985693 | CU62: 466.6911364 | CV62: 477.4250326 | CW62: 488.4058083 | CX62: 499.6391419 | CY62: 511.1308422 | CZ62: 522.8868516 | DA62: 534.9132491 | DB62: 547.2162539 | DC62: 559.8022277 | DD62: 572.6776789 | DE62: =DD62*($DD62/$DC62) -> 585.8492656 | DF62: =DE62*($DD62/$DC62) -> 599.3237987 | DG62: =DF62*($DD62/$DC62) -> 613.108246 | DH62: =DG62*($DD62/$DC62) -> 627.2097357 | DI62: 641.6355596 | DJ62: 656.3931775 | DK62: 671.4902206 | DL62: 686.9344956 | DM62: 702.733989 | DN62: 718.8968708 | DO62: 735.4314988 | DP62: 752.3464233 | DQ62: 769.650391 | DR62: 787.35235 | DS62: 805.4614541 | DT62: 823.9870675 | DU62: 842.9387701 | DV62: 862.3263618 | DW62: 882.1598681 | DX62: 902.4495451 | DY62: 923.2058846 | DZ62: 944.4396199 | EA62: 966.1617312 | EB62: 988.383451 | EC62: 1011.11627 | ED62: 1034.371945 | EE62: 1058.162499 | EF62: 1082.500237 | EG62: 1107.397742 | EH62: 1132.86789 | EI62: 1158.923852 | EJ62: 1185.5791 | EK62: 1212.84742 | EL62: 1240.74291 | EM62: 1269.279997 | EN62: 1298.473437 | EO62: 1328.338326 | EP62: 1358.890108 | EQ62: 1390.14458 | ER62: 1422.117906 | ES62: 1454.826617 | ET62: 1488.28763 | EU62: 1522.518245 | EV62: 1557.536165 | EW62: 1593.359497 | EX62: 1630.006765 | EY62: 1667.496921 | EZ62: 1705.84935 | FA62: 1745.083885 | FB62: 1785.220814 | FC62: 1826.280893 | FD62: 1868.285353 | FE62: 1911.255917 | FF62: 1955.214803 | FG62: 2000.184743 | FH62: 2046.188992 | FI62: 2093.251339 | FJ62: 2141.39612 | FK62: 2190.648231 | FL62: 2241.03314 | FM62: 2292.576902 | FN62: 2345.306171 | FO62: 2399.248213 | FP62: 2454.430922 | FQ62: 2510.882833 | FR62: 2568.633138 | FS62: 2627.7117 | FT62: =FS62*($DD62/$DC62) -> 2688.149069 | FU62: 2749.976498 | FV62: 2813.225957 | FW62: 2877.930154 | FX62: 2944.122548 | FY62: 3011.837367 | FZ62: 3081.109626 | GA62: 3151.975147 | GB62: 3224.470576 | GC62: 3298.633399 | GD62: 3374.501967 | GE62: 3452.115512 | GF62: 3531.514169 | GG62: 3612.738995 | GH62: 3695.831992 | GI62: 3780.836128 | GJ62: 3867.795359 | GK62: 3956.754652 | GL62: 4047.760009 | GM62: 4140.858489 | GN62: 4236.098234 | GO62: 4333.528494 | GP62: 4433.199649 | GQ62: 4535.163241 | GR62: 4639.471996 | GS62: 4746.179852 | GT62: 4855.341988 | GU62: 4967.014854 | GV62: 5081.256195 | GW62: 5198.125088 | GX62: 5317.681965 | GY62: 5439.98865 | GZ62: 5565.108389 | HA62: 5693.105882 | HB62: 5824.047317 | HC62: 5958.000406 | HD62: 6095.034415 | HE62: 6235.220207 | HF62: 6378.630271 | HG62: 6525.338768 | HH62: 6675.421559 | HI62: 6828.956255 | HJ62: 6986.022249 | HK62: 7146.700761 | HL62: 7311.074878 | HM62: 7479.2296 | HN62: 7651.251881 | HO62: 7827.230674 | HP62: 8007.25698 | HQ62: 8191.42389 | HR62: 8379.82664 | HS62: 8572.562653 | HT62: 8769.731594 | HU62: 8971.43542 | HV62: 9177.778435 | HW62: 9388.867339 | HX62: 9604.811288 | HY62: 9825.721947 | HZ62: 10051.71355 | IA62: 10282.90296 | IB62: 10519.40973 | IC62: 10761.35616 | ID62: 11008.86735 | IE62: 11262.0713 | IF62: =IE62*($DD62/$DC62) -> 11521.09894 | IG62: 11786.08421 | IH62: 12057.16415 | II62: 12334.47892 | IJ62: 12618.17194 | IK62: 12908.38989 | IL62: 13205.28286 | IM62: 13509.00437 | IN62: 13819.71147 | IO62: 14137.56483 | IP62: 14462.72882 | IQ62: 14795.37159 | IR62: 15135.66513 | IS62: 15483.78543 | IT62: 15839.9125 | IU62: 16204.23048 | IV62: 16576.92778 | IW62: 16958.19712 | IX62: 17348.23566 | IY62: 17747.24508 | IZ62: 18155.43171 | JA62: 18573.00664 | JB62: 19000.1858 | JC62: 19437.19007 | JD62: 19884.24544 | JE62: 20341.58309 | JF62: 20809.4395 | JG62: 21288.0566 | JH62: 21777.68191 | JI62: 22278.56859 | JJ62: 22790.97567 | JK62: 23315.16811 | JL62: 23851.41698 | JM62: 24399.99957 | JN62: 24961.19956 | JO62: 25535.30715 | JP62: 26122.61921 | JQ62: 26723.43945 | JR62: 27338.07856 | JS62: =JR62*($DD62/$DC62) -> 27966.85437 | JT62: =JS62*($DD62/$DC62) -> 28610.09202 | JU62: =JT62*($DD62/$DC62) -> 29268.12413 | JV62: =JU62*($DD62/$DC62) -> 29941.29099 | JW62: =JV62*($DD62/$DC62) -> 30629.94068 | JX62: =JW62*($DD62/$DC62) -> 31334.42932 | JY62: =JX62*($DD62/$DC62) -> 32055.12119 | JZ62: =JY62*($DD62/$DC62) -> 32792.38898 | KA62: =JZ62*($DD62/$DC62) -> 33546.61392 | KB62: =KA62*($DD62/$DC62) -> 34318.18604 | KC62: =KB62*($DD62/$DC62) -> 35107.50432 | KD62: =KC62*($DD62/$DC62) -> 35914.97692 | KE62: =KD62*($DD62/$DC62) -> 36741.02139 | KF62: =KE62*($DD62/$DC62) -> 37586.06488 | KG62: =KF62*($DD62/$DC62) -> 38450.54438 | KH62: =KG62*($DD62/$DC62) -> 39334.9069 | KI62: =KH62*($DD62/$DC62) -> 40239.60976 | KJ62: =KI62*($DD62/$DC62) -> 41165.12078 | KK62: =KJ62*($DD62/$DC62) -> 42111.91856 | KL62: =KK62*($DD62/$DC62) -> 43080.49268 | KM62: =KL62*($DD62/$DC62) -> 44071.34402 | KN62: =KM62*($DD62/$DC62) -> 45084.98493 | KO62: =KN62*($DD62/$DC62) -> 46121.93958 | KP62: =KO62*($DD62/$DC62) -> 47182.74419 | KQ62: =KP62*($DD62/$DC62) -> 48267.94731 | KR62: =KQ62*($DD62/$DC62) -> 49378.1101 | KS62: =KR62*($DD62/$DC62) -> 50513.80663 | KT62: =KS62*($DD62/$DC62) -> 51675.62418 | KU62: =KT62*($DD62/$DC62) -> 52864.16354 | KV62: =KU62*($DD62/$DC62) -> 54080.0393
C63: GDP per capita growth (index) | H63: 124.4814423 | I63: 127.2013639 | J63: 128.9296375 | K63: 132.3821872 | L63: 134.884917 | M63: 137.5173779 | N63: 139.8410818 | O63: 142.3539514 | P63: 140.8731336 | Q63: 133.4294035 | R63: 135.3318267 | S63: 135.7446753 | T63: 136.8776711 | U63: 138.4014164 | V63: 141.7617426 | W63: 143.8659494 | X63: 145.4697576 | Y63: 148.5196128 | Z63: 149.8709094 | AA63: 151.5497831 | AB63: 135.6185641 | AC63: 146.8565943 | AD63: 151.8340584 | AE63: 150.5783474 | AF63: 150.905291 | AG63: 152.9809958 | AH63: 154.9826724 | AI63: 156.5675388 | AJ63: 158.1325665 | AK63: 159.7955341 | AL63: 161.9553218 | AM63: 164.1867139 | AN63: 166.5437059 | AO63: 168.9913446 | AP63: 171.4702952 | AQ63: 173.995186 | AR63: 176.7801237 | AS63: 179.601735 | AT63: 182.435765 | AU63: 185.3485975 | AV63: 188.230676 | AW63: 191.1086824 | AX63: 193.9969539 | AY63: 196.8789679 | AZ63: 199.7496186 | BA63: 202.6656431 | BB63: 205.6481204 | BC63: 208.666073 | BD63: 211.7015517 | BE63: 214.7476248 | BF63: 217.8501244 | BG63: 221.0097553 | BH63: 224.2110939 | BI63: 227.4540402 | BJ63: 230.7263432 | BK63: 234.0273965 | BL63: 237.3578366 | BM63: 240.703009 | BN63: 244.0810281 | BO63: 247.4614715 | BP63: 250.9210684 | BQ63: 254.3859696 | BR63: 257.8443156 | BS63: 261.3191352 | BT63: 264.8485764 | BU63: 268.4414115 | BV63: 272.1035018 | BW63: 275.8832563 | BX63: 279.870424 | BY63: 284.0509573 | BZ63: 288.4480575 | CA63: 292.9741372 | CB63: 297.5538137 | CC63: 302.1930564 | CD63: 306.03545 | CE63: 309.8688476 | CF63: 313.6021899 | CG63: 317.4487305 | CH63: 321.3452374 | CI63: 325.2373577 | CJ63: 329.2225004 | CK63: 333.414471 | CL63: 337.8025157 | CM63: 342.2974065 | CN63: 346.8342614 | CO63: 351.5909585 | CP63: 356.5410476 | CQ63: 361.6436952 | CR63: 366.9096678 | CS63: 372.4303547 | CT63: 377.948489 | CU63: 383.7750123 | CV63: 389.3751691 | CW63: 395.0120299 | CX63: 400.7128532 | CY63: 406.4822799 | CZ63: 412.3257029 | DA63: 418.2471943 | DB63: 424.2461978 | DC63: 430.3222846 | DD63: 436.4737839 | DE63: =DD63*($DD63/$DC63) -> 442.7132195 | DF63: =DE63*($DD63/$DC63) -> 449.0418484 | DG63: 455.4609458 | DH63: 461.9718047 | DI63: 468.575737 | DJ63: 475.2740732 | DK63: 482.0681628 | DL63: 488.9593745 | DM63: 495.9490968 | DN63: 503.0387378 | DO63: 510.229726 | DP63: 517.52351 | DQ63: 524.9215595 | DR63: 532.4253647 | DS63: 540.0364376 | DT63: 547.7563115 | DU63: 555.5865418 | DV63: 563.5287059 | DW63: 571.5844041 | DX63: 579.7552593 | DY63: 588.0429177 | DZ63: 596.449049 | EA63: 604.9753467 | EB63: 613.6235287 | EC63: 622.3953373 | ED63: 631.2925398 | EE63: 640.3169287 | EF63: 649.470322 | EG63: 658.7545641 | EH63: 668.1715253 | EI63: 677.7231029 | EJ63: 687.4112212 | EK63: 697.2378321 | EL63: 707.2049154 | EM63: 717.3144791 | EN63: 727.56856 | EO63: 737.9692241 | EP63: 748.5185666 | EQ63: 759.218713 | ER63: 770.0718191 | ES63: 781.0800714 | ET63: 792.2456877 | EU63: 803.5709176 | EV63: 815.0580428 | EW63: 826.7093776 | EX63: 838.5272693 | EY63: 850.514099 | EZ63: 862.6722816 | FA63: 875.0042666 | FB63: 887.5125385 | FC63: 900.1996174 | FD63: 913.0680594 | FE63: 926.120457 | FF63: 939.3594398 | FG63: 952.7876753 | FH63: 966.4078687 | FI63: 980.2227641 | FJ63: 994.2351448 | FK63: 1008.447834 | FL63: 1022.863695 | FM63: 1037.485632 | FN63: 1052.316591 | FO63: 1067.35956 | FP63: 1082.617569 | FQ63: 1098.093694 | FR63: 1113.791051 | FS63: 1129.712804 | FT63: 1145.862159 | FU63: 1162.242371 | FV63: 1178.85674 | FW63: 1195.708613 | FX63: 1212.801385 | FY63: 1230.1385 | FZ63: 1247.72345 | GA63: 1265.55978 | GB63: 1283.651081 | GC63: 1302.000999 | GD63: 1320.613232 | GE63: 1339.491527 | GF63: 1358.63969 | GG63: 1378.061578 | GH63: 1397.761104 | GI63: 1417.742236 | GJ63: 1438.009001 | GK63: 1458.56548 | GL63: 1479.415817 | GM63: 1500.564212 | GN63: 1522.014924 | GO63: 1543.772277 | GP63: 1565.840654 | GQ63: 1588.2245 | GR63: 1610.928325 | GS63: 1633.956703 | GT63: 1657.314275 | GU63: 1681.005745 | GV63: 1705.035887 | GW63: 1729.409543 | GX63: 1754.131622 | GY63: 1779.207106 | GZ63: 1804.641046 | HA63: 1830.438567 | HB63: 1856.604866 | HC63: 1883.145215 | HD63: 1910.064961 | HE63: 1937.369527 | HF63: 1965.064415 | HG63: 1993.155204 | HH63: 2021.647553 | HI63: 2050.547204 | HJ63: 2079.859977 | HK63: 2109.59178 | HL63: 2139.748602 | HM63: 2170.336518 | HN63: 2201.361692 | HO63: 2232.830373 | HP63: 2264.748903 | HQ63: 2297.123711 | HR63: 2329.96132 | HS63: 2363.268346 | HT63: 2397.051499 | HU63: 2431.317585 | HV63: 2466.073509 | HW63: 2501.326272 | HX63: 2537.082977 | HY63: 2573.350827 | HZ63: 2610.13713 | IA63: 2647.449297 | IB63: 2685.294844 | IC63: 2723.681398 | ID63: 2762.616691 | IE63: 2802.108568 | IF63: 2842.164985 | IG63: 2882.794013 | IH63: 2924.003836 | II63: 2965.802758 | IJ63: 3008.1992 | IK63: 3051.201703 | IL63: 3094.818931 | IM63: 3139.059672 | IN63: 3183.932838 | IO63: 3229.447471 | IP63: 3275.612739 | IQ63: 3322.437945 | IR63: 3369.932522 | IS63: 3418.106038 | IT63: 3466.9682 | IU63: 3516.528851 | IV63: 3566.797976 | IW63: 3617.785703 | IX63: 3669.502305 | IY63: 3721.958201 | IZ63: 3775.163959 | JA63: 3829.130299 | JB63: 3883.868093 | JC63: 3939.388368 | JD63: 3995.702312 | JE63: 4052.821269 | JF63: 4110.756747 | JG63: 4169.520419 | JH63: 4229.124122 | JI63: 4289.579867 | JJ63: 4350.899833 | JK63: 4413.096373 | JL63: 4476.182019 | JM63: 4540.169481 | JN63: 4605.071649 | JO63: 4670.901601 | JP63: 4737.672598 | JQ63: 4805.398093 | JR63: 4874.091731 | JS63: 4943.767351 | JT63: 5014.438991 | JU63: 5086.120889 | JV63: 5158.827486 | JW63: 5232.573432 | JX63: 5307.373583 | JY63: 5383.24301 | JZ63: 5460.196997 | KA63: 5538.251049 | KB63: 5617.420892 | KC63: 5697.722475 | KD63: 5779.171978 | KE63: 5861.785809 | KF63: 5945.580613 | KG63: 6030.573272 | KH63: 6116.780909 | KI63: 6204.220893 | KJ63: 6292.91084 | KK63: 6382.868618 | KL63: 6474.112352 | KM63: 6566.660424 | KN63: 6660.53148 | KO63: 6755.744431 | KP63: 6852.318461 | KQ63: 6950.273027 | KR63: 7049.627862 | KS63: 7150.402985 | KT63: 7252.618698 | KU63: 7356.295595 | KV63: 7461.454563
C64: GDP per capita % change | I64: =(I63-H63)/H63 -> 0.02185001694 | J64: =(J63-I63)/I63 -> 0.01358691072 | K64: 0.02677855756 | L64: 0.01890533635 | M64: 0.01951634739 | N64: 0.01689752956 | O64: 0.01796946623 | P64: -0.01040236523 | Q64: -0.05283995552 | R64: 0.01425790083 | S64: 0.003050639163 | T64: 0.008346521169 | U64: 0.01113216862 | V64: 0.02427956477 | W64: 0.01484326348 | X64: 0.01114793462 | Y64: 0.02096556157 | Z64: 0.009098438504 | AA64: 0.01120213184 | AB64: -0.1051220173 | AC64: 0.08286498399 | AD64: 0.0338933646 | AE64: -0.008270285013 | AF64: 0.002171251932 | AG64: 0.01375501706 | AH64: 0.0130844788 | AI64: 0.01022608739 | AJ64: 0.009995863599 | AK64: 0.01051628773 | AL64: 0.01351594529 | AM64: 0.01377782487 | AN64: 0.01435555881 | AO64: 0.01469667482 | AP64: 0.01466909846 | AQ64: 0.01472494525 | AR64: 0.01600583213 | AS64: 0.01596113432 | AT64: 0.01577952464 | AU64: 0.01596634586 | AV64: 0.01554950229 | AW64: 0.01528978428 | AX64: 0.01511324092 | AY64: 0.01485597529 | AZ64: 0.01458078928 | BA64: 0.01459839819 | BB64: 0.01471624517 | BC64: 0.0146753229 | BD64: 0.01454706399 | BE64: 0.01438852515 | BF64: 0.01444718951 | BG64: 0.01450369108 | BH64: 0.01448505539 | BI64: 0.01446380837 | BJ64: 0.01438665612 | BK64: 0.01430722298 | BL64: 0.01423098394 | BM64: 0.01409337257 | BN64: 0.01403397093 | BO64: 0.01384967712 | BP64: 0.01398034553 | BQ64: 0.01380872972 | BR64: 0.01359487714 | BS64: 0.01347642522 | BT64: 0.01350624859 | BU64: 0.01356561959 | BV64: =(BV63-BU63)/BU63 -> 0.01364204683 | BW64: 0.01389087072 | BX64: 0.01445237298 | BY64: 0.01493738838 | BZ64: 0.01547996991 | CA64: 0.01569114276 | CB64: 0.01563167493 | CC64: 0.01559127303 | CD64: 0.01271502933 | CE64: 0.01252599187 | CF64: 0.01204813721 | CG64: 0.01226566869 | CH64: 0.01227444486 | CI64: 0.01211195879 | CJ64: 0.01225302869 | CK64: 0.01273294082 | CL64: 0.01316093058 | CM64: 0.01330626794 | CN64: 0.01325413159 | CO64: 0.01371461158 | CP64: 0.01407911357 | CQ64: 0.01431152911 | CR64: 0.01456121774 | CS64: 0.0150464473 | CT64: 0.01481655337 | CU64: 0.01541618382 | CV64: 0.01459229121 | CW64: 0.01447668271 | CX64: 0.01443202459 | CY64: 0.01439790774 | CZ64: 0.01437559106 | DA64: 0.0143611988 | DB64: 0.0143432009 | DC64: 0.01432207702 | DD64: 0.01429509822 | DE64: =(DE63-DD63)/DD63 -> 0.01429509822 | DF64: =(DF63-DE63)/DE63 -> 0.01429509822 | DG64: =(DG63-DF63)/DF63 -> 0.01429509822 | DH64: =(DH63-DG63)/DG63 -> 0.01429509822 | DI64: =(DI63-DH63)/DH63 -> 0.01429509822 | DJ64: =(DJ63-DI63)/DI63 -> 0.01429509822 | DK64: =(DK63-DJ63)/DJ63 -> 0.01429509822 | DL64: =(DL63-DK63)/DK63 -> 0.01429509822 | DM64: =(DM63-DL63)/DL63 -> 0.01429509822 | DN64: =(DN63-DM63)/DM63 -> 0.01429509822 | DO64: =(DO63-DN63)/DN63 -> 0.01429509822 | DP64: =(DP63-DO63)/DO63 -> 0.01429509822 | DQ64: =(DQ63-DP63)/DP63 -> 0.01429509822 | DR64: =(DR63-DQ63)/DQ63 -> 0.01429509822 | DS64: =(DS63-DR63)/DR63 -> 0.01429509822 | DT64: =(DT63-DS63)/DS63 -> 0.01429509822 | DU64: =(DU63-DT63)/DT63 -> 0.01429509822 | DV64: =(DV63-DU63)/DU63 -> 0.01429509822 | DW64: =(DW63-DV63)/DV63 -> 0.01429509822 | DX64: =(DX63-DW63)/DW63 -> 0.01429509822 | DY64: =(DY63-DX63)/DX63 -> 0.01429509822 | DZ64: =(DZ63-DY63)/DY63 -> 0.01429509822 | EA64: =(EA63-DZ63)/DZ63 -> 0.01429509822 | EB64: =(EB63-EA63)/EA63 -> 0.01429509822 | EC64: =(EC63-EB63)/EB63 -> 0.01429509822 | ED64: =(ED63-EC63)/EC63 -> 0.01429509822 | EE64: =(EE63-ED63)/ED63 -> 0.01429509822 | EF64: =(EF63-EE63)/EE63 -> 0.01429509822 | EG64: =(EG63-EF63)/EF63 -> 0.01429509822 | EH64: =(EH63-EG63)/EG63 -> 0.01429509822 | EI64: =(EI63-EH63)/EH63 -> 0.01429509822 | EJ64: =(EJ63-EI63)/EI63 -> 0.01429509822 | EK64: =(EK63-EJ63)/EJ63 -> 0.01429509822 | EL64: =(EL63-EK63)/EK63 -> 0.01429509822 | EM64: =(EM63-EL63)/EL63 -> 0.01429509822 | EN64: =(EN63-EM63)/EM63 -> 0.01429509822 | EO64: =(EO63-EN63)/EN63 -> 0.01429509822 | EP64: =(EP63-EO63)/EO63 -> 0.01429509822 | EQ64: =(EQ63-EP63)/EP63 -> 0.01429509822 | ER64: =(ER63-EQ63)/EQ63 -> 0.01429509822 | ES64: =(ES63-ER63)/ER63 -> 0.01429509822 | ET64: =(ET63-ES63)/ES63 -> 0.01429509822 | EU64: =(EU63-ET63)/ET63 -> 0.01429509822 | EV64: =(EV63-EU63)/EU63 -> 0.01429509822 | EW64: =(EW63-EV63)/EV63 -> 0.01429509822 | EX64: =(EX63-EW63)/EW63 -> 0.01429509822 | EY64: =(EY63-EX63)/EX63 -> 0.01429509822 | EZ64: =(EZ63-EY63)/EY63 -> 0.01429509822 | FA64: =(FA63-EZ63)/EZ63 -> 0.01429509822 | FB64: =(FB63-FA63)/FA63 -> 0.01429509822 | FC64: =(FC63-FB63)/FB63 -> 0.01429509822 | FD64: =(FD63-FC63)/FC63 -> 0.01429509822 | FE64: =(FE63-FD63)/FD63 -> 0.01429509822 | FF64: =(FF63-FE63)/FE63 -> 0.01429509822 | FG64: =(FG63-FF63)/FF63 -> 0.01429509822 | FH64: =(FH63-FG63)/FG63 -> 0.01429509822 | FI64: =(FI63-FH63)/FH63 -> 0.01429509822 | FJ64: =(FJ63-FI63)/FI63 -> 0.01429509822 | FK64: =(FK63-FJ63)/FJ63 -> 0.01429509822 | FL64: =(FL63-FK63)/FK63 -> 0.01429509822 | FM64: =(FM63-FL63)/FL63 -> 0.01429509822 | FN64: =(FN63-FM63)/FM63 -> 0.01429509822 | FO64: =(FO63-FN63)/FN63 -> 0.01429509822 | FP64: =(FP63-FO63)/FO63 -> 0.01429509822 | FQ64: =(FQ63-FP63)/FP63 -> 0.01429509822 | FR64: =(FR63-FQ63)/FQ63 -> 0.01429509822 | FS64: =(FS63-FR63)/FR63 -> 0.01429509822 | FT64: =(FT63-FS63)/FS63 -> 0.01429509822 | FU64: =(FU63-FT63)/FT63 -> 0.01429509822 | FV64: =(FV63-FU63)/FU63 -> 0.01429509822 | FW64: =(FW63-FV63)/FV63 -> 0.01429509822 | FX64: =(FX63-FW63)/FW63 -> 0.01429509822 | FY64: =(FY63-FX63)/FX63 -> 0.01429509822 | FZ64: =(FZ63-FY63)/FY63 -> 0.01429509822 | GA64: =(GA63-FZ63)/FZ63 -> 0.01429509822 | GB64: =(GB63-GA63)/GA63 -> 0.01429509822 | GC64: =(GC63-GB63)/GB63 -> 0.01429509822 | GD64: =(GD63-GC63)/GC63 -> 0.01429509822 | GE64: =(GE63-GD63)/GD63 -> 0.01429509822 | GF64: =(GF63-GE63)/GE63 -> 0.01429509822 | GG64: =(GG63-GF63)/GF63 -> 0.01429509822 | GH64: =(GH63-GG63)/GG63 -> 0.01429509822 | GI64: =(GI63-GH63)/GH63 -> 0.01429509822 | GJ64: =(GJ63-GI63)/GI63 -> 0.01429509822 | GK64: =(GK63-GJ63)/GJ63 -> 0.01429509822 | GL64: =(GL63-GK63)/GK63 -> 0.01429509822 | GM64: =(GM63-GL63)/GL63 -> 0.01429509822 | GN64: =(GN63-GM63)/GM63 -> 0.01429509822 | GO64: =(GO63-GN63)/GN63 -> 0.01429509822 | GP64: =(GP63-GO63)/GO63 -> 0.01429509822 | GQ64: =(GQ63-GP63)/GP63 -> 0.01429509822 | GR64: =(GR63-GQ63)/GQ63 -> 0.01429509822 | GS64: =(GS63-GR63)/GR63 -> 0.01429509822 | GT64: =(GT63-GS63)/GS63 -> 0.01429509822 | GU64: =(GU63-GT63)/GT63 -> 0.01429509822 | GV64: =(GV63-GU63)/GU63 -> 0.01429509822 | GW64: =(GW63-GV63)/GV63 -> 0.01429509822 | GX64: =(GX63-GW63)/GW63 -> 0.01429509822 | GY64: =(GY63-GX63)/GX63 -> 0.01429509822 | GZ64: =(GZ63-GY63)/GY63 -> 0.01429509822 | HA64: =(HA63-GZ63)/GZ63 -> 0.01429509822 | HB64: =(HB63-HA63)/HA63 -> 0.01429509822 | HC64: =(HC63-HB63)/HB63 -> 0.01429509822 | HD64: =(HD63-HC63)/HC63 -> 0.01429509822 | HE64: =(HE63-HD63)/HD63 -> 0.01429509822 | HF64: =(HF63-HE63)/HE63 -> 0.01429509822 | HG64: =(HG63-HF63)/HF63 -> 0.01429509822 | HH64: =(HH63-HG63)/HG63 -> 0.01429509822 | HI64: =(HI63-HH63)/HH63 -> 0.01429509822 | HJ64: =(HJ63-HI63)/HI63 -> 0.01429509822 | HK64: =(HK63-HJ63)/HJ63 -> 0.01429509822 | HL64: =(HL63-HK63)/HK63 -> 0.01429509822 | HM64: =(HM63-HL63)/HL63 -> 0.01429509822 | HN64: =(HN63-HM63)/HM63 -> 0.01429509822 | HO64: =(HO63-HN63)/HN63 -> 0.01429509822 | HP64: =(HP63-HO63)/HO63 -> 0.01429509822 | HQ64: =(HQ63-HP63)/HP63 -> 0.01429509822 | HR64: =(HR63-HQ63)/HQ63 -> 0.01429509822 | HS64: =(HS63-HR63)/HR63 -> 0.01429509822 | HT64: =(HT63-HS63)/HS63 -> 0.01429509822 | HU64: =(HU63-HT63)/HT63 -> 0.01429509822 | HV64: =(HV63-HU63)/HU63 -> 0.01429509822 | HW64: =(HW63-HV63)/HV63 -> 0.01429509822 | HX64: =(HX63-HW63)/HW63 -> 0.01429509822 | HY64: =(HY63-HX63)/HX63 -> 0.01429509822 | HZ64: =(HZ63-HY63)/HY63 -> 0.01429509822 | IA64: =(IA63-HZ63)/HZ63 -> 0.01429509822 | IB64: =(IB63-IA63)/IA63 -> 0.01429509822 | IC64: =(IC63-IB63)/IB63 -> 0.01429509822 | ID64: =(ID63-IC63)/IC63 -> 0.01429509822 | IE64: =(IE63-ID63)/ID63 -> 0.01429509822 | IF64: =(IF63-IE63)/IE63 -> 0.01429509822 | IG64: =(IG63-IF63)/IF63 -> 0.01429509822 | IH64: =(IH63-IG63)/IG63 -> 0.01429509822 | II64: =(II63-IH63)/IH63 -> 0.01429509822 | IJ64: =(IJ63-II63)/II63 -> 0.01429509822 | IK64: =(IK63-IJ63)/IJ63 -> 0.01429509822 | IL64: =(IL63-IK63)/IK63 -> 0.01429509822 | IM64: =(IM63-IL63)/IL63 -> 0.01429509822 | IN64: =(IN63-IM63)/IM63 -> 0.01429509822 | IO64: =(IO63-IN63)/IN63 -> 0.01429509822 | IP64: =(IP63-IO63)/IO63 -> 0.01429509822 | IQ64: =(IQ63-IP63)/IP63 -> 0.01429509822 | IR64: =(IR63-IQ63)/IQ63 -> 0.01429509822 | IS64: =(IS63-IR63)/IR63 -> 0.01429509822 | IT64: =(IT63-IS63)/IS63 -> 0.01429509822 | IU64: =(IU63-IT63)/IT63 -> 0.01429509822 | IV64: =(IV63-IU63)/IU63 -> 0.01429509822 | IW64: =(IW63-IV63)/IV63 -> 0.01429509822 | IX64: =(IX63-IW63)/IW63 -> 0.01429509822 | IY64: =(IY63-IX63)/IX63 -> 0.01429509822 | IZ64: =(IZ63-IY63)/IY63 -> 0.01429509822 | JA64: =(JA63-IZ63)/IZ63 -> 0.01429509822 | JB64: =(JB63-JA63)/JA63 -> 0.01429509822 | JC64: =(JC63-JB63)/JB63 -> 0.01429509822 | JD64: =(JD63-JC63)/JC63 -> 0.01429509822 | JE64: =(JE63-JD63)/JD63 -> 0.01429509822 | JF64: =(JF63-JE63)/JE63 -> 0.01429509822 | JG64: =(JG63-JF63)/JF63 -> 0.01429509822 | JH64: =(JH63-JG63)/JG63 -> 0.01429509822 | JI64: =(JI63-JH63)/JH63 -> 0.01429509822 | JJ64: =(JJ63-JI63)/JI63 -> 0.01429509822 | JK64: =(JK63-JJ63)/JJ63 -> 0.01429509822 | JL64: =(JL63-JK63)/JK63 -> 0.01429509822 | JM64: =(JM63-JL63)/JL63 -> 0.01429509822 | JN64: =(JN63-JM63)/JM63 -> 0.01429509822 | JO64: =(JO63-JN63)/JN63 -> 0.01429509822 | JP64: =(JP63-JO63)/JO63 -> 0.01429509822 | JQ64: =(JQ63-JP63)/JP63 -> 0.01429509822 | JR64: =(JR63-JQ63)/JQ63 -> 0.01429509822 | JS64: =(JS63-JR63)/JR63 -> 0.01429509822 | JT64: =(JT63-JS63)/JS63 -> 0.01429509822 | JU64: =(JU63-JT63)/JT63 -> 0.01429509822 | JV64: =(JV63-JU63)/JU63 -> 0.01429509822 | JW64: =(JW63-JV63)/JV63 -> 0.01429509822 | JX64: =(JX63-JW63)/JW63 -> 0.01429509822 | JY64: =(JY63-JX63)/JX63 -> 0.01429509822 | JZ64: =(JZ63-JY63)/JY63 -> 0.01429509822 | KA64: =(KA63-JZ63)/JZ63 -> 0.01429509822 | KB64: =(KB63-KA63)/KA63 -> 0.01429509822 | KC64: =(KC63-KB63)/KB63 -> 0.01429509822 | KD64: =(KD63-KC63)/KC63 -> 0.01429509822 | KE64: =(KE63-KD63)/KD63 -> 0.01429509822 | KF64: =(KF63-KE63)/KE63 -> 0.01429509822 | KG64: =(KG63-KF63)/KF63 -> 0.01429509822 | KH64: =(KH63-KG63)/KG63 -> 0.01429509822 | KI64: =(KI63-KH63)/KH63 -> 0.01429509822 | KJ64: =(KJ63-KI63)/KI63 -> 0.01429509822 | KK64: =(KK63-KJ63)/KJ63 -> 0.01429509822 | KL64: =(KL63-KK63)/KK63 -> 0.01429509822 | KM64: =(KM63-KL63)/KL63 -> 0.01429509822 | KN64: =(KN63-KM63)/KM63 -> 0.01429509822 | KO64: =(KO63-KN63)/KN63 -> 0.01429509822 | KP64: =(KP63-KO63)/KO63 -> 0.01429509822 | KQ64: =(KQ63-KP63)/KP63 -> 0.01429509822 | KR64: =(KR63-KQ63)/KQ63 -> 0.01429509822 | KS64: =(KS63-KR63)/KR63 -> 0.01429509822 | KT64: =(KT63-KS63)/KS63 -> 0.01429509822 | KU64: =(KU63-KT63)/KT63 -> 0.01429509822 | KV64: =(KV63-KU63)/KU63 -> 0.01429509822
C65: Population growth (index) | H65: 102.8802795 | I65: 103.276698 | J65: 103.7181917 | K65: 104.1916576 | L65: 104.7397248 | M65: 105.5484604 | N65: 106.271413 | O65: 107.1309893 | P65: 108.0127539 | Q65: 108.7757152 | R65: 109.6475213 | S65: 110.5658004 | T65: 111.3095436 | U65: 112.0571304 | V65: 112.8971391 | W65: 113.7158332 | X65: 114.6225813 | Y65: 115.2496178 | Z65: 115.8137585 | AA65: 116.4109194 | AB65: 116.6090413 | AC65: 117.0272985 | AD65: 118.1092815 | AE65: 119.2665648 | AF65: 120.3434522 | AG65: 121.0688163 | AH65: 121.684039 | AI65: 122.3178317 | AJ65: 122.953643 | AK65: 123.5854254 | AL65: 124.2005469 | AM65: 124.8001575 | AN65: 125.3847924 | AO65: 125.9545642 | AP65: 126.5099994 | AQ65: 127.0521564 | AR65: 127.5842221 | AS65: 128.1096141 | AT65: 128.6297387 | AU65: 129.1455626 | AV65: 129.6576382 | AW65: 130.1652485 | AX65: 130.667529 | AY65: 131.164402 | AZ65: 131.6555851 | BA65: 132.1385701 | BB65: 132.6104853 | BC65: 133.0704992 | BD65: 133.5178619 | BE65: 133.9517004 | BF65: 134.3717445 | BG65: 134.778292 | BH65: 135.1717674 | BI65: 135.5527354 | BJ65: 135.9223009 | BK65: 136.2822239 | BL65: 136.6343385 | BM65: 136.9806905 | BN65: 137.3226897 | BO65: 137.6620596 | BP65: 138.0005305 | BQ65: 138.3391504 | BR65: 138.6788667 | BS65: 139.0201627 | BT65: 139.3634956 | BU65: 139.7093834 | BV65: 140.0574085 | BW65: 140.4069008 | BX65: 140.757053 | BY65: 141.1067843 | BZ65: 141.4550052 | CA65: 141.8003508 | CB65: 142.1413298 | CC65: 142.4765583 | CD65: 142.804647 | CE65: 143.1244719 | CF65: 143.4349209 | CG65: 143.735277 | CH65: 144.0249738 | CI65: 144.3037532 | CJ65: 144.5715476 | CK65: 144.828752 | CL65: 145.0756625 | CM65: 145.3128975 | CN65: 145.5412677 | CO65: 145.7616424 | CP65: 145.9748862 | CQ65: 146.1820502 | CR65: 146.3841167 | CS65: 146.5820505 | CT65: 146.7767573 | CU65: 146.9690513 | CV65: 147.1596704 | CW65: 147.3491965 | CX65: 147.5380523 | CY65: 147.7265218 | CZ65: 147.9147593 | DA65: 148.10282 | DB65: 148.2907751 | DC65: 148.4785744 | DD65: 148.6662419 | DE65: =DD65*($DD65/$DC65) -> 148.8541467 | DF65: 149.042289 | DG65: 149.2306691 | DH65: 149.4192873 | DI65: 149.6081438 | DJ65: 149.7972391 | DK65: 149.9865734 | DL65: 150.176147 | DM65: 150.3659602 | DN65: 150.5560133 | DO65: 150.7463067 | DP65: 150.9368405 | DQ65: 151.1276152 | DR65: 151.318631 | DS65: 151.5098882 | DT65: 151.7013872 | DU65: 151.8931282 | DV65: 152.0851115 | DW65: 152.2773376 | DX65: 152.4698065 | DY65: 152.6625188 | DZ65: 152.8554746 | EA65: 153.0486743 | EB65: 153.2421182 | EC65: 153.4358066 | ED65: 153.6297398 | EE65: 153.8239181 | EF65: 154.0183419 | EG65: 154.2130114 | EH65: 154.4079269 | EI65: 154.6030888 | EJ65: 154.7984974 | EK65: 154.994153 | EL65: 155.1900559 | EM65: 155.3862063 | EN65: 155.5826047 | EO65: 155.7792513 | EP65: 155.9761465 | EQ65: 156.1732906 | ER65: 156.3706838 | ES65: 156.5683265 | ET65: 156.766219 | EU65: 156.9643616 | EV65: 157.1627547 | EW65: 157.3613986 | EX65: 157.5602935 | EY65: 157.7594398 | EZ65: 157.9588378 | FA65: 158.1584878 | FB65: 158.3583902 | FC65: 158.5585452 | FD65: 158.7589533 | FE65: 158.9596146 | FF65: 159.1605295 | FG65: 159.3616984 | FH65: 159.5631216 | FI65: 159.7647994 | FJ65: 159.966732 | FK65: 160.1689199 | FL65: 160.3713633 | FM65: 160.5740627 | FN65: 160.7770182 | FO65: 160.9802302 | FP65: 161.1836991 | FQ65: =FP65*($DD65/$DC65) -> 161.3874252 | FR65: 161.5914087 | FS65: 161.7956501 | FT65: 162.0001496 | FU65: 162.2049076 | FV65: 162.4099244 | FW65: 162.6152003 | FX65: 162.8207357 | FY65: 163.0265309 | FZ65: 163.2325862 | GA65: 163.4389019 | GB65: 163.6454784 | GC65: 163.852316 | GD65: 164.059415 | GE65: 164.2667758 | GF65: 164.4743986 | GG65: 164.6822839 | GH65: 164.890432 | GI65: 165.0988431 | GJ65: 165.3075177 | GK65: 165.516456 | GL65: 165.7256584 | GM65: 165.9351252 | GN65: 166.1448567 | GO65: 166.3548534 | GP65: 166.5651155 | GQ65: 166.7756433 | GR65: 166.9864372 | GS65: 167.1974976 | GT65: 167.4088247 | GU65: 167.6204189 | GV65: 167.8322806 | GW65: 168.04441 | GX65: 168.2568076 | GY65: 168.4694736 | GZ65: 168.6824084 | HA65: 168.8956124 | HB65: 169.1090858 | HC65: 169.3228291 | HD65: 169.5368425 | HE65: 169.7511264 | HF65: 169.9656811 | HG65: 170.180507 | HH65: 170.3956045 | HI65: 170.6109738 | HJ65: 170.8266154 | HK65: 171.0425295 | HL65: 171.2587165 | HM65: 171.4751767 | HN65: 171.6919106 | HO65: 171.9089183 | HP65: 172.1262004 | HQ65: 172.3437571 | HR65: 172.5615887 | HS65: 172.7796957 | HT65: 172.9980784 | HU65: 173.2167371 | HV65: 173.4356722 | HW65: 173.6548839 | HX65: 173.8743728 | HY65: 174.0941391 | HZ65: 174.3141831 | IA65: 174.5345053 | IB65: 174.7551059 | IC65: =IB65*($DD65/$DC65) -> 174.9759854 | ID65: 175.197144 | IE65: 175.4185822 | IF65: 175.6403002 | IG65: 175.8622985 | IH65: 176.0845774 | II65: 176.3071372 | IJ65: 176.5299784 | IK65: 176.7531012 | IL65: 176.976506 | IM65: 177.2001931 | IN65: 177.424163 | IO65: 177.648416 | IP65: 177.8729524 | IQ65: 178.0977727 | IR65: 178.322877 | IS65: 178.5482659 | IT65: 178.7739397 | IU65: 178.9998987 | IV65: 179.2261433 | IW65: 179.4526739 | IX65: 179.6794908 | IY65: 179.9065944 | IZ65: 180.133985 | JA65: 180.361663 | JB65: 180.5896288 | JC65: 180.8178828 | JD65: 181.0464252 | JE65: 181.2752565 | JF65: 181.504377 | JG65: 181.7337871 | JH65: 181.9634872 | JI65: 182.1934776 | JJ65: 182.4237587 | JK65: 182.6543308 | JL65: 182.8851944 | JM65: 183.1163498 | JN65: 183.3477974 | JO65: 183.5795374 | JP65: 183.8115704 | JQ65: 184.0438967 | JR65: 184.2765166 | JS65: =JR65*($DD65/$DC65) -> 184.5094305 | JT65: =JS65*($DD65/$DC65) -> 184.7426389 | JU65: =JT65*($DD65/$DC65) -> 184.9761419 | JV65: =JU65*($DD65/$DC65) -> 185.2099401 | JW65: =JV65*($DD65/$DC65) -> 185.4440338 | JX65: =JW65*($DD65/$DC65) -> 185.6784234 | JY65: =JX65*($DD65/$DC65) -> 185.9131093 | JZ65: =JY65*($DD65/$DC65) -> 186.1480918 | KA65: =JZ65*($DD65/$DC65) -> 186.3833712 | KB65: =KA65*($DD65/$DC65) -> 186.6189481 | KC65: =KB65*($DD65/$DC65) -> 186.8548227 | KD65: =KC65*($DD65/$DC65) -> 187.0909955 | KE65: =KD65*($DD65/$DC65) -> 187.3274667 | KF65: =KE65*($DD65/$DC65) -> 187.5642368 | KG65: =KF65*($DD65/$DC65) -> 187.8013062 | KH65: =KG65*($DD65/$DC65) -> 188.0386753 | KI65: =KH65*($DD65/$DC65) -> 188.2763443 | KJ65: =KI65*($DD65/$DC65) -> 188.5143138 | KK65: =KJ65*($DD65/$DC65) -> 188.752584 | KL65: =KK65*($DD65/$DC65) -> 188.9911554 | KM65: =KL65*($DD65/$DC65) -> 189.2300284 | KN65: =KM65*($DD65/$DC65) -> 189.4692032 | KO65: =KN65*($DD65/$DC65) -> 189.7086804 | KP65: =KO65*($DD65/$DC65) -> 189.9484602 | KQ65: =KP65*($DD65/$DC65) -> 190.1885431 | KR65: =KQ65*($DD65/$DC65) -> 190.4289295 | KS65: =KR65*($DD65/$DC65) -> 190.6696197 | KT65: =KS65*($DD65/$DC65) -> 190.9106141 | KU65: =KT65*($DD65/$DC65) -> 191.1519131 | KV65: =KU65*($DD65/$DC65) -> 191.3935171
C68: Key assumptions
C69: Sources: Temple, eftec and TRL (2019); Simetrica (2019)
C70: Link to Temple, eftec and TRL (2019)
C71: Link to Simetrica (2019)
H72: Landscape values
H73: Central | I73: Low sensitivity | J73: High sensitivity
C74: Appraisal period | H74: 100 yrs | I74: 60 yrs | J74: 250 yrs
C75: Income elasticity of willingness-to-pay for landscape | H75: 1 | I75: 0.8 | J75: 1.2
C76: Long-term income growth rate (pa) | H76: =$JR$63/$JQ$63-1 -> 0.01429509822 | I76: =$JR$63/$JQ$63-1 -> 0.01429509822 | J76: 0.01429509822 | K76: =C59 -> Source: TAG Data Book v2.0 FC (Nov 2024)
C77: Long term population growth rate (pa) | H77: =$JR$65/$JQ$65-1 -> 0.001263937101 | I77: =$JR$65/$JQ$65-1 -> 0.001263937101 | J77: 0.001263937101 | K77: =C59 -> Source: TAG Data Book v2.0 FC (Nov 2024)
C80: Combined growth factors
H82: Year
H83: 2000 | I83: 2001 | J83: 2002 | K83: 2003 | L83: 2004 | M83: 2005 | N83: 2006 | O83: 2007 | P83: 2008 | Q83: 2009 | R83: 2010 | S83: 2011 | T83: 2012 | U83: 2013 | V83: 2014 | W83: 2015 | X83: 2016 | Y83: 2017 | Z83: 2018 | AA83: 2019 | AB83: 2020 | AC83: 2021 | AD83: 2022 | AE83: 2023 | AF83: 2024 | AG83: 2025 | AH83: 2026 | AI83: 2027 | AJ83: 2028 | AK83: 2029 | AL83: 2030 | AM83: 2031 | AN83: 2032 | AO83: 2033 | AP83: 2034 | AQ83: 2035 | AR83: 2036 | AS83: 2037 | AT83: 2038 | AU83: 2039 | AV83: 2040 | AW83: 2041 | AX83: 2042 | AY83: 2043 | AZ83: 2044 | BA83: 2045 | BB83: 2046 | BC83: 2047 | BD83: 2048 | BE83: 2049 | BF83: 2050 | BG83: 2051 | BH83: 2052 | BI83: 2053 | BJ83: 2054 | BK83: 2055 | BL83: 2056 | BM83: 2057 | BN83: 2058 | BO83: 2059 | BP83: 2060 | BQ83: 2061 | BR83: 2062 | BS83: 2063 | BT83: 2064 | BU83: 2065 | BV83: 2066 | BW83: 2067 | BX83: 2068 | BY83: 2069 | BZ83: 2070 | CA83: 2071 | CB83: 2072 | CC83: 2073 | CD83: 2074 | CE83: 2075 | CF83: 2076 | CG83: 2077 | CH83: 2078 | CI83: 2079 | CJ83: 2080 | CK83: 2081 | CL83: 2082 | CM83: 2083 | CN83: 2084 | CO83: 2085 | CP83: 2086 | CQ83: 2087 | CR83: 2088 | CS83: 2089 | CT83: 2090 | CU83: 2091 | CV83: 2092 | CW83: 2093 | CX83: 2094 | CY83: 2095 | CZ83: 2096 | DA83: 2097 | DB83: 2098 | DC83: 2099 | DD83: 2100 | DE83: 2101 | DF83: 2102 | DG83: 2103 | DH83: 2104 | DI83: 2105 | DJ83: 2106 | DK83: 2107 | DL83: 2108 | DM83: 2109 | DN83: 2110 | DO83: 2111 | DP83: 2112 | DQ83: 2113 | DR83: 2114 | DS83: 2115 | DT83: 2116 | DU83: 2117 | DV83: 2118 | DW83: 2119 | DX83: 2120 | DY83: 2121 | DZ83: 2122 | EA83: 2123 | EB83: 2124 | EC83: 2125 | ED83: 2126 | EE83: 2127 | EF83: 2128 | EG83: 2129 | EH83: 2130 | EI83: 2131 | EJ83: 2132 | EK83: 2133 | EL83: 2134 | EM83: 2135 | EN83: 2136 | EO83: 2137 | EP83: 2138 | EQ83: 2139 | ER83: 2140 | ES83: 2141 | ET83: 2142 | EU83: 2143 | EV83: 2144 | EW83: 2145 | EX83: 2146 | EY83: 2147 | EZ83: 2148 | FA83: 2149 | FB83: 2150 | FC83: 2151 | FD83: 2152 | FE83: 2153 | FF83: 2154 | FG83: 2155 | FH83: 2156 | FI83: 2157 | FJ83: 2158 | FK83: 2159 | FL83: 2160 | FM83: 2161 | FN83: 2162 | FO83: 2163 | FP83: 2164 | FQ83: 2165 | FR83: 2166 | FS83: 2167 | FT83: 2168 | FU83: 2169 | FV83: 2170 | FW83: 2171 | FX83: 2172 | FY83: 2173 | FZ83: 2174 | GA83: 2175 | GB83: 2176 | GC83: 2177 | GD83: 2178 | GE83: 2179 | GF83: 2180 | GG83: 2181 | GH83: 2182 | GI83: 2183 | GJ83: 2184 | GK83: 2185 | GL83: 2186 | GM83: 2187 | GN83: 2188 | GO83: 2189 | GP83: 2190 | GQ83: 2191 | GR83: 2192 | GS83: 2193 | GT83: 2194 | GU83: 2195 | GV83: 2196 | GW83: 2197 | GX83: 2198 | GY83: 2199 | GZ83: 2200 | HA83: 2201 | HB83: 2202 | HC83: 2203 | HD83: 2204 | HE83: 2205 | HF83: 2206 | HG83: 2207 | HH83: 2208 | HI83: 2209 | HJ83: 2210 | HK83: 2211 | HL83: 2212 | HM83: 2213 | HN83: 2214 | HO83: 2215 | HP83: 2216 | HQ83: 2217 | HR83: 2218 | HS83: 2219 | HT83: 2220 | HU83: 2221 | HV83: 2222 | HW83: 2223 | HX83: 2224 | HY83: 2225 | HZ83: 2226 | IA83: 2227 | IB83: 2228 | IC83: 2229 | ID83: 2230 | IE83: 2231 | IF83: 2232 | IG83: 2233 | IH83: 2234 | II83: 2235 | IJ83: 2236 | IK83: 2237 | IL83: 2238 | IM83: 2239 | IN83: 2240 | IO83: 2241 | IP83: 2242 | IQ83: 2243 | IR83: 2244 | IS83: 2245 | IT83: 2246 | IU83: 2247 | IV83: 2248 | IW83: 2249 | IX83: 2250 | IY83: 2251 | IZ83: 2252 | JA83: 2253 | JB83: 2254 | JC83: 2255 | JD83: 2256 | JE83: 2257 | JF83: 2258 | JG83: 2259 | JH83: 2260 | JI83: 2261 | JJ83: 2262 | JK83: 2263 | JL83: 2264 | JM83: 2265 | JN83: 2266 | JO83: 2267 | JP83: 2268 | JQ83: 2269 | JR83: 2270 | JS83: 2271 | JT83: 2272 | JU83: 2273 | JV83: 2274 | JW83: 2275 | JX83: 2276 | JY83: 2277 | JZ83: 2278 | KA83: 2279 | KB83: 2280 | KC83: 2281 | KD83: 2282 | KE83: 2283 | KF83: 2284 | KG83: 2285 | KH83: 2286 | KI83: 2287 | KJ83: 2288 | KK83: 2289 | KL83: 2290 | KM83: 2291 | KN83: 2292 | KO83: 2293 | KP83: 2294 | KQ83: 2295 | KR83: 2296 | KS83: 2297 | KT83: 2298 | KU83: 2299 | KV83: 2300
C84: Central values | H84: =(H$63/$H$63)^$H$75*(H$65/$H$65) -> 1 | I84: 1.025787411 | J84: 1.044169374 | K84: 1.07702492 | L84: 1.103158893 | M84: 1.133372676 | N84: 1.16041807 | O84: 1.190824867 | P84: 1.188136854 | Q84: 1.133304844 | R84: 1.15867601 | S84: 1.171944027 | T84: 1.189674799 | U84: 1.210997605 | V84: 1.249698454 | W84: 1.277444988 | X84: 1.301985516 | Y84: 1.336554139 | Z84: 1.35531658 | AA84: 1.377565606 | AB84: 1.234851176 | AC84: 1.341973331 | AD84: 1.400285143 | AE84: 1.402311481 | AF84: 1.418045564 | AG84: 1.44621557 | AH84: 1.472583787 | AI84: 1.495390961 | AJ84: 1.518189465 | AK84: 1.542038253 | AL84: 1.57065928 | AM84: 1.599986791 | AN84: 1.630558341 | AO84: 1.662040583 | AP84: 1.69385801 | AQ84: 1.726165872 | AR84: 1.761139088 | AS84: 1.796616995 | AT84: 1.832376117 | AU84: 1.869097883 | AV84: 1.905687833 | AW84: 1.942400239 | AX84: 1.979364798 | AY84: 2.016408691 | AZ84: 2.053470646 | BA84: 2.09109126 | BB84: 2.129442226 | BC84: 2.168187728 | BD84: 2.207123645 | BE84: 2.246155676 | BF84: 2.285751538 | BG84: 2.325919315 | BH84: 2.366499096 | BI84: 2.407493893 | BJ84: 2.448787804 | BK84: 2.490400334 | BL84: 2.532367239 | BM84: 2.574566556 | BN84: 2.617216069 | BO84: 2.660021254 | BP84: 2.703840923 | BQ84: 2.747903717 | BR84: 2.792100833 | BS84: 2.836692481 | BT84: =(BT$63/$H$63)^$H$75*(BT$65/$H$65) -> 2.882105849 | BU84: 2.928453567 | BV84: 2.975798155 | BW84: 3.024663389 | BX84: 3.07602899 | BY84: 3.129733834 | BZ84: 3.186025083 | CA84: 3.24391781 | CB84: 3.302548072 | CC84: 3.361949221 | CD84: 3.412536689 | CE84: 3.463020536 | CF84: 3.512345567 | CG84: 3.562871982 | CH84: 3.613873327 | CI84: 3.664724266 | CJ84: 3.71651245 | CK84: 3.770530746 | CL84: 3.826667209 | CM84: 3.883926692 | CN84: 3.941589552 | CO84: 4.001697025 | CP84: 4.063974126 | CQ84: 4.127985847 | CR84: 4.193883524 | CS84: 4.262742668 | CT84: 4.331647973 | CU84: 4.404187885 | CV84: 4.47425067 | CW84: 4.54486876 | CX84: 4.616369593 | CY84: 4.688817651 | CZ84: 4.762282693 | DA84: 4.836816565 | DB84: 4.912418373 | DC84: 4.989084719 | DD84: 5.066800208 | DE84: 5.145726279 | DF84: 5.225881789 | DG84: 5.30728589 | DH84: 5.389958032 | DI84: 5.473917965 | DJ84: 5.559185752 | DK84: 5.645781763 | DL84: 5.733726689 | DM84: 5.823041543 | DN84: 5.913747663 | DO84: 6.005866722 | DP84: 6.099420729 | DQ84: 6.194432037 | DR84: 6.290923345 | DS84: 6.388917709 | DT84: 6.488438541 | DU84: 6.589509619 | DV84: 6.692155092 | DW84: 6.796399484 | DX84: 6.902267702 | DY84: 7.009785039 | DZ84: 7.118977186 | EA84: 7.22987023 | EB84: 7.342490666 | EC84: 7.456865403 | ED84: 7.573021766 | EE84: 7.690987509 | EF84: =(EF$63/$H$63)^$H$75*(EF$65/$H$65) -> 7.810790817 | EG84: 7.932460314 | EH84: 8.056025068 | EI84: 8.181514604 | EJ84: 8.308958903 | EK84: 8.438388415 | EL84: 8.569834064 | EM84: 8.703327256 | EN84: 8.838899884 | EO84: 8.976584342 | EP84: 9.116413525 | EQ84: 9.258420841 | ER84: 9.40264022 | ES84: 9.549106119 | ET84: 9.697853533 | EU84: 9.848918 | EV84: 10.00233561 | EW84: 10.15814303 | EX84: 10.31637748 | EY84: 10.47707675 | EZ84: 10.64027926 | FA84: 10.80602399 | FB84: 10.97435055 | FC84: 11.14529914 | FD84: 11.31891062 | FE84: 11.49522646 | FF84: 11.67428879 | FG84: 11.85614039 | FH84: 12.04082472 | FI84: 12.22838589 | FJ84: 12.41886872 | FK84: 12.61231872 | FL84: 12.80878212 | FM84: 13.00830584 | FN84: 13.21093757 | FO84: 13.41672571 | FP84: 13.62571943 | FQ84: 13.83796867 | FR84: 14.05352414 | FS84: 14.27243734 | FT84: 14.49476057 | FU84: 14.72054696 | FV84: 14.94985044 | FW84: 15.18272581 | FX84: 15.4192287 | FY84: 15.65941562 | FZ84: 15.90334395 | GA84: 16.15107199 | GB84: 16.40265891 | GC84: 16.65816482 | GD84: 16.91765078 | GE84: 17.18117877 | GF84: 17.44881177 | GG84: 17.72061372 | GH84: 17.99664955 | GI84: 18.27698522 | GJ84: 18.56168771 | GK84: 18.85082504 | GL84: 19.14446629 | GM84: 19.44268162 | GN84: 19.74554228 | GO84: 20.05312064 | GP84: 20.36549017 | GQ84: 20.68272552 | GR84: =(GR$63/$H$63)^$H$75*(GR$65/$H$65) -> 21.00490247 | GS84: 21.33209801 | GT84: 21.66439031 | GU84: 22.00185875 | GV84: 22.34458398 | GW84: 22.69264788 | GX84: 23.0461336 | GY84: 23.40512561 | GZ84: 23.76970967 | HA84: 24.1399729 | HB84: 24.51600375 | HC84: 24.89789208 | HD84: 25.28572912 | HE84: 25.67960754 | HF84: 26.07962144 | HG84: 26.4858664 | HH84: 26.89843948 | HI84: 27.31743925 | HJ84: 27.74296583 | HK84: 28.17512088 | HL84: 28.61400765 | HM84: 29.059731 | HN84: 29.51239744 | HO84: 29.97211511 | HP84: 30.43899384 | HQ84: 30.9131452 | HR84: 31.39468246 | HS84: 31.88372067 | HT84: 32.38037669 | HU84: 32.88476916 | HV84: 33.39701861 | HW84: 33.91724743 | HX84: 34.4455799 | HY84: 34.98214226 | HZ84: 35.52706271 | IA84: 36.08047144 | IB84: 36.64250067 | IC84: 37.21328469 | ID84: 37.79295988 | IE84: 38.38166472 | IF84: 38.97953988 | IG84: 39.58672821 | IH84: 40.20337477 | II84: 40.82962689 | IJ84: 41.46563421 | IK84: 42.11154869 | IL84: 42.76752464 | IM84: 43.43371879 | IN84: 44.11029032 | IO84: 44.79740087 | IP84: 45.49521462 | IQ84: 46.20389828 | IR84: 46.92362119 | IS84: 47.65455529 | IT84: 48.39687522 | IU84: 49.15075835 | IV84: 49.9163848 | IW84: 50.69393749 | IX84: 51.48360219 | IY84: 52.28556759 | IZ84: 53.10002528 | JA84: 53.92716987 | JB84: 54.76719897 | JC84: 55.62031329 | JD84: =(JD$63/$H$63)^$H$75*(JD$65/$H$65) -> 56.48671667 | JE84: 57.36661609 | JF84: 58.26022181 | JG84: 59.16774731 | JH84: 60.08940943 | JI84: 61.02542837 | JJ84: 61.97602778 | JK84: 62.94143477 | JL84: 63.92188001 | JM84: 64.91759775 | JN84: 65.92882588 | JO84: 66.95580602 | JP84: 67.99878354 | JQ84: 69.05800762 | JR84: 70.13373135 | JS84: =(JS$63/$H$63)^$H$75*(JS$65/$H$65) -> 71.22621173 | JT84: 72.3357098 | JU84: 73.46249063 | JV84: 74.60682345 | JW84: 75.76898165 | JX84: 76.94924292 | JY84: 78.14788923 | JZ84: 79.36520698 | KA84: 80.60148702 | KB84: 81.85702472 | KC84: 83.13212006 | KD84: 84.42707769 | KE84: 85.74220701 | KF84: 87.07782224 | KG84: 88.43424248 | KH84: 89.81179182 | KI84: 91.21079939 | KJ84: 92.63159945 | KK84: 94.07453145 | KL84: 95.53994016 | KM84: 97.02817569 | KN84: 98.53959361 | KO84: 100.0745551 | KP84: 101.6334267 | KQ84: 103.2165811 | KR84: 104.8243965 | KS84: 106.457257 | KT84: 108.1155527 | KU84: 109.7996798 | KV84: 111.5100408
C85: Low sensitivity | H85: =(H$63/$H$63)^$I$75*(H$65/$H$65) -> 1 | I85: 1.021362559 | J85: 1.036862866 | K85: 1.063850897 | L85: 1.085591202 | M85: 1.111020683 | N85: 1.133726897 | O85: 1.159297534 | P85: 1.159102265 | Q85: 1.117679688 | R85: 1.13947014 | S85: 1.151816331 | T85: 1.167300477 | U85: 1.185594291 | V85: 1.217627215 | W85: 1.240999269 | X85: 1.262038292 | Y85: 1.290181219 | Z85: 1.305924907 | AA85: 1.32440908 | AB85: 1.213868701 | AC85: 1.298333063 | AD85: 1.345747442 | AE85: 1.349935153 | AF85: 1.364489551 | AG85: 1.387798643 | AH85: 1.409432585 | AI85: 1.428352268 | AJ85: 1.447246913 | AK85: 1.466908895 | AL85: 1.490128984 | AM85: 1.51380424 | AN85: 1.538337475 | AO85: 1.563470366 | AP85: 1.588766762 | AQ85: 1.614343694 | AR85: 1.641828885 | AS85: 1.669607244 | AT85: 1.697514718 | AU85: 1.726056895 | AV85: 1.754424175 | AW85: 1.782803842 | AX85: 1.811289137 | AY85: 1.839753416 | AZ85: 1.868152088 | BA85: 1.896871376 | BB85: 1.926024623 | BC85: 1.955363192 | BD85: 1.984736138 | BE85: 2.014072508 | BF85: 2.043705814 | BG85: 2.073639604 | BH85: 2.103758316 | BI85: 2.134063733 | BJ85: 2.164475326 | BK85: 2.195011238 | BL85: 2.225701373 | BM85: 2.256465729 | BN85: 2.287460985 | BO85: 2.318486177 | BP85: 2.350144866 | BQ85: 2.381901528 | BR85: 2.413684537 | BS85: 2.445676088 | BT85: =(BT$63/$H$63)^$I$75*(BT$65/$H$65) -> 2.478171286 | BU85: 2.511246601 | BV85: 2.544940108 | BW85: 2.579603178 | BX85: 2.615892817 | BY85: 2.653683204 | BZ85: 2.693125482 | CA85: 2.733536691 | CB85: 2.774322641 | CC85: 2.815497692 | CD85: 2.850650039 | CE85: 2.885628415 | CF85: 2.919727652 | CG85: 2.954516511 | CH85: 2.98950631 | CI85: 3.024281002 | CJ85: 3.05955745 | CK85: 3.096182273 | CL85: 3.134072519 | CM85: 3.172570084 | CN85: 3.211204191 | CO85: 3.251304066 | CP85: 3.292683212 | CQ85: 3.335054553 | CR85: 3.378511923 | CS85: 3.423741951 | CT85: 3.468866247 | CU85: 3.516182608 | CV85: 3.561784041 | CW85: 3.607615172 | CX85: 3.653884705 | CY85: 3.700632359 | CZ85: 3.747900155 | DA85: 3.795717938 | DB85: 3.844082303 | DC85: 3.892987719 | DD85: 3.942421634 | DE85: 3.99248327 | DF85: 4.043180598 | DG85: 4.094521692 | DH85: 4.146514724 | DI85: 4.199167974 | DJ85: 4.252489825 | DK85: 4.306488767 | DL85: 4.361173399 | DM85: 4.416552426 | DN85: 4.472634667 | DO85: 4.529429052 | DP85: 4.586944622 | DQ85: 4.645190537 | DR85: 4.704176069 | DS85: 4.763910611 | DT85: 4.824403674 | DU85: 4.88566489 | DV85: 4.947704012 | DW85: 5.010530919 | DX85: 5.074155615 | DY85: 5.138588229 | DZ85: 5.203839021 | EA85: 5.269918381 | EB85: 5.336836829 | EC85: 5.40460502 | ED85: 5.473233745 | EE85: 5.542733931 | EF85: =(EF$63/$H$63)^$I$75*(EF$65/$H$65) -> 5.613116644 | EG85: 5.68439309 | EH85: 5.756574618 | EI85: 5.829672722 | EJ85: 5.903699039 | EK85: 5.978665357 | EL85: 6.054583612 | EM85: 6.131465892 | EN85: 6.209324437 | EO85: 6.288171646 | EP85: 6.368020072 | EQ85: 6.448882428 | ER85: 6.530771591 | ES85: 6.613700598 | ET85: 6.697682654 | EU85: 6.78273113 | EV85: 6.868859568 | EW85: 6.956081682 | EX85: 7.044411359 | EY85: 7.133862664 | EZ85: 7.224449839 | FA85: 7.316187307 | FB85: 7.409089676 | FC85: 7.503171737 | FD85: 7.59844847 | FE85: 7.694935045 | FF85: 7.792646826 | FG85: 7.89159937 | FH85: 7.991808433 | FI85: 8.09328997 | FJ85: 8.196060139 | FK85: 8.300135304 | FL85: 8.405532035 | FM85: 8.512267115 | FN85: 8.620357537 | FO85: 8.729820513 | FP85: 8.840673471 | FQ85: 8.952934061 | FR85: 9.066620158 | FS85: 9.181749863 | FT85: 9.298341507 | FU85: 9.416413655 | FV85: 9.535985106 | FW85: 9.657074898 | FX85: 9.779702312 | FY85: 9.903886873 | FZ85: 10.02964835 | GA85: 10.15700678 | GB85: 10.28598242 | GC85: 10.41659583 | GD85: 10.54886779 | GE85: 10.68281936 | GF85: 10.81847188 | GG85: 10.95584694 | GH85: 11.09496641 | GI85: 11.23585245 | GJ85: 11.37852749 | GK85: 11.52301424 | GL85: 11.66933572 | GM85: 11.81751521 | GN85: 11.96757632 | GO85: 12.11954293 | GP85: 12.27343924 | GQ85: 12.42928975 | GR85: =(GR$63/$H$63)^$I$75*(GR$65/$H$65) -> 12.58711929 | GS85: 12.74695298 | GT85: 12.90881627 | GU85: 13.07273492 | GV85: 13.23873505 | GW85: 13.40684308 | GX85: 13.57708578 | GY85: 13.74949026 | GZ85: 13.92408396 | HA85: 14.10089468 | HB85: 14.27995058 | HC85: 14.46128017 | HD85: 14.64491232 | HE85: 14.83087626 | HF85: 15.01920161 | HG85: 15.20991835 | HH85: 15.40305685 | HI85: 15.59864786 | HJ85: 15.79672252 | HK85: 15.99731238 | HL85: 16.20044936 | HM85: 16.40616581 | HN85: 16.6144945 | HO85: 16.82546858 | HP85: 17.03912165 | HQ85: 17.25548773 | HR85: 17.47460126 | HS85: 17.69649715 | HT85: 17.92121071 | HU85: 18.14877773 | HV85: 18.37923443 | HW85: 18.61261752 | HX85: 18.84896416 | HY85: 19.08831197 | HZ85: 19.33069906 | IA85: 19.57616404 | IB85: 19.82474598 | IC85: 20.07648445 | ID85: 20.33141955 | IE85: 20.58959187 | IF85: 20.85104251 | IG85: 21.1158131 | IH85: 21.3839458 | II85: 21.6554833 | IJ85: 21.93046884 | IK85: 22.20894619 | IL85: 22.49095971 | IM85: 22.77655429 | IN85: 23.0657754 | IO85: 23.3586691 | IP85: 23.65528202 | IQ85: 23.95566139 | IR85: 24.25985504 | IS85: 24.56791139 | IT85: 24.8798795 | IU85: 25.19580905 | IV85: 25.51575033 | IW85: 25.83975429 | IX85: 26.16787251 | IY85: 26.50015724 | IZ85: 26.83666139 | JA85: 27.17743853 | JB85: 27.52254293 | JC85: 27.87202953 | JD85: =(JD$63/$H$63)^$I$75*(JD$65/$H$65) -> 28.22595398 | JE85: 28.58437263 | JF85: 28.94734255 | JG85: 29.31492153 | JH85: 29.6871681 | JI85: 30.06414153 | JJ85: 30.44590185 | JK85: 30.83250983 | JL85: 31.22402703 | JM85: 31.62051579 | JN85: 32.02203925 | JO85: 32.42866133 | JP85: 32.84044677 | JQ85: 33.25746115 | JR85: 33.67977085 | JS85: =(JS$63/$H$63)^$I$75*(JS$65/$H$65) -> 34.10744313 | JT85: 34.54054607 | JU85: 34.97914864 | JV85: 35.42332067 | JW85: 35.87313288 | JX85: 36.3286569 | JY85: 36.78996524 | JZ85: 37.25713137 | KA85: 37.73022967 | KB85: 38.20933546 | KC85: 38.69452503 | KD85: 39.18587563 | KE85: 39.68346549 | KF85: 40.18737385 | KG85: 40.69768094 | KH85: 41.214468 | KI85: 41.73781732 | KJ85: 42.26781224 | KK85: 42.80453714 | KL85: 43.34807747 | KM85: 43.89851978 | KN85: 44.45595172 | KO85: 45.02046204 | KP85: 45.59214061 | KQ85: 46.17107848 | KR85: 46.75736781 | KS85: 47.35110195 | KT85: 47.95237545 | KU85: 48.56128403 | KV85: 49.17792466
C86: High sensitivity | H86: =(H$63/$H$63)^$J$75*(H$65/$H$65) -> 1 | I86: 1.030231432 | J86: 1.051527369 | K86: 1.090362082 | L86: 1.121010875 | M86: 1.156174356 | N86: 1.187737629 | O86: 1.223209592 | P86: 1.217898736 | Q86: 1.149148439 | R86: 1.178205598 | S86: 1.19242345 | T86: 1.212477983 | U86: 1.236945226 | V86: 1.282614422 | W86: 1.314961046 | X86: 1.343197187 | Y86: 1.384593838 | Z86: 1.406576306 | AA86: 1.432855624 | AB86: 1.256196346 | AC86: 1.387080458 | AD86: 1.457033035 | AE86: 1.456719966 | AF86: 1.473703641 | AG86: 1.507091454 | AH86: 1.538564549 | AI86: 1.565576068 | AJ86: 1.592609548 | AK86: 1.621015444 | AL86: 1.655541634 | AM86: 1.691075809 | AN86: 1.728307701 | AO86: 1.766825237 | AP86: 1.80590067 | AQ86: 1.845733735 | AR86: 1.889119456 | AS86: 1.933288585 | AT86: 1.977951765 | AU86: 2.023992897 | AV86: 2.069993202 | AW86: 2.116283686 | AX86: 2.16303677 | AY86: 2.210026611 | AZ86: 2.257172594 | BA86: 2.30519724 | BB86: 2.354343833 | BC86: 2.404176392 | BD86: 2.454429427 | BE86: 2.504981971 | BF86: 2.556463879 | BG86: 2.608891463 | BH86: 2.662053872 | BI86: 2.715957708 | BJ86: 2.770445862 | BK86: 2.825540807 | BL86: 2.881286731 | BM86: 2.937511023 | BN86: 2.994507882 | BO86: 3.051867699 | BP86: 3.110768124 | BQ86: 3.17014568 | BR86: 3.229845053 | BS86: 3.290224847 | BT86: =(BT$63/$H$63)^$J$75*(BT$65/$H$65) -> 3.351880548 | BU86: 3.414973381 | BV86: 3.479600415 | BW86: 3.546510059 | BX86: 3.617103227 | BY86: 3.691184334 | BZ86: 3.769135859 | CA86: 3.849592651 | CB86: 3.931346559 | CC86: 4.014459894 | CD86: 4.085175835 | CE86: 4.155944393 | CF86: 4.225247301 | CG86: 4.29649207 | CH86: 4.368641196 | CI86: 4.440792352 | CJ86: 4.514530292 | CK86: 4.591752312 | CL86: 4.672317518 | CM86: 4.754784338 | CN86: 4.838100373 | CO86: 4.92527883 | CP86: 5.015935223 | CQ86: 5.109441804 | CR86: 5.206037276 | CS86: 5.307343636 | CT86: 5.409022093 | CU86: 5.516457219 | CV86: 5.620475254 | CW86: 5.725619574 | CX86: 5.832386607 | CY86: 5.940879513 | CZ86: 6.051211482 | DA86: 6.163470223 | DB86: 6.277663266 | DC86: 6.393795238 | DD86: 6.511851531 | DE86: 6.632087638 | DF86: 6.754543808 | DG86: 6.879261033 | DH86: 7.006281062 | DI86: 7.135646413 | DJ86: 7.267400392 | DK86: 7.401587102 | DL86: 7.538251462 | DM86: 7.677439219 | DN86: 7.819196967 | DO86: 7.963572158 | DP86: 8.11061312 | DQ86: 8.260369076 | DR86: 8.412890155 | DS86: 8.568227413 | DT86: 8.726432849 | DU86: 8.887559421 | DV86: 9.051661066 | DW86: 9.218792716 | DX86: 9.389010318 | DY86: 9.562370851 | DZ86: 9.738932347 | EA86: 9.918753909 | EB86: 10.10189573 | EC86: 10.28841912 | ED86: 10.47838652 | EE86: 10.6718615 | EF86: =(EF$63/$H$63)^$J$75*(EF$65/$H$65) -> 10.86890885 | EG86: 11.06959452 | EH86: 11.27398569 | EI86: 11.48215078 | EJ86: 11.69415947 | EK86: 11.91008273 | EL86: 12.12999284 | EM86: 12.35396342 | EN86: 12.58206943 | EO86: 12.81438723 | EP86: 13.0509946 | EQ86: 13.29197073 | ER86: 13.53739629 | ES86: 13.78735344 | ET86: 14.04192584 | EU86: 14.30119872 | EV86: 14.56525887 | EW86: 14.83419467 | EX86: 15.10809616 | EY86: 15.38705502 | EZ86: 15.67116463 | FA86: 15.96052009 | FB86: 16.25521828 | FC86: 16.55535782 | FD86: 16.86103921 | FE86: 17.17236475 | FF86: 17.48943867 | FG86: 17.81236711 | FH86: 18.14125815 | FI86: 18.47622191 | FJ86: 18.81737051 | FK86: 19.16481814 | FL86: 19.51868111 | FM86: 19.87907787 | FN86: 20.24612908 | FO86: 20.61995759 | FP86: 21.00068854 | FQ86: 21.38844938 | FR86: 21.78336992 | FS86: 22.18558234 | FT86: 22.5952213 | FU86: 23.01242391 | FV86: 23.43732983 | FW86: 23.8700813 | FX86: 24.31082317 | FY86: 24.75970299 | FZ86: 25.21687102 | GA86: 25.68248028 | GB86: 26.15668665 | GC86: 26.63964886 | GD86: 27.13152857 | GE86: 27.63249045 | GF86: 28.14270219 | GG86: 28.66233458 | GH86: 29.19156156 | GI86: 29.73056029 | GJ86: 30.2795112 | GK86: 30.83859805 | GL86: 31.40800799 | GM86: 31.98793163 | GN86: 32.57856309 | GO86: 33.18010009 | GP86: 33.79274398 | GQ86: 34.41669985 | GR86: =(GR$63/$H$63)^$J$75*(GR$65/$H$65) -> 35.05217656 | GS86: 35.69938684 | GT86: 36.35854734 | GU86: 37.02987871 | GV86: 37.71360568 | GW86: 38.40995711 | GX86: 39.11916611 | GY86: 39.84147008 | GZ86: 40.57711082 | HA86: 41.32633458 | HB86: 42.08939215 | HC86: 42.86653896 | HD86: 43.65803517 | HE86: 44.46414571 | HF86: 45.28514044 | HG86: 46.12129418 | HH86: 46.97288683 | HI86: 47.84020345 | HJ86: 48.72353437 | HK86: 49.62317529 | HL86: 50.53942736 | HM86: 51.47259729 | HN86: 52.42299745 | HO86: 53.39094598 | HP86: 54.37676691 | HQ86: 55.38079023 | HR86: 56.40335203 | HS86: 57.44479461 | HT86: 58.5054666 | HU86: 59.58572304 | HV86: 60.68592555 | HW86: 61.80644241 | HX86: 62.94764872 | HY86: 64.10992648 | HZ86: 65.29366477 | IA86: 66.49925984 | IB86: 67.72711525 | IC86: 68.97764203 | ID86: 70.25125877 | IE86: 71.54839183 | IF86: 72.86947541 | IG86: 74.21495173 | IH86: 75.5852712 | II86: 76.98089251 | IJ86: 78.40228285 | IK86: 79.84991802 | IL86: 81.32428261 | IM86: 82.82587015 | IN86: 84.35518331 | IO86: 85.912734 | IP86: 87.49904362 | IQ86: 89.11464317 | IR86: 90.76007346 | IS86: 92.43588531 | IT86: 94.14263967 | IU86: 95.88090789 | IV86: 97.65127183 | IW86: 99.45432411 | IX86: 101.2906683 | IY86: 103.1609191 | IZ86: 105.0657026 | JA86: 107.0056564 | JB86: 108.9814299 | JC86: 110.9936845 | JD86: =(JD$63/$H$63)^$J$75*(JD$65/$H$65) -> 113.0430937 | JE86: 115.1303436 | JF86: 117.2561329 | JG86: 119.4211732 | JH86: 121.6261892 | JI86: 123.8719191 | JJ86: 126.1591146 | JK86: 128.4885413 | JL86: 130.860979 | JM86: 133.2772218 | JN86: 135.7380787 | JO86: 138.2443732 | JP86: 140.7969445 | JQ86: 143.396647 | JR86: 146.0443509 | JS86: =(JS$63/$H$63)^$J$75*(JS$65/$H$65) -> 148.7409425 | JT86: 151.4873245 | JU86: 154.2844163 | JV86: 157.1331541 | JW86: 160.0344915 | JX86: 162.9893999 | JY86: 165.9988682 | JZ86: 169.0639039 | KA86: 172.1855331 | KB86: 175.3648007 | KC86: 178.6027708 | KD86: 181.9005275 | KE86: 185.2591746 | KF86: 188.6798365 | KG86: 192.1636581 | KH86: 195.7118056 | KI86: 199.3254669 | KJ86: 203.0058515 | KK86: 206.7541915 | KL86: 210.5717415 | KM86: 214.4597796 | KN86: 218.4196071 | KO86: 222.4525497 | KP86: 226.5599573 | KQ86: 230.7432049 | KR86: 235.0036929 | KS86: 239.3428473 | KT86: 243.7621207 | KU86: 248.2629924 | KV86: 252.8469691
B89: END

Sheet Calculations (values)
B2: Uprating indices
C4: Discount rates
H6: Year
H7: ='Inputs (values)'!$H$13 -> 2023 | I7: =H7+1 -> 2024 | J7: =I7+1 -> 2025 | K7: 2026 | L7: 2027 | M7: 2028 | N7: 2029 | O7: 2030 | P7: 2031 | Q7: 2032 | R7: 2033 | S7: 2034 | T7: 2035 | U7: 2036 | V7: 2037 | W7: 2038 | X7: 2039 | Y7: 2040 | Z7: 2041 | AA7: 2042 | AB7: 2043 | AC7: 2044 | AD7: 2045 | AE7: 2046 | AF7: 2047 | AG7: 2048 | AH7: 2049 | AI7: 2050 | AJ7: 2051 | AK7: 2052 | AL7: 2053 | AM7: 2054 | AN7: 2055 | AO7: 2056 | AP7: 2057 | AQ7: 2058 | AR7: 2059 | AS7: 2060 | AT7: 2061 | AU7: 2062 | AV7: 2063 | AW7: 2064 | AX7: 2065 | AY7: 2066 | AZ7: 2067 | BA7: 2068 | BB7: 2069 | BC7: 2070 | BD7: 2071 | BE7: 2072 | BF7: 2073 | BG7: 2074 | BH7: 2075 | BI7: 2076 | BJ7: 2077 | BK7: 2078 | BL7: 2079 | BM7: 2080 | BN7: 2081 | BO7: 2082 | BP7: 2083 | BQ7: 2084 | BR7: 2085 | BS7: 2086 | BT7: 2087 | BU7: 2088 | BV7: =BU7+1 -> 2089 | BW7: 2090 | BX7: 2091 | BY7: 2092 | BZ7: 2093 | CA7: 2094 | CB7: 2095 | CC7: 2096 | CD7: 2097 | CE7: 2098 | CF7: 2099 | CG7: 2100 | CH7: 2101 | CI7: 2102 | CJ7: 2103 | CK7: 2104 | CL7: 2105 | CM7: 2106 | CN7: 2107 | CO7: 2108 | CP7: 2109 | CQ7: 2110 | CR7: 2111 | CS7: 2112 | CT7: 2113 | CU7: 2114 | CV7: 2115 | CW7: 2116 | CX7: 2117 | CY7: 2118 | CZ7: 2119 | DA7: 2120 | DB7: 2121 | DC7: 2122 | DD7: 2123 | DE7: 2124 | DF7: 2125 | DG7: 2126 | DH7: 2127 | DI7: 2128 | DJ7: 2129 | DK7: 2130 | DL7: 2131 | DM7: 2132 | DN7: 2133 | DO7: 2134 | DP7: 2135 | DQ7: 2136 | DR7: 2137 | DS7: 2138 | DT7: 2139 | DU7: 2140 | DV7: 2141 | DW7: 2142 | DX7: 2143 | DY7: 2144 | DZ7: 2145 | EA7: 2146 | EB7: 2147 | EC7: 2148 | ED7: 2149 | EE7: 2150 | EF7: 2151 | EG7: 2152 | EH7: =EG7+1 -> 2153 | EI7: 2154 | EJ7: 2155 | EK7: 2156 | EL7: 2157 | EM7: 2158 | EN7: 2159 | EO7: 2160 | EP7: 2161 | EQ7: 2162 | ER7: 2163 | ES7: 2164 | ET7: 2165 | EU7: 2166 | EV7: 2167 | EW7: 2168 | EX7: 2169 | EY7: 2170 | EZ7: 2171 | FA7: 2172 | FB7: 2173 | FC7: 2174 | FD7: 2175 | FE7: 2176 | FF7: 2177 | FG7: 2178 | FH7: 2179 | FI7: 2180 | FJ7: 2181 | FK7: 2182 | FL7: 2183 | FM7: 2184 | FN7: 2185 | FO7: 2186 | FP7: 2187 | FQ7: 2188 | FR7: 2189 | FS7: 2190 | FT7: 2191 | FU7: 2192 | FV7: 2193 | FW7: 2194 | FX7: 2195 | FY7: 2196 | FZ7: 2197 | GA7: 2198 | GB7: 2199 | GC7: 2200 | GD7: 2201 | GE7: 2202 | GF7: 2203 | GG7: 2204 | GH7: 2205 | GI7: 2206 | GJ7: 2207 | GK7: 2208 | GL7: 2209 | GM7: 2210 | GN7: 2211 | GO7: 2212 | GP7: 2213 | GQ7: 2214 | GR7: 2215 | GS7: 2216 | GT7: =GS7+1 -> 2217 | GU7: 2218 | GV7: 2219 | GW7: 2220 | GX7: 2221 | GY7: 2222 | GZ7: 2223 | HA7: 2224 | HB7: 2225 | HC7: 2226 | HD7: 2227 | HE7: 2228 | HF7: 2229 | HG7: 2230 | HH7: 2231 | HI7: 2232 | HJ7: 2233 | HK7: 2234 | HL7: 2235 | HM7: 2236 | HN7: 2237 | HO7: 2238 | HP7: 2239 | HQ7: 2240 | HR7: 2241 | HS7: 2242 | HT7: 2243 | HU7: 2244 | HV7: 2245 | HW7: 2246 | HX7: 2247 | HY7: 2248 | HZ7: 2249 | IA7: 2250 | IB7: 2251 | IC7: 2252 | ID7: 2253 | IE7: 2254 | IF7: 2255 | IG7: 2256 | IH7: 2257 | II7: 2258 | IJ7: 2259 | IK7: 2260 | IL7: 2261 | IM7: 2262 | IN7: 2263 | IO7: 2264 | IP7: 2265 | IQ7: 2266 | IR7: 2267 | IS7: 2268 | IT7: 2269 | IU7: 2270 | IV7: 2271 | IW7: 2272 | IX7: 2273 | IY7: 2274 | IZ7: 2275 | JA7: 2276 | JB7: 2277 | JC7: 2278 | JD7: 2279 | JE7: 2280 | JF7: =JE7+1 -> 2281 | JG7: 2282 | JH7: 2283 | JI7: 2284 | JJ7: 2285 | JK7: 2286 | JL7: 2287 | JM7: 2288 | JN7: 2289 | JO7: 2290 | JP7: 2291 | JQ7: 2292 | JR7: 2293 | JS7: 2294 | JT7: 2295 | JU7: 2296 | JV7: 2297 | JW7: 2298 | JX7: 2299 | JY7: 2300 | JZ7: 2301 | KA7: 2302
C8: Discount rates | H8: =LOOKUP(H7-'Inputs (values)'!$H$8,'Inputs (values)'!$C$20:$C$25,'Inputs (values)'!$H$20:$H$25) -> 0.035 | I8: =LOOKUP(I7-'Inputs (values)'!$H$8,'Inputs (values)'!$C$20:$C$25,'Inputs (values)'!$H$20:$H$25) -> 0.035 | J8: =LOOKUP(J7-'Inputs (values)'!$H$8,'Inputs (values)'!$C$20:$C$25,'Inputs (values)'!$H$20:$H$25) -> 0.035 | K8: =LOOKUP(K7-'Inputs (values)'!$H$8,'Inputs (values)'!$C$20:$C$25,'Inputs (values)'!$H$20:$H$25) -> 0.035 | L8: =LOOKUP(L7-'Inputs (values)'!$H$8,'Inputs (values)'!$C$20:$C$25,'Inputs (values)'!$H$20:$H$25) -> 0.035 | M8: =LOOKUP(M7-'Inputs (values)'!$H$8,'Inputs (values)'!$C$20:$C$25,'Inputs (values)'!$H$20:$H$25) -> 0.035 | N8: =LOOKUP(N7-'Inputs (values)'!$H$8,'Inputs (values)'!$C$20:$C$25,'Inputs (values)'!$H$20:$H$25) -> 0.035 | O8: =LOOKUP(O7-'Inputs (values)'!$H$8,'Inputs (values)'!$C$20:$C$25,'Inputs (values)'!$H$20:$H$25) -> 0.035 | P8: =LOOKUP(P7-'Inputs (values)'!$H$8,'Inputs (values)'!$C$20:$C$25,'Inputs (values)'!$H$20:$H$25) -> 0.035 | Q8: =LOOKUP(Q7-'Inputs (values)'!$H$8,'Inputs (values)'!$C$20:$C$25,'Inputs (values)'!$H$20:$H$25) -> 0.035 | R8: =LOOKUP(R7-'Inputs (values)'!$H$8,'Inputs (values)'!$C$20:$C$25,'Inputs (values)'!$H$20:$H$25) -> 0.035 | S8: =LOOKUP(S7-'Inputs (values)'!$H$8,'Inputs (values)'!$C$20:$C$25,'Inputs (values)'!$H$20:$H$25) -> 0.035 | T8: =LOOKUP(T7-'Inputs (values)'!$H$8,'Inputs (values)'!$C$20:$C$25,'Inputs (values)'!$H$20:$H$25) -> 0.035 | U8: =LOOKUP(U7-'Inputs (values)'!$H$8,'Inputs (values)'!$C$20:$C$25,'Inputs (values)'!$H$20:$H$25) -> 0.035 | V8: =LOOKUP(V7-'Inputs (values)'!$H$8,'Inputs (values)'!$C$20:$C$25,'Inputs (values)'!$H$20:$H$25) -> 0.035 | W8: =LOOKUP(W7-'Inputs (values)'!$H$8,'Inputs (values)'!$C$20:$C$25,'Inputs (values)'!$H$20:$H$25) -> 0.035 | X8: =LOOKUP(X7-'Inputs (values)'!$H$8,'Inputs (values)'!$C$20:$C$25,'Inputs (values)'!$H$20:$H$25) -> 0.035 | Y8: =LOOKUP(Y7-'Inputs (values)'!$H$8,'Inputs (values)'!$C$20:$C$25,'Inputs (values)'!$H$20:$H$25) -> 0.035 | Z8: =LOOKUP(Z7-'Inputs (values)'!$H$8,'Inputs (values)'!$C$20:$C$25,'Inputs (values)'!$H$20:$H$25) -> 0.035 | AA8: =LOOKUP(AA7-'Inputs (values)'!$H$8,'Inputs (values)'!$C$20:$C$25,'Inputs (values)'!$H$20:$H$25) -> 0.035 | AB8: =LOOKUP(AB7-'Inputs (values)'!$H$8,'Inputs (values)'!$C$20:$C$25,'Inputs (values)'!$H$20:$H$25) -> 0.035 | AC8: =LOOKUP(AC7-'Inputs (values)'!$H$8,'Inputs (values)'!$C$20:$C$25,'Inputs (values)'!$H$20:$H$25) -> 0.035 | AD8: =LOOKUP(AD7-'Inputs (values)'!$H$8,'Inputs (values)'!$C$20:$C$25,'Inputs (values)'!$H$20:$H$25) -> 0.035 | AE8: =LOOKUP(AE7-'Inputs (values)'!$H$8,'Inputs (values)'!$C$20:$C$25,'Inputs (values)'!$H$20:$H$25) -> 0.035 | AF8: =LOOKUP(AF7-'Inputs (values)'!$H$8,'Inputs (values)'!$C$20:$C$25,'Inputs (values)'!$H$20:$H$25) -> 0.035 | AG8: =LOOKUP(AG7-'Inputs (values)'!$H$8,'Inputs (values)'!$C$20:$C$25,'Inputs (values)'!$H$20:$H$25) -> 0.035 | AH8: =LOOKUP(AH7-'Inputs (values)'!$H$8,'Inputs (values)'!$C$20:$C$25,'Inputs (values)'!$H$20:$H$25) -> 0.035 | AI8: =LOOKUP(AI7-'Inputs (values)'!$H$8,'Inputs (values)'!$C$20:$C$25,'Inputs (values)'!$H$20:$H$25) -> 0.035 | AJ8: =LOOKUP(AJ7-'Inputs (values)'!$H$8,'Inputs (values)'!$C$20:$C$25,'Inputs (values)'!$H$20:$H$25) -> 0.035 | AK8: =LOOKUP(AK7-'Inputs (values)'!$H$8,'Inputs (values)'!$C$20:$C$25,'Inputs (values)'!$H$20:$H$25) -> 0.035 | AL8: =LOOKUP(AL7-'Inputs (values)'!$H$8,'Inputs (values)'!$C$20:$C$25,'Inputs (values)'!$H$20:$H$25) -> 0.035 | AM8: =LOOKUP(AM7-'Inputs (values)'!$H$8,'Inputs (values)'!$C$20:$C$25,'Inputs (values)'!$H$20:$H$25) -> 0.035 | AN8: =LOOKUP(AN7-'Inputs (values)'!$H$8,'Inputs (values)'!$C$20:$C$25,'Inputs (values)'!$H$20:$H$25) -> 0.03 | AO8: =LOOKUP(AO7-'Inputs (values)'!$H$8,'Inputs (values)'!$C$20:$C$25,'Inputs (values)'!$H$20:$H$25) -> 0.03 | AP8: =LOOKUP(AP7-'Inputs (values)'!$H$8,'Inputs (values)'!$C$20:$C$25,'Inputs (values)'!$H$20:$H$25) -> 0.03 | AQ8: =LOOKUP(AQ7-'Inputs (values)'!$H$8,'Inputs (values)'!$C$20:$C$25,'Inputs (values)'!$H$20:$H$25) -> 0.03 | AR8: =LOOKUP(AR7-'Inputs (values)'!$H$8,'Inputs (values)'!$C$20:$C$25,'Inputs (values)'!$H$20:$H$25) -> 0.03 | AS8: =LOOKUP(AS7-'Inputs (values)'!$H$8,'Inputs (values)'!$C$20:$C$25,'Inputs (values)'!$H$20:$H$25) -> 0.03 | AT8: =LOOKUP(AT7-'Inputs (values)'!$H$8,'Inputs (values)'!$C$20:$C$25,'Inputs (values)'!$H$20:$H$25) -> 0.03 | AU8: =LOOKUP(AU7-'Inputs (values)'!$H$8,'Inputs (values)'!$C$20:$C$25,'Inputs (values)'!$H$20:$H$25) -> 0.03 | AV8: =LOOKUP(AV7-'Inputs (values)'!$H$8,'Inputs (values)'!$C$20:$C$25,'Inputs (values)'!$H$20:$H$25) -> 0.03 | AW8: =LOOKUP(AW7-'Inputs (values)'!$H$8,'Inputs (values)'!$C$20:$C$25,'Inputs (values)'!$H$20:$H$25) -> 0.03 | AX8: =LOOKUP(AX7-'Inputs (values)'!$H$8,'Inputs (values)'!$C$20:$C$25,'Inputs (values)'!$H$20:$H$25) -> 0.03 | AY8: =LOOKUP(AY7-'Inputs (values)'!$H$8,'Inputs (values)'!$C$20:$C$25,'Inputs (values)'!$H$20:$H$25) -> 0.03 | AZ8: =LOOKUP(AZ7-'Inputs (values)'!$H$8,'Inputs (values)'!$C$20:$C$25,'Inputs (values)'!$H$20:$H$25) -> 0.03 | BA8: =LOOKUP(BA7-'Inputs (values)'!$H$8,'Inputs (values)'!$C$20:$C$25,'Inputs (values)'!$H$20:$H$25) -> 0.03 | BB8: =LOOKUP(BB7-'Inputs (values)'!$H$8,'Inputs (values)'!$C$20:$C$25,'Inputs (values)'!$H$20:$H$25) -> 0.03 | BC8: =LOOKUP(BC7-'Inputs (values)'!$H$8,'Inputs (values)'!$C$20:$C$25,'Inputs (values)'!$H$20:$H$25) -> 0.03 | BD8: =LOOKUP(BD7-'Inputs (values)'!$H$8,'Inputs (values)'!$C$20:$C$25,'Inputs (values)'!$H$20:$H$25) -> 0.03 | BE8: =LOOKUP(BE7-'Inputs (values)'!$H$8,'Inputs (values)'!$C$20:$C$25,'Inputs (values)'!$H$20:$H$25) -> 0.03 | BF8: =LOOKUP(BF7-'Inputs (values)'!$H$8,'Inputs (values)'!$C$20:$C$25,'Inputs (values)'!$H$20:$H$25) -> 0.03 | BG8: =LOOKUP(BG7-'Inputs (values)'!$H$8,'Inputs (values)'!$C$20:$C$25,'Inputs (values)'!$H$20:$H$25) -> 0.03 | BH8: =LOOKUP(BH7-'Inputs (values)'!$H$8,'Inputs (values)'!$C$20:$C$25,'Inputs (values)'!$H$20:$H$25) -> 0.03 | BI8: =LOOKUP(BI7-'Inputs (values)'!$H$8,'Inputs (values)'!$C$20:$C$25,'Inputs (values)'!$H$20:$H$25) -> 0.03 | BJ8: =LOOKUP(BJ7-'Inputs (values)'!$H$8,'Inputs (values)'!$C$20:$C$25,'Inputs (values)'!$H$20:$H$25) -> 0.03 | BK8: =LOOKUP(BK7-'Inputs (values)'!$H$8,'Inputs (values)'!$C$20:$C$25,'Inputs (values)'!$H$20:$H$25) -> 0.03 | BL8: =LOOKUP(BL7-'Inputs (values)'!$H$8,'Inputs (values)'!$C$20:$C$25,'Inputs (values)'!$H$20:$H$25) -> 0.03 | BM8: =LOOKUP(BM7-'Inputs (values)'!$H$8,'Inputs (values)'!$C$20:$C$25,'Inputs (values)'!$H$20:$H$25) -> 0.03 | BN8: =LOOKUP(BN7-'Inputs (values)'!$H$8,'Inputs (values)'!$C$20:$C$25,'Inputs (values)'!$H$20:$H$25) -> 0.03 | BO8: =LOOKUP(BO7-'Inputs (values)'!$H$8,'Inputs (values)'!$C$20:$C$25,'Inputs (values)'!$H$20:$H$25) -> 0.03 | BP8: =LOOKUP(BP7-'Inputs (values)'!$H$8,'Inputs (values)'!$C$20:$C$25,'Inputs (values)'!$H$20:$H$25) -> 0.03 | BQ8: =LOOKUP(BQ7-'Inputs (values)'!$H$8,'Inputs (values)'!$C$20:$C$25,'Inputs (values)'!$H$20:$H$25) -> 0.03 | BR8: =LOOKUP(BR7-'Inputs (values)'!$H$8,'Inputs (values)'!$C$20:$C$25,'Inputs (values)'!$H$20:$H$25) -> 0.03 | BS8: =LOOKUP(BS7-'Inputs (values)'!$H$8,'Inputs (values)'!$C$20:$C$25,'Inputs (values)'!$H$20:$H$25) -> 0.03 | BT8: =LOOKUP(BT7-'Inputs (values)'!$H$8,'Inputs (values)'!$C$20:$C$25,'Inputs (values)'!$H$20:$H$25) -> 0.03 | BU8: =LOOKUP(BU7-'Inputs (values)'!$H$8,'Inputs (values)'!$C$20:$C$25,'Inputs (values)'!$H$20:$H$25) -> 0.03 | BV8: =LOOKUP(BV7-'Inputs (values)'!$H$8,'Inputs (values)'!$C$20:$C$25,'Inputs (values)'!$H$20:$H$25) -> 0.03 | BW8: =LOOKUP(BW7-'Inputs (values)'!$H$8,'Inputs (values)'!$C$20:$C$25,'Inputs (values)'!$H$20:$H$25) -> 0.03 | BX8: =LOOKUP(BX7-'Inputs (values)'!$H$8,'Inputs (values)'!$C$20:$C$25,'Inputs (values)'!$H$20:$H$25) -> 0.03 | BY8: =LOOKUP(BY7-'Inputs (values)'!$H$8,'Inputs (values)'!$C$20:$C$25,'Inputs (values)'!$H$20:$H$25) -> 0.03 | BZ8: =LOOKUP(BZ7-'Inputs (values)'!$H$8,'Inputs (values)'!$C$20:$C$25,'Inputs (values)'!$H$20:$H$25) -> 0.03 | CA8: =LOOKUP(CA7-'Inputs (values)'!$H$8,'Inputs (values)'!$C$20:$C$25,'Inputs (values)'!$H$20:$H$25) -> 0.03 | CB8: =LOOKUP(CB7-'Inputs (values)'!$H$8,'Inputs (values)'!$C$20:$C$25,'Inputs (values)'!$H$20:$H$25) -> 0.03 | CC8: =LOOKUP(CC7-'Inputs (values)'!$H$8,'Inputs (values)'!$C$20:$C$25,'Inputs (values)'!$H$20:$H$25) -> 0.03 | CD8: =LOOKUP(CD7-'Inputs (values)'!$H$8,'Inputs (values)'!$C$20:$C$25,'Inputs (values)'!$H$20:$H$25) -> 0.03 | CE8: =LOOKUP(CE7-'Inputs (values)'!$H$8,'Inputs (values)'!$C$20:$C$25,'Inputs (values)'!$H$20:$H$25) -> 0.03 | CF8: =LOOKUP(CF7-'Inputs (values)'!$H$8,'Inputs (values)'!$C$20:$C$25,'Inputs (values)'!$H$20:$H$25) -> 0.03 | CG8: =LOOKUP(CG7-'Inputs (values)'!$H$8,'Inputs (values)'!$C$20:$C$25,'Inputs (values)'!$H$20:$H$25) -> 0.025 | CH8: =LOOKUP(CH7-'Inputs (values)'!$H$8,'Inputs (values)'!$C$20:$C$25,'Inputs (values)'!$H$20:$H$25) -> 0.025 | CI8: =LOOKUP(CI7-'Inputs (values)'!$H$8,'Inputs (values)'!$C$20:$C$25,'Inputs (values)'!$H$20:$H$25) -> 0.025 | CJ8: =LOOKUP(CJ7-'Inputs (values)'!$H$8,'Inputs (values)'!$C$20:$C$25,'Inputs (values)'!$H$20:$H$25) -> 0.025 | CK8: =LOOKUP(CK7-'Inputs (values)'!$H$8,'Inputs (values)'!$C$20:$C$25,'Inputs (values)'!$H$20:$H$25) -> 0.025 | CL8: =LOOKUP(CL7-'Inputs (values)'!$H$8,'Inputs (values)'!$C$20:$C$25,'Inputs (values)'!$H$20:$H$25) -> 0.025 | CM8: =LOOKUP(CM7-'Inputs (values)'!$H$8,'Inputs (values)'!$C$20:$C$25,'Inputs (values)'!$H$20:$H$25) -> 0.025 | CN8: =LOOKUP(CN7-'Inputs (values)'!$H$8,'Inputs (values)'!$C$20:$C$25,'Inputs (values)'!$H$20:$H$25) -> 0.025 | CO8: =LOOKUP(CO7-'Inputs (values)'!$H$8,'Inputs (values)'!$C$20:$C$25,'Inputs (values)'!$H$20:$H$25) -> 0.025 | CP8: =LOOKUP(CP7-'Inputs (values)'!$H$8,'Inputs (values)'!$C$20:$C$25,'Inputs (values)'!$H$20:$H$25) -> 0.025 | CQ8: =LOOKUP(CQ7-'Inputs (values)'!$H$8,'Inputs (values)'!$C$20:$C$25,'Inputs (values)'!$H$20:$H$25) -> 0.025 | CR8: =LOOKUP(CR7-'Inputs (values)'!$H$8,'Inputs (values)'!$C$20:$C$25,'Inputs (values)'!$H$20:$H$25) -> 0.025 | CS8: =LOOKUP(CS7-'Inputs (values)'!$H$8,'Inputs (values)'!$C$20:$C$25,'Inputs (values)'!$H$20:$H$25) -> 0.025 | CT8: =LOOKUP(CT7-'Inputs (values)'!$H$8,'Inputs (values)'!$C$20:$C$25,'Inputs (values)'!$H$20:$H$25) -> 0.025 | CU8: =LOOKUP(CU7-'Inputs (values)'!$H$8,'Inputs (values)'!$C$20:$C$25,'Inputs (values)'!$H$20:$H$25) -> 0.025 | CV8: =LOOKUP(CV7-'Inputs (values)'!$H$8,'Inputs (values)'!$C$20:$C$25,'Inputs (values)'!$H$20:$H$25) -> 0.025 | CW8: =LOOKUP(CW7-'Inputs (values)'!$H$8,'Inputs (values)'!$C$20:$C$25,'Inputs (values)'!$H$20:$H$25) -> 0.025 | CX8: =LOOKUP(CX7-'Inputs (values)'!$H$8,'Inputs (values)'!$C$20:$C$25,'Inputs (values)'!$H$20:$H$25) -> 0.025 | CY8: =LOOKUP(CY7-'Inputs (values)'!$H$8,'Inputs (values)'!$C$20:$C$25,'Inputs (values)'!$H$20:$H$25) -> 0.025 | CZ8: =LOOKUP(CZ7-'Inputs (values)'!$H$8,'Inputs (values)'!$C$20:$C$25,'Inputs (values)'!$H$20:$H$25) -> 0.025 | DA8: =LOOKUP(DA7-'Inputs (values)'!$H$8,'Inputs (values)'!$C$20:$C$25,'Inputs (values)'!$H$20:$H$25) -> 0.025 | DB8: =LOOKUP(DB7-'Inputs (values)'!$H$8,'Inputs (values)'!$C$20:$C$25,'Inputs (values)'!$H$20:$H$25) -> 0.025 | DC8: =LOOKUP(DC7-'Inputs (values)'!$H$8,'Inputs (values)'!$C$20:$C$25,'Inputs (values)'!$H$20:$H$25) -> 0.025 | DD8: =LOOKUP(DD7-'Inputs (values)'!$H$8,'Inputs (values)'!$C$20:$C$25,'Inputs (values)'!$H$20:$H$25) -> 0.025 | DE8: =LOOKUP(DE7-'Inputs (values)'!$H$8,'Inputs (values)'!$C$20:$C$25,'Inputs (values)'!$H$20:$H$25) -> 0.025 | DF8: =LOOKUP(DF7-'Inputs (values)'!$H$8,'Inputs (values)'!$C$20:$C$25,'Inputs (values)'!$H$20:$H$25) -> 0.025 | DG8: =LOOKUP(DG7-'Inputs (values)'!$H$8,'Inputs (values)'!$C$20:$C$25,'Inputs (values)'!$H$20:$H$25) -> 0.025 | DH8: =LOOKUP(DH7-'Inputs (values)'!$H$8,'Inputs (values)'!$C$20:$C$25,'Inputs (values)'!$H$20:$H$25) -> 0.025 | DI8: =LOOKUP(DI7-'Inputs (values)'!$H$8,'Inputs (values)'!$C$20:$C$25,'Inputs (values)'!$H$20:$H$25) -> 0.025 | DJ8: =LOOKUP(DJ7-'Inputs (values)'!$H$8,'Inputs (values)'!$C$20:$C$25,'Inputs (values)'!$H$20:$H$25) -> 0.025 | DK8: =LOOKUP(DK7-'Inputs (values)'!$H$8,'Inputs (values)'!$C$20:$C$25,'Inputs (values)'!$H$20:$H$25) -> 0.025 | DL8: =LOOKUP(DL7-'Inputs (values)'!$H$8,'Inputs (values)'!$C$20:$C$25,'Inputs (values)'!$H$20:$H$25) -> 0.025 | DM8: =LOOKUP(DM7-'Inputs (values)'!$H$8,'Inputs (values)'!$C$20:$C$25,'Inputs (values)'!$H$20:$H$25) -> 0.025 | DN8: =LOOKUP(DN7-'Inputs (values)'!$H$8,'Inputs (values)'!$C$20:$C$25,'Inputs (values)'!$H$20:$H$25) -> 0.025 | DO8: =LOOKUP(DO7-'Inputs (values)'!$H$8,'Inputs (values)'!$C$20:$C$25,'Inputs (values)'!$H$20:$H$25) -> 0.025 | DP8: =LOOKUP(DP7-'Inputs (values)'!$H$8,'Inputs (values)'!$C$20:$C$25,'Inputs (values)'!$H$20:$H$25) -> 0.025 | DQ8: =LOOKUP(DQ7-'Inputs (values)'!$H$8,'Inputs (values)'!$C$20:$C$25,'Inputs (values)'!$H$20:$H$25) -> 0.025 | DR8: =LOOKUP(DR7-'Inputs (values)'!$H$8,'Inputs (values)'!$C$20:$C$25,'Inputs (values)'!$H$20:$H$25) -> 0.025 | DS8: =LOOKUP(DS7-'Inputs (values)'!$H$8,'Inputs (values)'!$C$20:$C$25,'Inputs (values)'!$H$20:$H$25) -> 0.025 | DT8: =LOOKUP(DT7-'Inputs (values)'!$H$8,'Inputs (values)'!$C$20:$C$25,'Inputs (values)'!$H$20:$H$25) -> 0.025 | DU8: =LOOKUP(DU7-'Inputs (values)'!$H$8,'Inputs (values)'!$C$20:$C$25,'Inputs (values)'!$H$20:$H$25) -> 0.025 | DV8: =LOOKUP(DV7-'Inputs (values)'!$H$8,'Inputs (values)'!$C$20:$C$25,'Inputs (values)'!$H$20:$H$25) -> 0.025 | DW8: =LOOKUP(DW7-'Inputs (values)'!$H$8,'Inputs (values)'!$C$20:$C$25,'Inputs (values)'!$H$20:$H$25) -> 0.025 | DX8: =LOOKUP(DX7-'Inputs (values)'!$H$8,'Inputs (values)'!$C$20:$C$25,'Inputs (values)'!$H$20:$H$25) -> 0.025 | DY8: =LOOKUP(DY7-'Inputs (values)'!$H$8,'Inputs (values)'!$C$20:$C$25,'Inputs (values)'!$H$20:$H$25) -> 0.025 | DZ8: =LOOKUP(DZ7-'Inputs (values)'!$H$8,'Inputs (values)'!$C$20:$C$25,'Inputs (values)'!$H$20:$H$25) -> 0.025 | EA8: =LOOKUP(EA7-'Inputs (values)'!$H$8,'Inputs (values)'!$C$20:$C$25,'Inputs (values)'!$H$20:$H$25) -> 0.025 | EB8: =LOOKUP(EB7-'Inputs (values)'!$H$8,'Inputs (values)'!$C$20:$C$25,'Inputs (values)'!$H$20:$H$25) -> 0.025 | EC8: =LOOKUP(EC7-'Inputs (values)'!$H$8,'Inputs (values)'!$C$20:$C$25,'Inputs (values)'!$H$20:$H$25) -> 0.025 | ED8: =LOOKUP(ED7-'Inputs (values)'!$H$8,'Inputs (values)'!$C$20:$C$25,'Inputs (values)'!$H$20:$H$25) -> 0.025 | EE8: =LOOKUP(EE7-'Inputs (values)'!$H$8,'Inputs (values)'!$C$20:$C$25,'Inputs (values)'!$H$20:$H$25) -> 0.02 | EF8: =LOOKUP(EF7-'Inputs (values)'!$H$8,'Inputs (values)'!$C$20:$C$25,'Inputs (values)'!$H$20:$H$25) -> 0.02 | EG8: =LOOKUP(EG7-'Inputs (values)'!$H$8,'Inputs (values)'!$C$20:$C$25,'Inputs (values)'!$H$20:$H$25) -> 0.02 | EH8: =LOOKUP(EH7-'Inputs (values)'!$H$8,'Inputs (values)'!$C$20:$C$25,'Inputs (values)'!$H$20:$H$25) -> 0.02 | EI8: =LOOKUP(EI7-'Inputs (values)'!$H$8,'Inputs (values)'!$C$20:$C$25,'Inputs (values)'!$H$20:$H$25) -> 0.02 | EJ8: =LOOKUP(EJ7-'Inputs (values)'!$H$8,'Inputs (values)'!$C$20:$C$25,'Inputs (values)'!$H$20:$H$25) -> 0.02 | EK8: =LOOKUP(EK7-'Inputs (values)'!$H$8,'Inputs (values)'!$C$20:$C$25,'Inputs (values)'!$H$20:$H$25) -> 0.02 | EL8: =LOOKUP(EL7-'Inputs (values)'!$H$8,'Inputs (values)'!$C$20:$C$25,'Inputs (values)'!$H$20:$H$25) -> 0.02 | EM8: =LOOKUP(EM7-'Inputs (values)'!$H$8,'Inputs (values)'!$C$20:$C$25,'Inputs (values)'!$H$20:$H$25) -> 0.02 | EN8: =LOOKUP(EN7-'Inputs (values)'!$H$8,'Inputs (values)'!$C$20:$C$25,'Inputs (values)'!$H$20:$H$25) -> 0.02 | EO8: =LOOKUP(EO7-'Inputs (values)'!$H$8,'Inputs (values)'!$C$20:$C$25,'Inputs (values)'!$H$20:$H$25) -> 0.02 | EP8: =LOOKUP(EP7-'Inputs (values)'!$H$8,'Inputs (values)'!$C$20:$C$25,'Inputs (values)'!$H$20:$H$25) -> 0.02 | EQ8: =LOOKUP(EQ7-'Inputs (values)'!$H$8,'Inputs (values)'!$C$20:$C$25,'Inputs (values)'!$H$20:$H$25) -> 0.02 | ER8: =LOOKUP(ER7-'Inputs (values)'!$H$8,'Inputs (values)'!$C$20:$C$25,'Inputs (values)'!$H$20:$H$25) -> 0.02 | ES8: =LOOKUP(ES7-'Inputs (values)'!$H$8,'Inputs (values)'!$C$20:$C$25,'Inputs (values)'!$H$20:$H$25) -> 0.02 | ET8: =LOOKUP(ET7-'Inputs (values)'!$H$8,'Inputs (values)'!$C$20:$C$25,'Inputs (values)'!$H$20:$H$25) -> 0.02 | EU8: =LOOKUP(EU7-'Inputs (values)'!$H$8,'Inputs (values)'!$C$20:$C$25,'Inputs (values)'!$H$20:$H$25) -> 0.02 | EV8: =LOOKUP(EV7-'Inputs (values)'!$H$8,'Inputs (values)'!$C$20:$C$25,'Inputs (values)'!$H$20:$H$25) -> 0.02 | EW8: =LOOKUP(EW7-'Inputs (values)'!$H$8,'Inputs (values)'!$C$20:$C$25,'Inputs (values)'!$H$20:$H$25) -> 0.02 | EX8: =LOOKUP(EX7-'Inputs (values)'!$H$8,'Inputs (values)'!$C$20:$C$25,'Inputs (values)'!$H$20:$H$25) -> 0.02 | EY8: =LOOKUP(EY7-'Inputs (values)'!$H$8,'Inputs (values)'!$C$20:$C$25,'Inputs (values)'!$H$20:$H$25) -> 0.02 | EZ8: =LOOKUP(EZ7-'Inputs (values)'!$H$8,'Inputs (values)'!$C$20:$C$25,'Inputs (values)'!$H$20:$H$25) -> 0.02 | FA8: =LOOKUP(FA7-'Inputs (values)'!$H$8,'Inputs (values)'!$C$20:$C$25,'Inputs (values)'!$H$20:$H$25) -> 0.02 | FB8: =LOOKUP(FB7-'Inputs (values)'!$H$8,'Inputs (values)'!$C$20:$C$25,'Inputs (values)'!$H$20:$H$25) -> 0.02 | FC8: =LOOKUP(FC7-'Inputs (values)'!$H$8,'Inputs (values)'!$C$20:$C$25,'Inputs (values)'!$H$20:$H$25) -> 0.02 | FD8: =LOOKUP(FD7-'Inputs (values)'!$H$8,'Inputs (values)'!$C$20:$C$25,'Inputs (values)'!$H$20:$H$25) -> 0.02 | FE8: =LOOKUP(FE7-'Inputs (values)'!$H$8,'Inputs (values)'!$C$20:$C$25,'Inputs (values)'!$H$20:$H$25) -> 0.02 | FF8: =LOOKUP(FF7-'Inputs (values)'!$H$8,'Inputs (values)'!$C$20:$C$25,'Inputs (values)'!$H$20:$H$25) -> 0.02 | FG8: =LOOKUP(FG7-'Inputs (values)'!$H$8,'Inputs (values)'!$C$20:$C$25,'Inputs (values)'!$H$20:$H$25) -> 0.02 | FH8: =LOOKUP(FH7-'Inputs (values)'!$H$8,'Inputs (values)'!$C$20:$C$25,'Inputs (values)'!$H$20:$H$25) -> 0.02 | FI8: =LOOKUP(FI7-'Inputs (values)'!$H$8,'Inputs (values)'!$C$20:$C$25,'Inputs (values)'!$H$20:$H$25) -> 0.02 | FJ8: =LOOKUP(FJ7-'Inputs (values)'!$H$8,'Inputs (values)'!$C$20:$C$25,'Inputs (values)'!$H$20:$H$25) -> 0.02 | FK8: =LOOKUP(FK7-'Inputs (values)'!$H$8,'Inputs (values)'!$C$20:$C$25,'Inputs (values)'!$H$20:$H$25) -> 0.02 | FL8: =LOOKUP(FL7-'Inputs (values)'!$H$8,'Inputs (values)'!$C$20:$C$25,'Inputs (values)'!$H$20:$H$25) -> 0.02 | FM8: =LOOKUP(FM7-'Inputs (values)'!$H$8,'Inputs (values)'!$C$20:$C$25,'Inputs (values)'!$H$20:$H$25) -> 0.02 | FN8: =LOOKUP(FN7-'Inputs (values)'!$H$8,'Inputs (values)'!$C$20:$C$25,'Inputs (values)'!$H$20:$H$25) -> 0.02 | FO8: =LOOKUP(FO7-'Inputs (values)'!$H$8,'Inputs (values)'!$C$20:$C$25,'Inputs (values)'!$H$20:$H$25) -> 0.02 | FP8: =LOOKUP(FP7-'Inputs (values)'!$H$8,'Inputs (values)'!$C$20:$C$25,'Inputs (values)'!$H$20:$H$25) -> 0.02 | FQ8: =LOOKUP(FQ7-'Inputs (values)'!$H$8,'Inputs (values)'!$C$20:$C$25,'Inputs (values)'!$H$20:$H$25) -> 0.02 | FR8: =LOOKUP(FR7-'Inputs (values)'!$H$8,'Inputs (values)'!$C$20:$C$25,'Inputs (values)'!$H$20:$H$25) -> 0.02 | FS8: =LOOKUP(FS7-'Inputs (values)'!$H$8,'Inputs (values)'!$C$20:$C$25,'Inputs (values)'!$H$20:$H$25) -> 0.02 | FT8: =LOOKUP(FT7-'Inputs (values)'!$H$8,'Inputs (values)'!$C$20:$C$25,'Inputs (values)'!$H$20:$H$25) -> 0.02 | FU8: =LOOKUP(FU7-'Inputs (values)'!$H$8,'Inputs (values)'!$C$20:$C$25,'Inputs (values)'!$H$20:$H$25) -> 0.02 | FV8: =LOOKUP(FV7-'Inputs (values)'!$H$8,'Inputs (values)'!$C$20:$C$25,'Inputs (values)'!$H$20:$H$25) -> 0.02 | FW8: =LOOKUP(FW7-'Inputs (values)'!$H$8,'Inputs (values)'!$C$20:$C$25,'Inputs (values)'!$H$20:$H$25) -> 0.02 | FX8: =LOOKUP(FX7-'Inputs (values)'!$H$8,'Inputs (values)'!$C$20:$C$25,'Inputs (values)'!$H$20:$H$25) -> 0.02 | FY8: =LOOKUP(FY7-'Inputs (values)'!$H$8,'Inputs (values)'!$C$20:$C$25,'Inputs (values)'!$H$20:$H$25) -> 0.02 | FZ8: =LOOKUP(FZ7-'Inputs (values)'!$H$8,'Inputs (values)'!$C$20:$C$25,'Inputs (values)'!$H$20:$H$25) -> 0.02 | GA8: =LOOKUP(GA7-'Inputs (values)'!$H$8,'Inputs (values)'!$C$20:$C$25,'Inputs (values)'!$H$20:$H$25) -> 0.02 | GB8: =LOOKUP(GB7-'Inputs (values)'!$H$8,'Inputs (values)'!$C$20:$C$25,'Inputs (values)'!$H$20:$H$25) -> 0.02 | GC8: =LOOKUP(GC7-'Inputs (values)'!$H$8,'Inputs (values)'!$C$20:$C$25,'Inputs (values)'!$H$20:$H$25) -> 0.02 | GD8: =LOOKUP(GD7-'Inputs (values)'!$H$8,'Inputs (values)'!$C$20:$C$25,'Inputs (values)'!$H$20:$H$25) -> 0.02 | GE8: =LOOKUP(GE7-'Inputs (values)'!$H$8,'Inputs (values)'!$C$20:$C$25,'Inputs (values)'!$H$20:$H$25) -> 0.02 | GF8: =LOOKUP(GF7-'Inputs (values)'!$H$8,'Inputs (values)'!$C$20:$C$25,'Inputs (values)'!$H$20:$H$25) -> 0.02 | GG8: =LOOKUP(GG7-'Inputs (values)'!$H$8,'Inputs (values)'!$C$20:$C$25,'Inputs (values)'!$H$20:$H$25) -> 0.02 | GH8: =LOOKUP(GH7-'Inputs (values)'!$H$8,'Inputs (values)'!$C$20:$C$25,'Inputs (values)'!$H$20:$H$25) -> 0.02 | GI8: =LOOKUP(GI7-'Inputs (values)'!$H$8,'Inputs (values)'!$C$20:$C$25,'Inputs (values)'!$H$20:$H$25) -> 0.02 | GJ8: =LOOKUP(GJ7-'Inputs (values)'!$H$8,'Inputs (values)'!$C$20:$C$25,'Inputs (values)'!$H$20:$H$25) -> 0.02 | GK8: =LOOKUP(GK7-'Inputs (values)'!$H$8,'Inputs (values)'!$C$20:$C$25,'Inputs (values)'!$H$20:$H$25) -> 0.02 | GL8: =LOOKUP(GL7-'Inputs (values)'!$H$8,'Inputs (values)'!$C$20:$C$25,'Inputs (values)'!$H$20:$H$25) -> 0.02 | GM8: =LOOKUP(GM7-'Inputs (values)'!$H$8,'Inputs (values)'!$C$20:$C$25,'Inputs (values)'!$H$20:$H$25) -> 0.02 | GN8: =LOOKUP(GN7-'Inputs (values)'!$H$8,'Inputs (values)'!$C$20:$C$25,'Inputs (values)'!$H$20:$H$25) -> 0.02 | GO8: =LOOKUP(GO7-'Inputs (values)'!$H$8,'Inputs (values)'!$C$20:$C$25,'Inputs (values)'!$H$20:$H$25) -> 0.02 | GP8: =LOOKUP(GP7-'Inputs (values)'!$H$8,'Inputs (values)'!$C$20:$C$25,'Inputs (values)'!$H$20:$H$25) -> 0.02 | GQ8: =LOOKUP(GQ7-'Inputs (values)'!$H$8,'Inputs (values)'!$C$20:$C$25,'Inputs (values)'!$H$20:$H$25) -> 0.02 | GR8: =LOOKUP(GR7-'Inputs (values)'!$H$8,'Inputs (values)'!$C$20:$C$25,'Inputs (values)'!$H$20:$H$25) -> 0.02 | GS8: =LOOKUP(GS7-'Inputs (values)'!$H$8,'Inputs (values)'!$C$20:$C$25,'Inputs (values)'!$H$20:$H$25) -> 0.02 | GT8: =LOOKUP(GT7-'Inputs (values)'!$H$8,'Inputs (values)'!$C$20:$C$25,'Inputs (values)'!$H$20:$H$25) -> 0.02 | GU8: =LOOKUP(GU7-'Inputs (values)'!$H$8,'Inputs (values)'!$C$20:$C$25,'Inputs (values)'!$H$20:$H$25) -> 0.02 | GV8: =LOOKUP(GV7-'Inputs (values)'!$H$8,'Inputs (values)'!$C$20:$C$25,'Inputs (values)'!$H$20:$H$25) -> 0.02 | GW8: =LOOKUP(GW7-'Inputs (values)'!$H$8,'Inputs (values)'!$C$20:$C$25,'Inputs (values)'!$H$20:$H$25) -> 0.02 | GX8: =LOOKUP(GX7-'Inputs (values)'!$H$8,'Inputs (values)'!$C$20:$C$25,'Inputs (values)'!$H$20:$H$25) -> 0.02 | GY8: =LOOKUP(GY7-'Inputs (values)'!$H$8,'Inputs (values)'!$C$20:$C$25,'Inputs (values)'!$H$20:$H$25) -> 0.02 | GZ8: =LOOKUP(GZ7-'Inputs (values)'!$H$8,'Inputs (values)'!$C$20:$C$25,'Inputs (values)'!$H$20:$H$25) -> 0.02 | HA8: =LOOKUP(HA7-'Inputs (values)'!$H$8,'Inputs (values)'!$C$20:$C$25,'Inputs (values)'!$H$20:$H$25) -> 0.02 | HB8: =LOOKUP(HB7-'Inputs (values)'!$H$8,'Inputs (values)'!$C$20:$C$25,'Inputs (values)'!$H$20:$H$25) -> 0.015 | HC8: =LOOKUP(HC7-'Inputs (values)'!$H$8,'Inputs (values)'!$C$20:$C$25,'Inputs (values)'!$H$20:$H$25) -> 0.015 | HD8: =LOOKUP(HD7-'Inputs (values)'!$H$8,'Inputs (values)'!$C$20:$C$25,'Inputs (values)'!$H$20:$H$25) -> 0.015 | HE8: =LOOKUP(HE7-'Inputs (values)'!$H$8,'Inputs (values)'!$C$20:$C$25,'Inputs (values)'!$H$20:$H$25) -> 0.015 | HF8: =LOOKUP(HF7-'Inputs (values)'!$H$8,'Inputs (values)'!$C$20:$C$25,'Inputs (values)'!$H$20:$H$25) -> 0.015 | HG8: =LOOKUP(HG7-'Inputs (values)'!$H$8,'Inputs (values)'!$C$20:$C$25,'Inputs (values)'!$H$20:$H$25) -> 0.015 | HH8: =LOOKUP(HH7-'Inputs (values)'!$H$8,'Inputs (values)'!$C$20:$C$25,'Inputs (values)'!$H$20:$H$25) -> 0.015 | HI8: =LOOKUP(HI7-'Inputs (values)'!$H$8,'Inputs (values)'!$C$20:$C$25,'Inputs (values)'!$H$20:$H$25) -> 0.015 | HJ8: =LOOKUP(HJ7-'Inputs (values)'!$H$8,'Inputs (values)'!$C$20:$C$25,'Inputs (values)'!$H$20:$H$25) -> 0.015 | HK8: =LOOKUP(HK7-'Inputs (values)'!$H$8,'Inputs (values)'!$C$20:$C$25,'Inputs (values)'!$H$20:$H$25) -> 0.015 | HL8: =LOOKUP(HL7-'Inputs (values)'!$H$8,'Inputs (values)'!$C$20:$C$25,'Inputs (values)'!$H$20:$H$25) -> 0.015 | HM8: =LOOKUP(HM7-'Inputs (values)'!$H$8,'Inputs (values)'!$C$20:$C$25,'Inputs (values)'!$H$20:$H$25) -> 0.015 | HN8: =LOOKUP(HN7-'Inputs (values)'!$H$8,'Inputs (values)'!$C$20:$C$25,'Inputs (values)'!$H$20:$H$25) -> 0.015 | HO8: =LOOKUP(HO7-'Inputs (values)'!$H$8,'Inputs (values)'!$C$20:$C$25,'Inputs (values)'!$H$20:$H$25) -> 0.015 | HP8: =LOOKUP(HP7-'Inputs (values)'!$H$8,'Inputs (values)'!$C$20:$C$25,'Inputs (values)'!$H$20:$H$25) -> 0.015 | HQ8: =LOOKUP(HQ7-'Inputs (values)'!$H$8,'Inputs (values)'!$C$20:$C$25,'Inputs (values)'!$H$20:$H$25) -> 0.015 | HR8: =LOOKUP(HR7-'Inputs (values)'!$H$8,'Inputs (values)'!$C$20:$C$25,'Inputs (values)'!$H$20:$H$25) -> 0.015 | HS8: =LOOKUP(HS7-'Inputs (values)'!$H$8,'Inputs (values)'!$C$20:$C$25,'Inputs (values)'!$H$20:$H$25) -> 0.015 | HT8: =LOOKUP(HT7-'Inputs (values)'!$H$8,'Inputs (values)'!$C$20:$C$25,'Inputs (values)'!$H$20:$H$25) -> 0.015 | HU8: =LOOKUP(HU7-'Inputs (values)'!$H$8,'Inputs (values)'!$C$20:$C$25,'Inputs (values)'!$H$20:$H$25) -> 0.015 | HV8: =LOOKUP(HV7-'Inputs (values)'!$H$8,'Inputs (values)'!$C$20:$C$25,'Inputs (values)'!$H$20:$H$25) -> 0.015 | HW8: =LOOKUP(HW7-'Inputs (values)'!$H$8,'Inputs (values)'!$C$20:$C$25,'Inputs (values)'!$H$20:$H$25) -> 0.015 | HX8: =LOOKUP(HX7-'Inputs (values)'!$H$8,'Inputs (values)'!$C$20:$C$25,'Inputs (values)'!$H$20:$H$25) -> 0.015 | HY8: =LOOKUP(HY7-'Inputs (values)'!$H$8,'Inputs (values)'!$C$20:$C$25,'Inputs (values)'!$H$20:$H$25) -> 0.015 | HZ8: =LOOKUP(HZ7-'Inputs (values)'!$H$8,'Inputs (values)'!$C$20:$C$25,'Inputs (values)'!$H$20:$H$25) -> 0.015 | IA8: =LOOKUP(IA7-'Inputs (values)'!$H$8,'Inputs (values)'!$C$20:$C$25,'Inputs (values)'!$H$20:$H$25) -> 0.015 | IB8: =LOOKUP(IB7-'Inputs (values)'!$H$8,'Inputs (values)'!$C$20:$C$25,'Inputs (values)'!$H$20:$H$25) -> 0.015 | IC8: =LOOKUP(IC7-'Inputs (values)'!$H$8,'Inputs (values)'!$C$20:$C$25,'Inputs (values)'!$H$20:$H$25) -> 0.015 | ID8: =LOOKUP(ID7-'Inputs (values)'!$H$8,'Inputs (values)'!$C$20:$C$25,'Inputs (values)'!$H$20:$H$25) -> 0.015 | IE8: =LOOKUP(IE7-'Inputs (values)'!$H$8,'Inputs (values)'!$C$20:$C$25,'Inputs (values)'!$H$20:$H$25) -> 0.015 | IF8: =LOOKUP(IF7-'Inputs (values)'!$H$8,'Inputs (values)'!$C$20:$C$25,'Inputs (values)'!$H$20:$H$25) -> 0.015 | IG8: =LOOKUP(IG7-'Inputs (values)'!$H$8,'Inputs (values)'!$C$20:$C$25,'Inputs (values)'!$H$20:$H$25) -> 0.015 | IH8: =LOOKUP(IH7-'Inputs (values)'!$H$8,'Inputs (values)'!$C$20:$C$25,'Inputs (values)'!$H$20:$H$25) -> 0.015 | II8: =LOOKUP(II7-'Inputs (values)'!$H$8,'Inputs (values)'!$C$20:$C$25,'Inputs (values)'!$H$20:$H$25) -> 0.015 | IJ8: =LOOKUP(IJ7-'Inputs (values)'!$H$8,'Inputs (values)'!$C$20:$C$25,'Inputs (values)'!$H$20:$H$25) -> 0.015 | IK8: =LOOKUP(IK7-'Inputs (values)'!$H$8,'Inputs (values)'!$C$20:$C$25,'Inputs (values)'!$H$20:$H$25) -> 0.015 | IL8: =LOOKUP(IL7-'Inputs (values)'!$H$8,'Inputs (values)'!$C$20:$C$25,'Inputs (values)'!$H$20:$H$25) -> 0.015 | IM8: =LOOKUP(IM7-'Inputs (values)'!$H$8,'Inputs (values)'!$C$20:$C$25,'Inputs (values)'!$H$20:$H$25) -> 0.015 | IN8: =LOOKUP(IN7-'Inputs (values)'!$H$8,'Inputs (values)'!$C$20:$C$25,'Inputs (values)'!$H$20:$H$25) -> 0.015 | IO8: =LOOKUP(IO7-'Inputs (values)'!$H$8,'Inputs (values)'!$C$20:$C$25,'Inputs (values)'!$H$20:$H$25) -> 0.015 | IP8: =LOOKUP(IP7-'Inputs (values)'!$H$8,'Inputs (values)'!$C$20:$C$25,'Inputs (values)'!$H$20:$H$25) -> 0.015 | IQ8: =LOOKUP(IQ7-'Inputs (values)'!$H$8,'Inputs (values)'!$C$20:$C$25,'Inputs (values)'!$H$20:$H$25) -> 0.015 | IR8: =LOOKUP(IR7-'Inputs (values)'!$H$8,'Inputs (values)'!$C$20:$C$25,'Inputs (values)'!$H$20:$H$25) -> 0.015 | IS8: =LOOKUP(IS7-'Inputs (values)'!$H$8,'Inputs (values)'!$C$20:$C$25,'Inputs (values)'!$H$20:$H$25) -> 0.015 | IT8: =LOOKUP(IT7-'Inputs (values)'!$H$8,'Inputs (values)'!$C$20:$C$25,'Inputs (values)'!$H$20:$H$25) -> 0.015 | IU8: =LOOKUP(IU7-'Inputs (values)'!$H$8,'Inputs (values)'!$C$20:$C$25,'Inputs (values)'!$H$20:$H$25) -> 0.015 | IV8: =LOOKUP(IV7-'Inputs (values)'!$H$8,'Inputs (values)'!$C$20:$C$25,'Inputs (values)'!$H$20:$H$25) -> 0.015 | IW8: =LOOKUP(IW7-'Inputs (values)'!$H$8,'Inputs (values)'!$C$20:$C$25,'Inputs (values)'!$H$20:$H$25) -> 0.015 | IX8: =LOOKUP(IX7-'Inputs (values)'!$H$8,'Inputs (values)'!$C$20:$C$25,'Inputs (values)'!$H$20:$H$25) -> 0.015 | IY8: =LOOKUP(IY7-'Inputs (values)'!$H$8,'Inputs (values)'!$C$20:$C$25,'Inputs (values)'!$H$20:$H$25) -> 0.015 | IZ8: =LOOKUP(IZ7-'Inputs (values)'!$H$8,'Inputs (values)'!$C$20:$C$25,'Inputs (values)'!$H$20:$H$25) -> 0.015 | JA8: =LOOKUP(JA7-'Inputs (values)'!$H$8,'Inputs (values)'!$C$20:$C$25,'Inputs (values)'!$H$20:$H$25) -> 0.015 | JB8: =LOOKUP(JB7-'Inputs (values)'!$H$8,'Inputs (values)'!$C$20:$C$25,'Inputs (values)'!$H$20:$H$25) -> 0.015 | JC8: =LOOKUP(JC7-'Inputs (values)'!$H$8,'Inputs (values)'!$C$20:$C$25,'Inputs (values)'!$H$20:$H$25) -> 0.015 | JD8: =LOOKUP(JD7-'Inputs (values)'!$H$8,'Inputs (values)'!$C$20:$C$25,'Inputs (values)'!$H$20:$H$25) -> 0.015 | JE8: =LOOKUP(JE7-'Inputs (values)'!$H$8,'Inputs (values)'!$C$20:$C$25,'Inputs (values)'!$H$20:$H$25) -> 0.015 | JF8: =LOOKUP(JF7-'Inputs (values)'!$H$8,'Inputs (values)'!$C$20:$C$25,'Inputs (values)'!$H$20:$H$25) -> 0.015 | JG8: =LOOKUP(JG7-'Inputs (values)'!$H$8,'Inputs (values)'!$C$20:$C$25,'Inputs (values)'!$H$20:$H$25) -> 0.015 | JH8: =LOOKUP(JH7-'Inputs (values)'!$H$8,'Inputs (values)'!$C$20:$C$25,'Inputs (values)'!$H$20:$H$25) -> 0.015 | JI8: =LOOKUP(JI7-'Inputs (values)'!$H$8,'Inputs (values)'!$C$20:$C$25,'Inputs (values)'!$H$20:$H$25) -> 0.015 | JJ8: =LOOKUP(JJ7-'Inputs (values)'!$H$8,'Inputs (values)'!$C$20:$C$25,'Inputs (values)'!$H$20:$H$25) -> 0.015 | JK8: =LOOKUP(JK7-'Inputs (values)'!$H$8,'Inputs (values)'!$C$20:$C$25,'Inputs (values)'!$H$20:$H$25) -> 0.015 | JL8: =LOOKUP(JL7-'Inputs (values)'!$H$8,'Inputs (values)'!$C$20:$C$25,'Inputs (values)'!$H$20:$H$25) -> 0.015 | JM8: =LOOKUP(JM7-'Inputs (values)'!$H$8,'Inputs (values)'!$C$20:$C$25,'Inputs (values)'!$H$20:$H$25) -> 0.015 | JN8: =LOOKUP(JN7-'Inputs (values)'!$H$8,'Inputs (values)'!$C$20:$C$25,'Inputs (values)'!$H$20:$H$25) -> 0.015 | JO8: =LOOKUP(JO7-'Inputs (values)'!$H$8,'Inputs (values)'!$C$20:$C$25,'Inputs (values)'!$H$20:$H$25) -> 0.015 | JP8: =LOOKUP(JP7-'Inputs (values)'!$H$8,'Inputs (values)'!$C$20:$C$25,'Inputs (values)'!$H$20:$H$25) -> 0.015 | JQ8: =LOOKUP(JQ7-'Inputs (values)'!$H$8,'Inputs (values)'!$C$20:$C$25,'Inputs (values)'!$H$20:$H$25) -> 0.015 | JR8: =LOOKUP(JR7-'Inputs (values)'!$H$8,'Inputs (values)'!$C$20:$C$25,'Inputs (values)'!$H$20:$H$25) -> 0.015 | JS8: =LOOKUP(JS7-'Inputs (values)'!$H$8,'Inputs (values)'!$C$20:$C$25,'Inputs (values)'!$H$20:$H$25) -> 0.015 | JT8: =LOOKUP(JT7-'Inputs (values)'!$H$8,'Inputs (values)'!$C$20:$C$25,'Inputs (values)'!$H$20:$H$25) -> 0.015 | JU8: =LOOKUP(JU7-'Inputs (values)'!$H$8,'Inputs (values)'!$C$20:$C$25,'Inputs (values)'!$H$20:$H$25) -> 0.015 | JV8: =LOOKUP(JV7-'Inputs (values)'!$H$8,'Inputs (values)'!$C$20:$C$25,'Inputs (values)'!$H$20:$H$25) -> 0.015 | JW8: =LOOKUP(JW7-'Inputs (values)'!$H$8,'Inputs (values)'!$C$20:$C$25,'Inputs (values)'!$H$20:$H$25) -> 0.015 | JX8: =LOOKUP(JX7-'Inputs (values)'!$H$8,'Inputs (values)'!$C$20:$C$25,'Inputs (values)'!$H$20:$H$25) -> 0.015 | JY8: =LOOKUP(JY7-'Inputs (values)'!$H$8,'Inputs (values)'!$C$20:$C$25,'Inputs (values)'!$H$20:$H$25) -> 0.015 | JZ8: =LOOKUP(JZ7-'Inputs (values)'!$H$8,'Inputs (values)'!$C$20:$C$25,'Inputs (values)'!$H$20:$H$25) -> 0.015 | KA8: =LOOKUP(KA7-'Inputs (values)'!$H$8,'Inputs (values)'!$C$20:$C$25,'Inputs (values)'!$H$20:$H$25) -> 0.015
C11: Discount factors
H13: Year
H14: ='Inputs (values)'!$H$13 -> 2023 | I14: =H14+1 -> 2024 | J14: =I14+1 -> 2025 | K14: 2026 | L14: 2027 | M14: 2028 | N14: 2029 | O14: 2030 | P14: 2031 | Q14: 2032 | R14: 2033 | S14: 2034 | T14: 2035 | U14: 2036 | V14: 2037 | W14: 2038 | X14: 2039 | Y14: 2040 | Z14: 2041 | AA14: 2042 | AB14: 2043 | AC14: 2044 | AD14: 2045 | AE14: 2046 | AF14: 2047 | AG14: 2048 | AH14: 2049 | AI14: 2050 | AJ14: 2051 | AK14: 2052 | AL14: 2053 | AM14: 2054 | AN14: 2055 | AO14: 2056 | AP14: 2057 | AQ14: 2058 | AR14: 2059 | AS14: 2060 | AT14: 2061 | AU14: 2062 | AV14: 2063 | AW14: 2064 | AX14: 2065 | AY14: 2066 | AZ14: 2067 | BA14: 2068 | BB14: 2069 | BC14: 2070 | BD14: 2071 | BE14: 2072 | BF14: 2073 | BG14: 2074 | BH14: 2075 | BI14: 2076 | BJ14: 2077 | BK14: 2078 | BL14: 2079 | BM14: 2080 | BN14: 2081 | BO14: 2082 | BP14: 2083 | BQ14: 2084 | BR14: 2085 | BS14: 2086 | BT14: 2087 | BU14: 2088 | BV14: =BU14+1 -> 2089 | BW14: 2090 | BX14: 2091 | BY14: 2092 | BZ14: 2093 | CA14: 2094 | CB14: 2095 | CC14: 2096 | CD14: 2097 | CE14: 2098 | CF14: 2099 | CG14: 2100 | CH14: 2101 | CI14: 2102 | CJ14: 2103 | CK14: 2104 | CL14: 2105 | CM14: 2106 | CN14: 2107 | CO14: 2108 | CP14: 2109 | CQ14: 2110 | CR14: 2111 | CS14: 2112 | CT14: 2113 | CU14: 2114 | CV14: 2115 | CW14: 2116 | CX14: 2117 | CY14: 2118 | CZ14: 2119 | DA14: 2120 | DB14: 2121 | DC14: 2122 | DD14: 2123 | DE14: 2124 | DF14: 2125 | DG14: 2126 | DH14: 2127 | DI14: 2128 | DJ14: 2129 | DK14: 2130 | DL14: 2131 | DM14: 2132 | DN14: 2133 | DO14: 2134 | DP14: 2135 | DQ14: 2136 | DR14: 2137 | DS14: 2138 | DT14: 2139 | DU14: 2140 | DV14: 2141 | DW14: 2142 | DX14: 2143 | DY14: 2144 | DZ14: 2145 | EA14: 2146 | EB14: 2147 | EC14: 2148 | ED14: 2149 | EE14: 2150 | EF14: 2151 | EG14: 2152 | EH14: =EG14+1 -> 2153 | EI14: 2154 | EJ14: 2155 | EK14: 2156 | EL14: 2157 | EM14: 2158 | EN14: 2159 | EO14: 2160 | EP14: 2161 | EQ14: 2162 | ER14: 2163 | ES14: 2164 | ET14: 2165 | EU14: 2166 | EV14: 2167 | EW14: 2168 | EX14: 2169 | EY14: 2170 | EZ14: 2171 | FA14: 2172 | FB14: 2173 | FC14: 2174 | FD14: 2175 | FE14: 2176 | FF14: 2177 | FG14: 2178 | FH14: 2179 | FI14: 2180 | FJ14: 2181 | FK14: 2182 | FL14: 2183 | FM14: 2184 | FN14: 2185 | FO14: 2186 | FP14: 2187 | FQ14: 2188 | FR14: 2189 | FS14: 2190 | FT14: 2191 | FU14: 2192 | FV14: 2193 | FW14: 2194 | FX14: 2195 | FY14: 2196 | FZ14: 2197 | GA14: 2198 | GB14: 2199 | GC14: 2200 | GD14: 2201 | GE14: 2202 | GF14: 2203 | GG14: 2204 | GH14: 2205 | GI14: 2206 | GJ14: 2207 | GK14: 2208 | GL14: 2209 | GM14: 2210 | GN14: 2211 | GO14: 2212 | GP14: 2213 | GQ14: 2214 | GR14: 2215 | GS14: 2216 | GT14: =GS14+1 -> 2217 | GU14: 2218 | GV14: 2219 | GW14: 2220 | GX14: 2221 | GY14: 2222 | GZ14: 2223 | HA14: 2224 | HB14: 2225 | HC14: 2226 | HD14: 2227 | HE14: 2228 | HF14: 2229 | HG14: 2230 | HH14: 2231 | HI14: 2232 | HJ14: 2233 | HK14: 2234 | HL14: 2235 | HM14: 2236 | HN14: 2237 | HO14: 2238 | HP14: 2239 | HQ14: 2240 | HR14: 2241 | HS14: 2242 | HT14: 2243 | HU14: 2244 | HV14: 2245 | HW14: 2246 | HX14: 2247 | HY14: 2248 | HZ14: 2249 | IA14: 2250 | IB14: 2251 | IC14: 2252 | ID14: 2253 | IE14: 2254 | IF14: 2255 | IG14: 2256 | IH14: 2257 | II14: 2258 | IJ14: 2259 | IK14: 2260 | IL14: 2261 | IM14: 2262 | IN14: 2263 | IO14: 2264 | IP14: 2265 | IQ14: 2266 | IR14: 2267 | IS14: 2268 | IT14: 2269 | IU14: 2270 | IV14: 2271 | IW14: 2272 | IX14: 2273 | IY14: 2274 | IZ14: 2275 | JA14: 2276 | JB14: 2277 | JC14: 2278 | JD14: 2279 | JE14: 2280 | JF14: =JE14+1 -> 2281 | JG14: 2282 | JH14: 2283 | JI14: 2284 | JJ14: 2285 | JK14: 2286 | JL14: 2287 | JM14: 2288 | JN14: 2289 | JO14: 2290 | JP14: 2291 | JQ14: 2292 | JR14: 2293 | JS14: 2294 | JT14: 2295 | JU14: 2296 | JV14: 2297 | JW14: 2298 | JX14: 2299 | JY14: 2300 | JZ14: 2301 | KA14: 2302
C15: Discount factors | H15: 1 | I15: =H15/(1+I8) -> 0.9661835749 | J15: 0.9335107004 | K15: 0.9019427057 | L15: 0.8714422277 | M15: 0.8419731669 | N15: 0.8135006443 | O15: 0.7859909607 | P15: 0.7594115562 | Q15: 0.7337309722 | R15: 0.7089188137 | S15: 0.6849457137 | T15: 0.6617832983 | U15: 0.6394041529 | V15: 0.6177817903 | W15: 0.5968906186 | X15: 0.5767059117 | Y15: 0.5572037794 | Z15: 0.5383611396 | AA15: 0.5201556904 | AB15: 0.5025658844 | AC15: 0.4855709028 | AD15: 0.4691506308 | AE15: 0.4532856336 | AF15: 0.4379571339 | AG15: 0.4231469893 | AH15: 0.4088376708 | AI15: 0.3950122423 | AJ15: 0.3816543404 | AK15: 0.368748155 | AL15: 0.3562784106 | AM15: 0.3442303484 | AN15: 0.3342042218 | AO15: 0.3244701182 | AP15: 0.3150195322 | AQ15: 0.3058442061 | AR15: 0.2969361224 | AS15: 0.2882874975 | AT15: 0.2798907742 | AU15: 0.2717386158 | AV15: 0.2638238988 | AW15: 0.2561397076 | AX15: 0.2486793277 | AY15: 0.2414362405 | AZ15: 0.234404117 | BA15: 0.2275768126 | BB15: 0.2209483618 | BC15: 0.2145129726 | BD15: 0.2082650219 | BE15: 0.2021990504 | BF15: 0.1963097577 | BG15: 0.1905919978 | BH15: 0.1850407745 | BI15: 0.1796512374 | BJ15: 0.1744186771 | BK15: 0.1693385215 | BL15: 0.1644063315 | BM15: 0.1596177976 | BN15: 0.1549687355 | BO15: 0.150455083 | BP15: 0.1460728961 | BQ15: 0.1418183458 | BR15: 0.1376877143 | BS15: 0.1336773926 | BT15: 0.1297838763 | BU15: =BT15/(1+BU8) -> 0.1260037634 | BV15: 0.1223337508 | BW15: 0.1187706319 | BX15: 0.1153112931 | BY15: 0.1119527117 | BZ15: 0.1086919531 | CA15: 0.1055261681 | CB15: 0.1024525904 | CC15: 0.09946853436 | CD15: 0.09657139259 | CE15: 0.09375863358 | CF15: 0.09102779959 | CG15: 0.08880760936 | CH15: 0.0866415701 | CI15: 0.08452836108 | CJ15: 0.08246669373 | CK15: 0.08045531096 | CL15: 0.0784929863 | CM15: 0.07657852322 | CN15: 0.07471075436 | CO15: 0.07288854084 | CP15: 0.07111077155 | CQ15: 0.06937636249 | CR15: 0.06768425609 | CS15: 0.06603342057 | CT15: 0.06442284934 | CU15: 0.06285156033 | CV15: 0.06131859545 | CW15: 0.05982301995 | CX15: 0.0583639219 | CY15: 0.05694041161 | CZ15: 0.05555162108 | DA15: 0.0541967035 | DB15: 0.05287483268 | DC15: 0.05158520261 | DD15: 0.05032702694 | DE15: 0.04909953848 | DF15: 0.04790198876 | DG15: 0.04673364757 | DH15: 0.04559380251 | DI15: 0.04448175854 | DJ15: 0.0433968376 | DK15: 0.04233837815 | DL15: 0.04130573478 | DM15: 0.04029827783 | DN15: 0.03931539301 | DO15: 0.03835648098 | DP15: 0.03742095706 | DQ15: 0.03650825079 | DR15: 0.03561780565 | DS15: 0.03474907868 | DT15: 0.03390154018 | DU15: 0.03307467334 | DV15: 0.03226797399 | DW15: 0.03148095024 | DX15: 0.03071312218 | DY15: 0.02996402164 | DZ15: 0.02923319184 | EA15: 0.02852018717 | EB15: 0.02782457284 | EC15: 0.02714592473 | ED15: 0.026483829 | EE15: 0.02596453824 | EF15: 0.02545542964 | EG15: =EF15/(1+EG8) -> 0.02495630357 | EH15: 0.02446696429 | EI15: 0.02398721989 | EJ15: 0.02351688224 | EK15: 0.02305576691 | EL15: 0.02260369304 | EM15: 0.02216048338 | EN15: 0.0217259641 | EO15: 0.0212999648 | EP15: 0.02088231843 | EQ15: 0.02047286121 | ER15: 0.02007143256 | ES15: 0.01967787505 | ET15: 0.01929203437 | EU15: 0.01891375918 | EV15: 0.01854290116 | EW15: 0.01817931486 | EX15: 0.01782285771 | EY15: 0.01747338991 | EZ15: 0.01713077442 | FA15: 0.01679487688 | FB15: 0.01646556557 | FC15: 0.01614271135 | FD15: 0.01582618759 | FE15: 0.01551587019 | FF15: 0.01521163744 | FG15: 0.01491337004 | FH15: 0.01462095102 | FI15: 0.01433426571 | FJ15: 0.01405320167 | FK15: 0.0137776487 | FL15: 0.01350749872 | FM15: 0.01324264581 | FN15: 0.01298298609 | FO15: 0.01272841773 | FP15: 0.01247884091 | FQ15: 0.01223415776 | FR15: 0.01199427231 | FS15: 0.0117590905 | FT15: 0.0115285201 | FU15: 0.01130247069 | FV15: 0.01108085361 | FW15: 0.01086358197 | FX15: 0.01065057056 | FY15: 0.01044173585 | FZ15: 0.01023699593 | GA15: 0.01003627052 | GB15: 0.009839480899 | GC15: 0.009646549901 | GD15: 0.009457401864 | GE15: 0.009271962612 | GF15: 0.009090159423 | GG15: 0.008911921003 | GH15: 0.008737177454 | GI15: 0.008565860249 | GJ15: 0.008397902205 | GK15: 0.008233237456 | GL15: 0.008071801427 | GM15: 0.007913530811 | GN15: 0.00775836354 | GO15: 0.007606238765 | GP15: 0.007457096829 | GQ15: 0.007310879244 | GR15: 0.00716752867 | GS15: =GR15/(1+GS8) -> 0.007026988892 | GT15: 0.006889204797 | GU15: 0.00675412235 | GV15: 0.006621688578 | GW15: 0.006491851547 | GX15: 0.00636456034 | GY15: 0.006239765039 | GZ15: 0.006117416705 | HA15: 0.005997467358 | HB15: 0.005908834836 | HC15: 0.005821512153 | HD15: 0.005735479954 | HE15: 0.005650719167 | HF15: 0.005567211001 | HG15: 0.005484936947 | HH15: 0.005403878766 | HI15: 0.005324018488 | HJ15: 0.005245338412 | HK15: 0.005167821096 | HL15: 0.005091449356 | HM15: 0.005016206262 | HN15: 0.004942075135 | HO15: 0.004869039541 | HP15: 0.004797083292 | HQ15: 0.004726190436 | HR15: 0.004656345257 | HS15: 0.004587532273 | HT15: 0.004519736229 | HU15: 0.004452942098 | HV15: 0.004387135072 | HW15: 0.004322300563 | HX15: 0.0042584242 | HY15: 0.004195491823 | HZ15: 0.004133489481 | IA15: 0.004072403429 | IB15: 0.004012220127 | IC15: 0.003952926234 | ID15: 0.003894508605 | IE15: 0.00383695429 | IF15: 0.003780250532 | IG15: 0.003724384761 | IH15: 0.003669344592 | II15: 0.003615117825 | IJ15: 0.003561692438 | IK15: 0.003509056589 | IL15: 0.00345719861 | IM15: 0.003406107005 | IN15: 0.003355770448 | IO15: 0.003306177782 | IP15: 0.003257318011 | IQ15: 0.003209180307 | IR15: 0.003161753997 | IS15: 0.003115028568 | IT15: 0.003068993663 | IU15: 0.003023639077 | IV15: 0.002978954756 | IW15: 0.002934930794 | IX15: 0.002891557433 | IY15: =IX15/(1+IY8) -> 0.002848825057 | IZ15: 0.002806724194 | JA15: 0.002765245511 | JB15: 0.002724379814 | JC15: 0.002684118043 | JD15: 0.002644451274 | JE15: 0.002605370713 | JF15: 0.002566867698 | JG15: 0.002528933693 | JH15: 0.002491560288 | JI15: 0.0024547392 | JJ15: 0.002418462266 | JK15: 0.002382721445 | JL15: 0.002347508812 | JM15: 0.002312816564 | JN15: 0.002278637009 | JO15: 0.00224496257 | JP15: 0.002211785783 | JQ15: 0.002179099294 | JR15: 0.002146895856 | JS15: 0.002115168331 | JT15: 0.002083909686 | JU15: 0.002053112991 | JV15: 0.00202277142 | JW15: 0.001992878246 | JX15: 0.001963426843 | JY15: 0.001934410683 | JZ15: 0.001905823333 | KA15: 0.001877658456
C18: Uprating indices
H20: Year
H21: ='Inputs (values)'!$H$8 -> 2024 | I21: =H21+1 -> 2025 | J21: =I21+1 -> 2026 | K21: 2027 | L21: 2028 | M21: 2029 | N21: 2030 | O21: 2031 | P21: 2032 | Q21: 2033 | R21: 2034 | S21: 2035 | T21: 2036 | U21: 2037 | V21: 2038 | W21: 2039 | X21: 2040 | Y21: 2041 | Z21: 2042 | AA21: 2043 | AB21: 2044 | AC21: 2045 | AD21: 2046 | AE21: 2047 | AF21: 2048 | AG21: 2049 | AH21: 2050 | AI21: 2051 | AJ21: 2052 | AK21: 2053 | AL21: 2054 | AM21: 2055 | AN21: 2056 | AO21: 2057 | AP21: 2058 | AQ21: 2059 | AR21: 2060 | AS21: 2061 | AT21: 2062 | AU21: 2063 | AV21: 2064 | AW21: 2065 | AX21: 2066 | AY21: 2067 | AZ21: 2068 | BA21: 2069 | BB21: 2070 | BC21: 2071 | BD21: 2072 | BE21: 2073 | BF21: 2074 | BG21: 2075 | BH21: 2076 | BI21: 2077 | BJ21: 2078 | BK21: 2079 | BL21: 2080 | BM21: 2081 | BN21: 2082 | BO21: 2083 | BP21: 2084 | BQ21: 2085 | BR21: 2086 | BS21: 2087 | BT21: 2088 | BU21: 2089 | BV21: =BU21+1 -> 2090 | BW21: 2091 | BX21: 2092 | BY21: 2093 | BZ21: 2094 | CA21: 2095 | CB21: 2096 | CC21: 2097 | CD21: 2098 | CE21: 2099 | CF21: 2100 | CG21: 2101 | CH21: 2102 | CI21: 2103 | CJ21: 2104 | CK21: 2105 | CL21: 2106 | CM21: 2107 | CN21: 2108 | CO21: 2109 | CP21: 2110 | CQ21: 2111 | CR21: 2112 | CS21: 2113 | CT21: 2114 | CU21: 2115 | CV21: 2116 | CW21: 2117 | CX21: 2118 | CY21: 2119 | CZ21: 2120 | DA21: 2121 | DB21: 2122 | DC21: 2123 | DD21: 2124 | DE21: 2125 | DF21: 2126 | DG21: 2127 | DH21: 2128 | DI21: 2129 | DJ21: 2130 | DK21: 2131 | DL21: 2132 | DM21: 2133 | DN21: 2134 | DO21: 2135 | DP21: 2136 | DQ21: 2137 | DR21: 2138 | DS21: 2139 | DT21: 2140 | DU21: 2141 | DV21: 2142 | DW21: 2143 | DX21: 2144 | DY21: 2145 | DZ21: 2146 | EA21: 2147 | EB21: 2148 | EC21: 2149 | ED21: 2150 | EE21: 2151 | EF21: 2152 | EG21: 2153 | EH21: =EG21+1 -> 2154 | EI21: 2155 | EJ21: 2156 | EK21: 2157 | EL21: 2158 | EM21: 2159 | EN21: 2160 | EO21: 2161 | EP21: 2162 | EQ21: 2163 | ER21: 2164 | ES21: 2165 | ET21: 2166 | EU21: 2167 | EV21: 2168 | EW21: 2169 | EX21: 2170 | EY21: 2171 | EZ21: 2172 | FA21: 2173 | FB21: 2174 | FC21: 2175 | FD21: 2176 | FE21: 2177 | FF21: 2178 | FG21: 2179 | FH21: 2180 | FI21: 2181 | FJ21: 2182 | FK21: 2183 | FL21: 2184 | FM21: 2185 | FN21: 2186 | FO21: 2187 | FP21: 2188 | FQ21: 2189 | FR21: 2190 | FS21: 2191 | FT21: 2192 | FU21: 2193 | FV21: 2194 | FW21: 2195 | FX21: 2196 | FY21: 2197 | FZ21: 2198 | GA21: 2199 | GB21: 2200 | GC21: 2201 | GD21: 2202 | GE21: 2203 | GF21: 2204 | GG21: 2205 | GH21: 2206 | GI21: 2207 | GJ21: 2208 | GK21: 2209 | GL21: 2210 | GM21: 2211 | GN21: 2212 | GO21: 2213 | GP21: 2214 | GQ21: 2215 | GR21: 2216 | GS21: 2217 | GT21: =GS21+1 -> 2218 | GU21: 2219 | GV21: 2220 | GW21: 2221 | GX21: 2222 | GY21: 2223 | GZ21: 2224 | HA21: 2225 | HB21: 2226 | HC21: 2227 | HD21: 2228 | HE21: 2229 | HF21: 2230 | HG21: 2231 | HH21: 2232 | HI21: 2233 | HJ21: 2234 | HK21: 2235 | HL21: 2236 | HM21: 2237 | HN21: 2238 | HO21: 2239 | HP21: 2240 | HQ21: 2241 | HR21: 2242 | HS21: 2243 | HT21: 2244 | HU21: 2245 | HV21: 2246 | HW21: 2247 | HX21: 2248 | HY21: 2249 | HZ21: 2250 | IA21: 2251 | IB21: 2252 | IC21: 2253 | ID21: 2254 | IE21: 2255 | IF21: 2256 | IG21: 2257 | IH21: 2258 | II21: 2259 | IJ21: 2260 | IK21: 2261 | IL21: 2262 | IM21: 2263 | IN21: 2264 | IO21: 2265 | IP21: 2266 | IQ21: 2267 | IR21: 2268 | IS21: 2269 | IT21: 2270 | IU21: 2271 | IV21: 2272 | IW21: 2273 | IX21: 2274 | IY21: 2275 | IZ21: 2276 | JA21: 2277 | JB21: 2278 | JC21: 2279 | JD21: 2280 | JE21: 2281 | JF21: =JE21+1 -> 2282 | JG21: 2283 | JH21: 2284 | JI21: 2285 | JJ21: 2286 | JK21: 2287 | JL21: 2288 | JM21: 2289 | JN21: 2290 | JO21: 2291 | JP21: 2292 | JQ21: 2293 | JR21: 2294 | JS21: 2295 | JT21: 2296 | JU21: 2297 | JV21: 2298 | JW21: 2299 | JX21: 2300 | JY21: 2301 | JZ21: 2302 | KA21: 2303
C22: Central series | H22: =(INDEX('Inputs (values)'!$H$84:$KV$86,1,MATCH('Calculations (values)'!H$21,'Inputs (values)'!$H$83:'Inputs (values)'!$KV$83,0))/INDEX('Inputs (values)'!$H$84:$KV$86,1,MATCH('Inputs (values)'!$H$10,'Inputs (values)'!$H$83:$KV$83,0)))*(INDEX('Inputs (values)'!$H$62:$KV$62,1,MATCH('Inputs (values)'!$H$12,'Inputs (values)'!$H$83:$KV$83,0))/INDEX('Inputs (values)'!$H$62:$KV$62,1,MATCH('Inputs (values)'!$H$11,'Inputs (values)'!$H$83:$KV$83,0))) -> 1.691117557 | I22: =(INDEX('Inputs (values)'!$H$84:$KV$86,1,MATCH('Calculations (values)'!I$21,'Inputs (values)'!$H$83:'Inputs (values)'!$KV$83,0))/INDEX('Inputs (values)'!$H$84:$KV$86,1,MATCH('Inputs (values)'!$H$10,'Inputs (values)'!$H$83:$KV$83,0)))*(INDEX('Inputs (values)'!$H$62:$KV$62,1,MATCH('Inputs (values)'!$H$12,'Inputs (values)'!$H$83:$KV$83,0))/INDEX('Inputs (values)'!$H$62:$KV$62,1,MATCH('Inputs (values)'!$H$11,'Inputs (values)'!$H$83:$KV$83,0))) -> 1.724712241 | J22: =(INDEX('Inputs (values)'!$H$84:$KV$86,1,MATCH('Calculations (values)'!J$21,'Inputs (values)'!$H$83:'Inputs (values)'!$KV$83,0))/INDEX('Inputs (values)'!$H$84:$KV$86,1,MATCH('Inputs (values)'!$H$10,'Inputs (values)'!$H$83:$KV$83,0)))*(INDEX('Inputs (values)'!$H$62:$KV$62,1,MATCH('Inputs (values)'!$H$12,'Inputs (values)'!$H$83:$KV$83,0))/INDEX('Inputs (values)'!$H$62:$KV$62,1,MATCH('Inputs (values)'!$H$11,'Inputs (values)'!$H$83:$KV$83,0))) -> 1.756158166 | K22: =(INDEX('Inputs (values)'!$H$84:$KV$86,1,MATCH('Calculations (values)'!K$21,'Inputs (values)'!$H$83:'Inputs (values)'!$KV$83,0))/INDEX('Inputs (values)'!$H$84:$KV$86,1,MATCH('Inputs (values)'!$H$10,'Inputs (values)'!$H$83:$KV$83,0)))*(INDEX('Inputs (values)'!$H$62:$KV$62,1,MATCH('Inputs (values)'!$H$12,'Inputs (values)'!$H$83:$KV$83,0))/INDEX('Inputs (values)'!$H$62:$KV$62,1,MATCH('Inputs (values)'!$H$11,'Inputs (values)'!$H$83:$KV$83,0))) -> 1.783357301 | L22: =(INDEX('Inputs (values)'!$H$84:$KV$86,1,MATCH('Calculations (values)'!L$21,'Inputs (values)'!$H$83:'Inputs (values)'!$KV$83,0))/INDEX('Inputs (values)'!$H$84:$KV$86,1,MATCH('Inputs (values)'!$H$10,'Inputs (values)'!$H$83:$KV$83,0)))*(INDEX('Inputs (values)'!$H$62:$KV$62,1,MATCH('Inputs (values)'!$H$12,'Inputs (values)'!$H$83:$KV$83,0))/INDEX('Inputs (values)'!$H$62:$KV$62,1,MATCH('Inputs (values)'!$H$11,'Inputs (values)'!$H$83:$KV$83,0))) -> 1.810546097 | M22: =(INDEX('Inputs (values)'!$H$84:$KV$86,1,MATCH('Calculations (values)'!M$21,'Inputs (values)'!$H$83:'Inputs (values)'!$KV$83,0))/INDEX('Inputs (values)'!$H$84:$KV$86,1,MATCH('Inputs (values)'!$H$10,'Inputs (values)'!$H$83:$KV$83,0)))*(INDEX('Inputs (values)'!$H$62:$KV$62,1,MATCH('Inputs (values)'!$H$12,'Inputs (values)'!$H$83:$KV$83,0))/INDEX('Inputs (values)'!$H$62:$KV$62,1,MATCH('Inputs (values)'!$H$11,'Inputs (values)'!$H$83:$KV$83,0))) -> 1.838987428 | N22: =(INDEX('Inputs (values)'!$H$84:$KV$86,1,MATCH('Calculations (values)'!N$21,'Inputs (values)'!$H$83:'Inputs (values)'!$KV$83,0))/INDEX('Inputs (values)'!$H$84:$KV$86,1,MATCH('Inputs (values)'!$H$10,'Inputs (values)'!$H$83:$KV$83,0)))*(INDEX('Inputs (values)'!$H$62:$KV$62,1,MATCH('Inputs (values)'!$H$12,'Inputs (values)'!$H$83:$KV$83,0))/INDEX('Inputs (values)'!$H$62:$KV$62,1,MATCH('Inputs (values)'!$H$11,'Inputs (values)'!$H$83:$KV$83,0))) -> 1.873119984 | O22: =(INDEX('Inputs (values)'!$H$84:$KV$86,1,MATCH('Calculations (values)'!O$21,'Inputs (values)'!$H$83:'Inputs (values)'!$KV$83,0))/INDEX('Inputs (values)'!$H$84:$KV$86,1,MATCH('Inputs (values)'!$H$10,'Inputs (values)'!$H$83:$KV$83,0)))*(INDEX('Inputs (values)'!$H$62:$KV$62,1,MATCH('Inputs (values)'!$H$12,'Inputs (values)'!$H$83:$KV$83,0))/INDEX('Inputs (values)'!$H$62:$KV$62,1,MATCH('Inputs (values)'!$H$11,'Inputs (values)'!$H$83:$KV$83,0))) -> 1.908095073 | P22: =(INDEX('Inputs (values)'!$H$84:$KV$86,1,MATCH('Calculations (values)'!P$21,'Inputs (values)'!$H$83:'Inputs (values)'!$KV$83,0))/INDEX('Inputs (values)'!$H$84:$KV$86,1,MATCH('Inputs (values)'!$H$10,'Inputs (values)'!$H$83:$KV$83,0)))*(INDEX('Inputs (values)'!$H$62:$KV$62,1,MATCH('Inputs (values)'!$H$12,'Inputs (values)'!$H$83:$KV$83,0))/INDEX('Inputs (values)'!$H$62:$KV$62,1,MATCH('Inputs (values)'!$H$11,'Inputs (values)'!$H$83:$KV$83,0))) -> 1.944553765 | Q22: =(INDEX('Inputs (values)'!$H$84:$KV$86,1,MATCH('Calculations (values)'!Q$21,'Inputs (values)'!$H$83:'Inputs (values)'!$KV$83,0))/INDEX('Inputs (values)'!$H$84:$KV$86,1,MATCH('Inputs (values)'!$H$10,'Inputs (values)'!$H$83:$KV$83,0)))*(INDEX('Inputs (values)'!$H$62:$KV$62,1,MATCH('Inputs (values)'!$H$12,'Inputs (values)'!$H$83:$KV$83,0))/INDEX('Inputs (values)'!$H$62:$KV$62,1,MATCH('Inputs (values)'!$H$11,'Inputs (values)'!$H$83:$KV$83,0))) -> 1.982098518 | R22: =(INDEX('Inputs (values)'!$H$84:$KV$86,1,MATCH('Calculations (values)'!R$21,'Inputs (values)'!$H$83:'Inputs (values)'!$KV$83,0))/INDEX('Inputs (values)'!$H$84:$KV$86,1,MATCH('Inputs (values)'!$H$10,'Inputs (values)'!$H$83:$KV$83,0)))*(INDEX('Inputs (values)'!$H$62:$KV$62,1,MATCH('Inputs (values)'!$H$12,'Inputs (values)'!$H$83:$KV$83,0))/INDEX('Inputs (values)'!$H$62:$KV$62,1,MATCH('Inputs (values)'!$H$11,'Inputs (values)'!$H$83:$KV$83,0))) -> 2.020043004 | S22: =(INDEX('Inputs (values)'!$H$84:$KV$86,1,MATCH('Calculations (values)'!S$21,'Inputs (values)'!$H$83:'Inputs (values)'!$KV$83,0))/INDEX('Inputs (values)'!$H$84:$KV$86,1,MATCH('Inputs (values)'!$H$10,'Inputs (values)'!$H$83:$KV$83,0)))*(INDEX('Inputs (values)'!$H$62:$KV$62,1,MATCH('Inputs (values)'!$H$12,'Inputs (values)'!$H$83:$KV$83,0))/INDEX('Inputs (values)'!$H$62:$KV$62,1,MATCH('Inputs (values)'!$H$11,'Inputs (values)'!$H$83:$KV$83,0))) -> 2.058572367 | T22: =(INDEX('Inputs (values)'!$H$84:$KV$86,1,MATCH('Calculations (values)'!T$21,'Inputs (values)'!$H$83:'Inputs (values)'!$KV$83,0))/INDEX('Inputs (values)'!$H$84:$KV$86,1,MATCH('Inputs (values)'!$H$10,'Inputs (values)'!$H$83:$KV$83,0)))*(INDEX('Inputs (values)'!$H$62:$KV$62,1,MATCH('Inputs (values)'!$H$12,'Inputs (values)'!$H$83:$KV$83,0))/INDEX('Inputs (values)'!$H$62:$KV$62,1,MATCH('Inputs (values)'!$H$11,'Inputs (values)'!$H$83:$KV$83,0))) -> 2.10028035 | U22: =(INDEX('Inputs (values)'!$H$84:$KV$86,1,MATCH('Calculations (values)'!U$21,'Inputs (values)'!$H$83:'Inputs (values)'!$KV$83,0))/INDEX('Inputs (values)'!$H$84:$KV$86,1,MATCH('Inputs (values)'!$H$10,'Inputs (values)'!$H$83:$KV$83,0)))*(INDEX('Inputs (values)'!$H$62:$KV$62,1,MATCH('Inputs (values)'!$H$12,'Inputs (values)'!$H$83:$KV$83,0))/INDEX('Inputs (values)'!$H$62:$KV$62,1,MATCH('Inputs (values)'!$H$11,'Inputs (values)'!$H$83:$KV$83,0))) -> 2.142590211 | V22: =(INDEX('Inputs (values)'!$H$84:$KV$86,1,MATCH('Calculations (values)'!V$21,'Inputs (values)'!$H$83:'Inputs (values)'!$KV$83,0))/INDEX('Inputs (values)'!$H$84:$KV$86,1,MATCH('Inputs (values)'!$H$10,'Inputs (values)'!$H$83:$KV$83,0)))*(INDEX('Inputs (values)'!$H$62:$KV$62,1,MATCH('Inputs (values)'!$H$12,'Inputs (values)'!$H$83:$KV$83,0))/INDEX('Inputs (values)'!$H$62:$KV$62,1,MATCH('Inputs (values)'!$H$11,'Inputs (values)'!$H$83:$KV$83,0))) -> 2.185235441 | W22: =(INDEX('Inputs (values)'!$H$84:$KV$86,1,MATCH('Calculations (values)'!W$21,'Inputs (values)'!$H$83:'Inputs (values)'!$KV$83,0))/INDEX('Inputs (values)'!$H$84:$KV$86,1,MATCH('Inputs (values)'!$H$10,'Inputs (values)'!$H$83:$KV$83,0)))*(INDEX('Inputs (values)'!$H$62:$KV$62,1,MATCH('Inputs (values)'!$H$12,'Inputs (values)'!$H$83:$KV$83,0))/INDEX('Inputs (values)'!$H$62:$KV$62,1,MATCH('Inputs (values)'!$H$11,'Inputs (values)'!$H$83:$KV$83,0))) -> 2.229028691 | X22: =(INDEX('Inputs (values)'!$H$84:$KV$86,1,MATCH('Calculations (values)'!X$21,'Inputs (values)'!$H$83:'Inputs (values)'!$KV$83,0))/INDEX('Inputs (values)'!$H$84:$KV$86,1,MATCH('Inputs (values)'!$H$10,'Inputs (values)'!$H$83:$KV$83,0)))*(INDEX('Inputs (values)'!$H$62:$KV$62,1,MATCH('Inputs (values)'!$H$12,'Inputs (values)'!$H$83:$KV$83,0))/INDEX('Inputs (values)'!$H$62:$KV$62,1,MATCH('Inputs (values)'!$H$11,'Inputs (values)'!$H$83:$KV$83,0))) -> 2.27266474 | Y22: =(INDEX('Inputs (values)'!$H$84:$KV$86,1,MATCH('Calculations (values)'!Y$21,'Inputs (values)'!$H$83:'Inputs (values)'!$KV$83,0))/INDEX('Inputs (values)'!$H$84:$KV$86,1,MATCH('Inputs (values)'!$H$10,'Inputs (values)'!$H$83:$KV$83,0)))*(INDEX('Inputs (values)'!$H$62:$KV$62,1,MATCH('Inputs (values)'!$H$12,'Inputs (values)'!$H$83:$KV$83,0))/INDEX('Inputs (values)'!$H$62:$KV$62,1,MATCH('Inputs (values)'!$H$11,'Inputs (values)'!$H$83:$KV$83,0))) -> 2.316446827 | Z22: =(INDEX('Inputs (values)'!$H$84:$KV$86,1,MATCH('Calculations (values)'!Z$21,'Inputs (values)'!$H$83:'Inputs (values)'!$KV$83,0))/INDEX('Inputs (values)'!$H$84:$KV$86,1,MATCH('Inputs (values)'!$H$10,'Inputs (values)'!$H$83:$KV$83,0)))*(INDEX('Inputs (values)'!$H$62:$KV$62,1,MATCH('Inputs (values)'!$H$12,'Inputs (values)'!$H$83:$KV$83,0))/INDEX('Inputs (values)'!$H$62:$KV$62,1,MATCH('Inputs (values)'!$H$11,'Inputs (values)'!$H$83:$KV$83,0))) -> 2.360529625 | AA22: =(INDEX('Inputs (values)'!$H$84:$KV$86,1,MATCH('Calculations (values)'!AA$21,'Inputs (values)'!$H$83:'Inputs (values)'!$KV$83,0))/INDEX('Inputs (values)'!$H$84:$KV$86,1,MATCH('Inputs (values)'!$H$10,'Inputs (values)'!$H$83:$KV$83,0)))*(INDEX('Inputs (values)'!$H$62:$KV$62,1,MATCH('Inputs (values)'!$H$12,'Inputs (values)'!$H$83:$KV$83,0))/INDEX('Inputs (values)'!$H$62:$KV$62,1,MATCH('Inputs (values)'!$H$11,'Inputs (values)'!$H$83:$KV$83,0))) -> 2.404707032 | AB22: =(INDEX('Inputs (values)'!$H$84:$KV$86,1,MATCH('Calculations (values)'!AB$21,'Inputs (values)'!$H$83:'Inputs (values)'!$KV$83,0))/INDEX('Inputs (values)'!$H$84:$KV$86,1,MATCH('Inputs (values)'!$H$10,'Inputs (values)'!$H$83:$KV$83,0)))*(INDEX('Inputs (values)'!$H$62:$KV$62,1,MATCH('Inputs (values)'!$H$12,'Inputs (values)'!$H$83:$KV$83,0))/INDEX('Inputs (values)'!$H$62:$KV$62,1,MATCH('Inputs (values)'!$H$11,'Inputs (values)'!$H$83:$KV$83,0))) -> 2.448905981 | AC22: =(INDEX('Inputs (values)'!$H$84:$KV$86,1,MATCH('Calculations (values)'!AC$21,'Inputs (values)'!$H$83:'Inputs (values)'!$KV$83,0))/INDEX('Inputs (values)'!$H$84:$KV$86,1,MATCH('Inputs (values)'!$H$10,'Inputs (values)'!$H$83:$KV$83,0)))*(INDEX('Inputs (values)'!$H$62:$KV$62,1,MATCH('Inputs (values)'!$H$12,'Inputs (values)'!$H$83:$KV$83,0))/INDEX('Inputs (values)'!$H$62:$KV$62,1,MATCH('Inputs (values)'!$H$11,'Inputs (values)'!$H$83:$KV$83,0))) -> 2.49377117 | AD22: =(INDEX('Inputs (values)'!$H$84:$KV$86,1,MATCH('Calculations (values)'!AD$21,'Inputs (values)'!$H$83:'Inputs (values)'!$KV$83,0))/INDEX('Inputs (values)'!$H$84:$KV$86,1,MATCH('Inputs (values)'!$H$10,'Inputs (values)'!$H$83:$KV$83,0)))*(INDEX('Inputs (values)'!$H$62:$KV$62,1,MATCH('Inputs (values)'!$H$12,'Inputs (values)'!$H$83:$KV$83,0))/INDEX('Inputs (values)'!$H$62:$KV$62,1,MATCH('Inputs (values)'!$H$11,'Inputs (values)'!$H$83:$KV$83,0))) -> 2.539507353 | AE22: =(INDEX('Inputs (values)'!$H$84:$KV$86,1,MATCH('Calculations (values)'!AE$21,'Inputs (values)'!$H$83:'Inputs (values)'!$KV$83,0))/INDEX('Inputs (values)'!$H$84:$KV$86,1,MATCH('Inputs (values)'!$H$10,'Inputs (values)'!$H$83:$KV$83,0)))*(INDEX('Inputs (values)'!$H$62:$KV$62,1,MATCH('Inputs (values)'!$H$12,'Inputs (values)'!$H$83:$KV$83,0))/INDEX('Inputs (values)'!$H$62:$KV$62,1,MATCH('Inputs (values)'!$H$11,'Inputs (values)'!$H$83:$KV$83,0))) -> 2.585714047 | AF22: =(INDEX('Inputs (values)'!$H$84:$KV$86,1,MATCH('Calculations (values)'!AF$21,'Inputs (values)'!$H$83:'Inputs (values)'!$KV$83,0))/INDEX('Inputs (values)'!$H$84:$KV$86,1,MATCH('Inputs (values)'!$H$10,'Inputs (values)'!$H$83:$KV$83,0)))*(INDEX('Inputs (values)'!$H$62:$KV$62,1,MATCH('Inputs (values)'!$H$12,'Inputs (values)'!$H$83:$KV$83,0))/INDEX('Inputs (values)'!$H$62:$KV$62,1,MATCH('Inputs (values)'!$H$11,'Inputs (values)'!$H$83:$KV$83,0))) -> 2.632147825 | AG22: =(INDEX('Inputs (values)'!$H$84:$KV$86,1,MATCH('Calculations (values)'!AG$21,'Inputs (values)'!$H$83:'Inputs (values)'!$KV$83,0))/INDEX('Inputs (values)'!$H$84:$KV$86,1,MATCH('Inputs (values)'!$H$10,'Inputs (values)'!$H$83:$KV$83,0)))*(INDEX('Inputs (values)'!$H$62:$KV$62,1,MATCH('Inputs (values)'!$H$12,'Inputs (values)'!$H$83:$KV$83,0))/INDEX('Inputs (values)'!$H$62:$KV$62,1,MATCH('Inputs (values)'!$H$11,'Inputs (values)'!$H$83:$KV$83,0))) -> 2.678696226 | AH22: =(INDEX('Inputs (values)'!$H$84:$KV$86,1,MATCH('Calculations (values)'!AH$21,'Inputs (values)'!$H$83:'Inputs (values)'!$KV$83,0))/INDEX('Inputs (values)'!$H$84:$KV$86,1,MATCH('Inputs (values)'!$H$10,'Inputs (values)'!$H$83:$KV$83,0)))*(INDEX('Inputs (values)'!$H$62:$KV$62,1,MATCH('Inputs (values)'!$H$12,'Inputs (values)'!$H$83:$KV$83,0))/INDEX('Inputs (values)'!$H$62:$KV$62,1,MATCH('Inputs (values)'!$H$11,'Inputs (values)'!$H$83:$KV$83,0))) -> 2.725917034 | AI22: =(INDEX('Inputs (values)'!$H$84:$KV$86,1,MATCH('Calculations (values)'!AI$21,'Inputs (values)'!$H$83:'Inputs (values)'!$KV$83,0))/INDEX('Inputs (values)'!$H$84:$KV$86,1,MATCH('Inputs (values)'!$H$10,'Inputs (values)'!$H$83:$KV$83,0)))*(INDEX('Inputs (values)'!$H$62:$KV$62,1,MATCH('Inputs (values)'!$H$12,'Inputs (values)'!$H$83:$KV$83,0))/INDEX('Inputs (values)'!$H$62:$KV$62,1,MATCH('Inputs (values)'!$H$11,'Inputs (values)'!$H$83:$KV$83,0))) -> 2.77381989 | AJ22: =(INDEX('Inputs (values)'!$H$84:$KV$86,1,MATCH('Calculations (values)'!AJ$21,'Inputs (values)'!$H$83:'Inputs (values)'!$KV$83,0))/INDEX('Inputs (values)'!$H$84:$KV$86,1,MATCH('Inputs (values)'!$H$10,'Inputs (values)'!$H$83:$KV$83,0)))*(INDEX('Inputs (values)'!$H$62:$KV$62,1,MATCH('Inputs (values)'!$H$12,'Inputs (values)'!$H$83:$KV$83,0))/INDEX('Inputs (values)'!$H$62:$KV$62,1,MATCH('Inputs (values)'!$H$11,'Inputs (values)'!$H$83:$KV$83,0))) -> 2.82221409 | AK22: =(INDEX('Inputs (values)'!$H$84:$KV$86,1,MATCH('Calculations (values)'!AK$21,'Inputs (values)'!$H$83:'Inputs (values)'!$KV$83,0))/INDEX('Inputs (values)'!$H$84:$KV$86,1,MATCH('Inputs (values)'!$H$10,'Inputs (values)'!$H$83:$KV$83,0)))*(INDEX('Inputs (values)'!$H$62:$KV$62,1,MATCH('Inputs (values)'!$H$12,'Inputs (values)'!$H$83:$KV$83,0))/INDEX('Inputs (values)'!$H$62:$KV$62,1,MATCH('Inputs (values)'!$H$11,'Inputs (values)'!$H$83:$KV$83,0))) -> 2.871103225 | AL22: =(INDEX('Inputs (values)'!$H$84:$KV$86,1,MATCH('Calculations (values)'!AL$21,'Inputs (values)'!$H$83:'Inputs (values)'!$KV$83,0))/INDEX('Inputs (values)'!$H$84:$KV$86,1,MATCH('Inputs (values)'!$H$10,'Inputs (values)'!$H$83:$KV$83,0)))*(INDEX('Inputs (values)'!$H$62:$KV$62,1,MATCH('Inputs (values)'!$H$12,'Inputs (values)'!$H$83:$KV$83,0))/INDEX('Inputs (values)'!$H$62:$KV$62,1,MATCH('Inputs (values)'!$H$11,'Inputs (values)'!$H$83:$KV$83,0))) -> 2.920349075 | AM22: =(INDEX('Inputs (values)'!$H$84:$KV$86,1,MATCH('Calculations (values)'!AM$21,'Inputs (values)'!$H$83:'Inputs (values)'!$KV$83,0))/INDEX('Inputs (values)'!$H$84:$KV$86,1,MATCH('Inputs (values)'!$H$10,'Inputs (values)'!$H$83:$KV$83,0)))*(INDEX('Inputs (values)'!$H$62:$KV$62,1,MATCH('Inputs (values)'!$H$12,'Inputs (values)'!$H$83:$KV$83,0))/INDEX('Inputs (values)'!$H$62:$KV$62,1,MATCH('Inputs (values)'!$H$11,'Inputs (values)'!$H$83:$KV$83,0))) -> 2.969974899 | AN22: =(INDEX('Inputs (values)'!$H$84:$KV$86,1,MATCH('Calculations (values)'!AN$21,'Inputs (values)'!$H$83:'Inputs (values)'!$KV$83,0))/INDEX('Inputs (values)'!$H$84:$KV$86,1,MATCH('Inputs (values)'!$H$10,'Inputs (values)'!$H$83:$KV$83,0)))*(INDEX('Inputs (values)'!$H$62:$KV$62,1,MATCH('Inputs (values)'!$H$12,'Inputs (values)'!$H$83:$KV$83,0))/INDEX('Inputs (values)'!$H$62:$KV$62,1,MATCH('Inputs (values)'!$H$11,'Inputs (values)'!$H$83:$KV$83,0))) -> 3.02002334 | AO22: =(INDEX('Inputs (values)'!$H$84:$KV$86,1,MATCH('Calculations (values)'!AO$21,'Inputs (values)'!$H$83:'Inputs (values)'!$KV$83,0))/INDEX('Inputs (values)'!$H$84:$KV$86,1,MATCH('Inputs (values)'!$H$10,'Inputs (values)'!$H$83:$KV$83,0)))*(INDEX('Inputs (values)'!$H$62:$KV$62,1,MATCH('Inputs (values)'!$H$12,'Inputs (values)'!$H$83:$KV$83,0))/INDEX('Inputs (values)'!$H$62:$KV$62,1,MATCH('Inputs (values)'!$H$11,'Inputs (values)'!$H$83:$KV$83,0))) -> 3.070348948 | AP22: =(INDEX('Inputs (values)'!$H$84:$KV$86,1,MATCH('Calculations (values)'!AP$21,'Inputs (values)'!$H$83:'Inputs (values)'!$KV$83,0))/INDEX('Inputs (values)'!$H$84:$KV$86,1,MATCH('Inputs (values)'!$H$10,'Inputs (values)'!$H$83:$KV$83,0)))*(INDEX('Inputs (values)'!$H$62:$KV$62,1,MATCH('Inputs (values)'!$H$12,'Inputs (values)'!$H$83:$KV$83,0))/INDEX('Inputs (values)'!$H$62:$KV$62,1,MATCH('Inputs (values)'!$H$11,'Inputs (values)'!$H$83:$KV$83,0))) -> 3.121211446 | AQ22: =(INDEX('Inputs (values)'!$H$84:$KV$86,1,MATCH('Calculations (values)'!AQ$21,'Inputs (values)'!$H$83:'Inputs (values)'!$KV$83,0))/INDEX('Inputs (values)'!$H$84:$KV$86,1,MATCH('Inputs (values)'!$H$10,'Inputs (values)'!$H$83:$KV$83,0)))*(INDEX('Inputs (values)'!$H$62:$KV$62,1,MATCH('Inputs (values)'!$H$12,'Inputs (values)'!$H$83:$KV$83,0))/INDEX('Inputs (values)'!$H$62:$KV$62,1,MATCH('Inputs (values)'!$H$11,'Inputs (values)'!$H$83:$KV$83,0))) -> 3.172259595 | AR22: =(INDEX('Inputs (values)'!$H$84:$KV$86,1,MATCH('Calculations (values)'!AR$21,'Inputs (values)'!$H$83:'Inputs (values)'!$KV$83,0))/INDEX('Inputs (values)'!$H$84:$KV$86,1,MATCH('Inputs (values)'!$H$10,'Inputs (values)'!$H$83:$KV$83,0)))*(INDEX('Inputs (values)'!$H$62:$KV$62,1,MATCH('Inputs (values)'!$H$12,'Inputs (values)'!$H$83:$KV$83,0))/INDEX('Inputs (values)'!$H$62:$KV$62,1,MATCH('Inputs (values)'!$H$11,'Inputs (values)'!$H$83:$KV$83,0))) -> 3.224517585 | AS22: =(INDEX('Inputs (values)'!$H$84:$KV$86,1,MATCH('Calculations (values)'!AS$21,'Inputs (values)'!$H$83:'Inputs (values)'!$KV$83,0))/INDEX('Inputs (values)'!$H$84:$KV$86,1,MATCH('Inputs (values)'!$H$10,'Inputs (values)'!$H$83:$KV$83,0)))*(INDEX('Inputs (values)'!$H$62:$KV$62,1,MATCH('Inputs (values)'!$H$12,'Inputs (values)'!$H$83:$KV$83,0))/INDEX('Inputs (values)'!$H$62:$KV$62,1,MATCH('Inputs (values)'!$H$11,'Inputs (values)'!$H$83:$KV$83,0))) -> 3.277065519 | AT22: =(INDEX('Inputs (values)'!$H$84:$KV$86,1,MATCH('Calculations (values)'!AT$21,'Inputs (values)'!$H$83:'Inputs (values)'!$KV$83,0))/INDEX('Inputs (values)'!$H$84:$KV$86,1,MATCH('Inputs (values)'!$H$10,'Inputs (values)'!$H$83:$KV$83,0)))*(INDEX('Inputs (values)'!$H$62:$KV$62,1,MATCH('Inputs (values)'!$H$12,'Inputs (values)'!$H$83:$KV$83,0))/INDEX('Inputs (values)'!$H$62:$KV$62,1,MATCH('Inputs (values)'!$H$11,'Inputs (values)'!$H$83:$KV$83,0))) -> 3.329773641 | AU22: =(INDEX('Inputs (values)'!$H$84:$KV$86,1,MATCH('Calculations (values)'!AU$21,'Inputs (values)'!$H$83:'Inputs (values)'!$KV$83,0))/INDEX('Inputs (values)'!$H$84:$KV$86,1,MATCH('Inputs (values)'!$H$10,'Inputs (values)'!$H$83:$KV$83,0)))*(INDEX('Inputs (values)'!$H$62:$KV$62,1,MATCH('Inputs (values)'!$H$12,'Inputs (values)'!$H$83:$KV$83,0))/INDEX('Inputs (values)'!$H$62:$KV$62,1,MATCH('Inputs (values)'!$H$11,'Inputs (values)'!$H$83:$KV$83,0))) -> 3.382952271 | AV22: =(INDEX('Inputs (values)'!$H$84:$KV$86,1,MATCH('Calculations (values)'!AV$21,'Inputs (values)'!$H$83:'Inputs (values)'!$KV$83,0))/INDEX('Inputs (values)'!$H$84:$KV$86,1,MATCH('Inputs (values)'!$H$10,'Inputs (values)'!$H$83:$KV$83,0)))*(INDEX('Inputs (values)'!$H$62:$KV$62,1,MATCH('Inputs (values)'!$H$12,'Inputs (values)'!$H$83:$KV$83,0))/INDEX('Inputs (values)'!$H$62:$KV$62,1,MATCH('Inputs (values)'!$H$11,'Inputs (values)'!$H$83:$KV$83,0))) -> 3.437110858 | AW22: =(INDEX('Inputs (values)'!$H$84:$KV$86,1,MATCH('Calculations (values)'!AW$21,'Inputs (values)'!$H$83:'Inputs (values)'!$KV$83,0))/INDEX('Inputs (values)'!$H$84:$KV$86,1,MATCH('Inputs (values)'!$H$10,'Inputs (values)'!$H$83:$KV$83,0)))*(INDEX('Inputs (values)'!$H$62:$KV$62,1,MATCH('Inputs (values)'!$H$12,'Inputs (values)'!$H$83:$KV$83,0))/INDEX('Inputs (values)'!$H$62:$KV$62,1,MATCH('Inputs (values)'!$H$11,'Inputs (values)'!$H$83:$KV$83,0))) -> 3.492383721 | AX22: =(INDEX('Inputs (values)'!$H$84:$KV$86,1,MATCH('Calculations (values)'!AX$21,'Inputs (values)'!$H$83:'Inputs (values)'!$KV$83,0))/INDEX('Inputs (values)'!$H$84:$KV$86,1,MATCH('Inputs (values)'!$H$10,'Inputs (values)'!$H$83:$KV$83,0)))*(INDEX('Inputs (values)'!$H$62:$KV$62,1,MATCH('Inputs (values)'!$H$12,'Inputs (values)'!$H$83:$KV$83,0))/INDEX('Inputs (values)'!$H$62:$KV$62,1,MATCH('Inputs (values)'!$H$11,'Inputs (values)'!$H$83:$KV$83,0))) -> 3.548845422 | AY22: =(INDEX('Inputs (values)'!$H$84:$KV$86,1,MATCH('Calculations (values)'!AY$21,'Inputs (values)'!$H$83:'Inputs (values)'!$KV$83,0))/INDEX('Inputs (values)'!$H$84:$KV$86,1,MATCH('Inputs (values)'!$H$10,'Inputs (values)'!$H$83:$KV$83,0)))*(INDEX('Inputs (values)'!$H$62:$KV$62,1,MATCH('Inputs (values)'!$H$12,'Inputs (values)'!$H$83:$KV$83,0))/INDEX('Inputs (values)'!$H$62:$KV$62,1,MATCH('Inputs (values)'!$H$11,'Inputs (values)'!$H$83:$KV$83,0))) -> 3.607120598 | AZ22: =(INDEX('Inputs (values)'!$H$84:$KV$86,1,MATCH('Calculations (values)'!AZ$21,'Inputs (values)'!$H$83:'Inputs (values)'!$KV$83,0))/INDEX('Inputs (values)'!$H$84:$KV$86,1,MATCH('Inputs (values)'!$H$10,'Inputs (values)'!$H$83:$KV$83,0)))*(INDEX('Inputs (values)'!$H$62:$KV$62,1,MATCH('Inputs (values)'!$H$12,'Inputs (values)'!$H$83:$KV$83,0))/INDEX('Inputs (values)'!$H$62:$KV$62,1,MATCH('Inputs (values)'!$H$11,'Inputs (values)'!$H$83:$KV$83,0))) -> 3.668377636 | BA22: =(INDEX('Inputs (values)'!$H$84:$KV$86,1,MATCH('Calculations (values)'!BA$21,'Inputs (values)'!$H$83:'Inputs (values)'!$KV$83,0))/INDEX('Inputs (values)'!$H$84:$KV$86,1,MATCH('Inputs (values)'!$H$10,'Inputs (values)'!$H$83:$KV$83,0)))*(INDEX('Inputs (values)'!$H$62:$KV$62,1,MATCH('Inputs (values)'!$H$12,'Inputs (values)'!$H$83:$KV$83,0))/INDEX('Inputs (values)'!$H$62:$KV$62,1,MATCH('Inputs (values)'!$H$11,'Inputs (values)'!$H$83:$KV$83,0))) -> 3.732424381 | BB22: =(INDEX('Inputs (values)'!$H$84:$KV$86,1,MATCH('Calculations (values)'!BB$21,'Inputs (values)'!$H$83:'Inputs (values)'!$KV$83,0))/INDEX('Inputs (values)'!$H$84:$KV$86,1,MATCH('Inputs (values)'!$H$10,'Inputs (values)'!$H$83:$KV$83,0)))*(INDEX('Inputs (values)'!$H$62:$KV$62,1,MATCH('Inputs (values)'!$H$12,'Inputs (values)'!$H$83:$KV$83,0))/INDEX('Inputs (values)'!$H$62:$KV$62,1,MATCH('Inputs (values)'!$H$11,'Inputs (values)'!$H$83:$KV$83,0))) -> 3.799555594 | BC22: =(INDEX('Inputs (values)'!$H$84:$KV$86,1,MATCH('Calculations (values)'!BC$21,'Inputs (values)'!$H$83:'Inputs (values)'!$KV$83,0))/INDEX('Inputs (values)'!$H$84:$KV$86,1,MATCH('Inputs (values)'!$H$10,'Inputs (values)'!$H$83:$KV$83,0)))*(INDEX('Inputs (values)'!$H$62:$KV$62,1,MATCH('Inputs (values)'!$H$12,'Inputs (values)'!$H$83:$KV$83,0))/INDEX('Inputs (values)'!$H$62:$KV$62,1,MATCH('Inputs (values)'!$H$11,'Inputs (values)'!$H$83:$KV$83,0))) -> 3.868596682 | BD22: =(INDEX('Inputs (values)'!$H$84:$KV$86,1,MATCH('Calculations (values)'!BD$21,'Inputs (values)'!$H$83:'Inputs (values)'!$KV$83,0))/INDEX('Inputs (values)'!$H$84:$KV$86,1,MATCH('Inputs (values)'!$H$10,'Inputs (values)'!$H$83:$KV$83,0)))*(INDEX('Inputs (values)'!$H$62:$KV$62,1,MATCH('Inputs (values)'!$H$12,'Inputs (values)'!$H$83:$KV$83,0))/INDEX('Inputs (values)'!$H$62:$KV$62,1,MATCH('Inputs (values)'!$H$11,'Inputs (values)'!$H$83:$KV$83,0))) -> 3.938517331 | BE22: =(INDEX('Inputs (values)'!$H$84:$KV$86,1,MATCH('Calculations (values)'!BE$21,'Inputs (values)'!$H$83:'Inputs (values)'!$KV$83,0))/INDEX('Inputs (values)'!$H$84:$KV$86,1,MATCH('Inputs (values)'!$H$10,'Inputs (values)'!$H$83:$KV$83,0)))*(INDEX('Inputs (values)'!$H$62:$KV$62,1,MATCH('Inputs (values)'!$H$12,'Inputs (values)'!$H$83:$KV$83,0))/INDEX('Inputs (values)'!$H$62:$KV$62,1,MATCH('Inputs (values)'!$H$11,'Inputs (values)'!$H$83:$KV$83,0))) -> 4.009357315 | BF22: =(INDEX('Inputs (values)'!$H$84:$KV$86,1,MATCH('Calculations (values)'!BF$21,'Inputs (values)'!$H$83:'Inputs (values)'!$KV$83,0))/INDEX('Inputs (values)'!$H$84:$KV$86,1,MATCH('Inputs (values)'!$H$10,'Inputs (values)'!$H$83:$KV$83,0)))*(INDEX('Inputs (values)'!$H$62:$KV$62,1,MATCH('Inputs (values)'!$H$12,'Inputs (values)'!$H$83:$KV$83,0))/INDEX('Inputs (values)'!$H$62:$KV$62,1,MATCH('Inputs (values)'!$H$11,'Inputs (values)'!$H$83:$KV$83,0))) -> 4.069686375 | BG22: =(INDEX('Inputs (values)'!$H$84:$KV$86,1,MATCH('Calculations (values)'!BG$21,'Inputs (values)'!$H$83:'Inputs (values)'!$KV$83,0))/INDEX('Inputs (values)'!$H$84:$KV$86,1,MATCH('Inputs (values)'!$H$10,'Inputs (values)'!$H$83:$KV$83,0)))*(INDEX('Inputs (values)'!$H$62:$KV$62,1,MATCH('Inputs (values)'!$H$12,'Inputs (values)'!$H$83:$KV$83,0))/INDEX('Inputs (values)'!$H$62:$KV$62,1,MATCH('Inputs (values)'!$H$11,'Inputs (values)'!$H$83:$KV$83,0))) -> 4.129891859 | BH22: =(INDEX('Inputs (values)'!$H$84:$KV$86,1,MATCH('Calculations (values)'!BH$21,'Inputs (values)'!$H$83:'Inputs (values)'!$KV$83,0))/INDEX('Inputs (values)'!$H$84:$KV$86,1,MATCH('Inputs (values)'!$H$10,'Inputs (values)'!$H$83:$KV$83,0)))*(INDEX('Inputs (values)'!$H$62:$KV$62,1,MATCH('Inputs (values)'!$H$12,'Inputs (values)'!$H$83:$KV$83,0))/INDEX('Inputs (values)'!$H$62:$KV$62,1,MATCH('Inputs (values)'!$H$11,'Inputs (values)'!$H$83:$KV$83,0))) -> 4.188715375 | BI22: =(INDEX('Inputs (values)'!$H$84:$KV$86,1,MATCH('Calculations (values)'!BI$21,'Inputs (values)'!$H$83:'Inputs (values)'!$KV$83,0))/INDEX('Inputs (values)'!$H$84:$KV$86,1,MATCH('Inputs (values)'!$H$10,'Inputs (values)'!$H$83:$KV$83,0)))*(INDEX('Inputs (values)'!$H$62:$KV$62,1,MATCH('Inputs (values)'!$H$12,'Inputs (values)'!$H$83:$KV$83,0))/INDEX('Inputs (values)'!$H$62:$KV$62,1,MATCH('Inputs (values)'!$H$11,'Inputs (values)'!$H$83:$KV$83,0))) -> 4.248971625 | BJ22: =(INDEX('Inputs (values)'!$H$84:$KV$86,1,MATCH('Calculations (values)'!BJ$21,'Inputs (values)'!$H$83:'Inputs (values)'!$KV$83,0))/INDEX('Inputs (values)'!$H$84:$KV$86,1,MATCH('Inputs (values)'!$H$10,'Inputs (values)'!$H$83:$KV$83,0)))*(INDEX('Inputs (values)'!$H$62:$KV$62,1,MATCH('Inputs (values)'!$H$12,'Inputs (values)'!$H$83:$KV$83,0))/INDEX('Inputs (values)'!$H$62:$KV$62,1,MATCH('Inputs (values)'!$H$11,'Inputs (values)'!$H$83:$KV$83,0))) -> 4.309794261 | BK22: =(INDEX('Inputs (values)'!$H$84:$KV$86,1,MATCH('Calculations (values)'!BK$21,'Inputs (values)'!$H$83:'Inputs (values)'!$KV$83,0))/INDEX('Inputs (values)'!$H$84:$KV$86,1,MATCH('Inputs (values)'!$H$10,'Inputs (values)'!$H$83:$KV$83,0)))*(INDEX('Inputs (values)'!$H$62:$KV$62,1,MATCH('Inputs (values)'!$H$12,'Inputs (values)'!$H$83:$KV$83,0))/INDEX('Inputs (values)'!$H$62:$KV$62,1,MATCH('Inputs (values)'!$H$11,'Inputs (values)'!$H$83:$KV$83,0))) -> 4.370437528 | BL22: =(INDEX('Inputs (values)'!$H$84:$KV$86,1,MATCH('Calculations (values)'!BL$21,'Inputs (values)'!$H$83:'Inputs (values)'!$KV$83,0))/INDEX('Inputs (values)'!$H$84:$KV$86,1,MATCH('Inputs (values)'!$H$10,'Inputs (values)'!$H$83:$KV$83,0)))*(INDEX('Inputs (values)'!$H$62:$KV$62,1,MATCH('Inputs (values)'!$H$12,'Inputs (values)'!$H$83:$KV$83,0))/INDEX('Inputs (values)'!$H$62:$KV$62,1,MATCH('Inputs (values)'!$H$11,'Inputs (values)'!$H$83:$KV$83,0))) -> 4.432198525 | BM22: =(INDEX('Inputs (values)'!$H$84:$KV$86,1,MATCH('Calculations (values)'!BM$21,'Inputs (values)'!$H$83:'Inputs (values)'!$KV$83,0))/INDEX('Inputs (values)'!$H$84:$KV$86,1,MATCH('Inputs (values)'!$H$10,'Inputs (values)'!$H$83:$KV$83,0)))*(INDEX('Inputs (values)'!$H$62:$KV$62,1,MATCH('Inputs (values)'!$H$12,'Inputs (values)'!$H$83:$KV$83,0))/INDEX('Inputs (values)'!$H$62:$KV$62,1,MATCH('Inputs (values)'!$H$11,'Inputs (values)'!$H$83:$KV$83,0))) -> 4.496619085 | BN22: =(INDEX('Inputs (values)'!$H$84:$KV$86,1,MATCH('Calculations (values)'!BN$21,'Inputs (values)'!$H$83:'Inputs (values)'!$KV$83,0))/INDEX('Inputs (values)'!$H$84:$KV$86,1,MATCH('Inputs (values)'!$H$10,'Inputs (values)'!$H$83:$KV$83,0)))*(INDEX('Inputs (values)'!$H$62:$KV$62,1,MATCH('Inputs (values)'!$H$12,'Inputs (values)'!$H$83:$KV$83,0))/INDEX('Inputs (values)'!$H$62:$KV$62,1,MATCH('Inputs (values)'!$H$11,'Inputs (values)'!$H$83:$KV$83,0))) -> 4.563565705 | BO22: =(INDEX('Inputs (values)'!$H$84:$KV$86,1,MATCH('Calculations (values)'!BO$21,'Inputs (values)'!$H$83:'Inputs (values)'!$KV$83,0))/INDEX('Inputs (values)'!$H$84:$KV$86,1,MATCH('Inputs (values)'!$H$10,'Inputs (values)'!$H$83:$KV$83,0)))*(INDEX('Inputs (values)'!$H$62:$KV$62,1,MATCH('Inputs (values)'!$H$12,'Inputs (values)'!$H$83:$KV$83,0))/INDEX('Inputs (values)'!$H$62:$KV$62,1,MATCH('Inputs (values)'!$H$11,'Inputs (values)'!$H$83:$KV$83,0))) -> 4.631851605 | BP22: =(INDEX('Inputs (values)'!$H$84:$KV$86,1,MATCH('Calculations (values)'!BP$21,'Inputs (values)'!$H$83:'Inputs (values)'!$KV$83,0))/INDEX('Inputs (values)'!$H$84:$KV$86,1,MATCH('Inputs (values)'!$H$10,'Inputs (values)'!$H$83:$KV$83,0)))*(INDEX('Inputs (values)'!$H$62:$KV$62,1,MATCH('Inputs (values)'!$H$12,'Inputs (values)'!$H$83:$KV$83,0))/INDEX('Inputs (values)'!$H$62:$KV$62,1,MATCH('Inputs (values)'!$H$11,'Inputs (values)'!$H$83:$KV$83,0))) -> 4.700618559 | BQ22: =(INDEX('Inputs (values)'!$H$84:$KV$86,1,MATCH('Calculations (values)'!BQ$21,'Inputs (values)'!$H$83:'Inputs (values)'!$KV$83,0))/INDEX('Inputs (values)'!$H$84:$KV$86,1,MATCH('Inputs (values)'!$H$10,'Inputs (values)'!$H$83:$KV$83,0)))*(INDEX('Inputs (values)'!$H$62:$KV$62,1,MATCH('Inputs (values)'!$H$12,'Inputs (values)'!$H$83:$KV$83,0))/INDEX('Inputs (values)'!$H$62:$KV$62,1,MATCH('Inputs (values)'!$H$11,'Inputs (values)'!$H$83:$KV$83,0))) -> 4.772300885 | BR22: =(INDEX('Inputs (values)'!$H$84:$KV$86,1,MATCH('Calculations (values)'!BR$21,'Inputs (values)'!$H$83:'Inputs (values)'!$KV$83,0))/INDEX('Inputs (values)'!$H$84:$KV$86,1,MATCH('Inputs (values)'!$H$10,'Inputs (values)'!$H$83:$KV$83,0)))*(INDEX('Inputs (values)'!$H$62:$KV$62,1,MATCH('Inputs (values)'!$H$12,'Inputs (values)'!$H$83:$KV$83,0))/INDEX('Inputs (values)'!$H$62:$KV$62,1,MATCH('Inputs (values)'!$H$11,'Inputs (values)'!$H$83:$KV$83,0))) -> 4.846570641 | BS22: =(INDEX('Inputs (values)'!$H$84:$KV$86,1,MATCH('Calculations (values)'!BS$21,'Inputs (values)'!$H$83:'Inputs (values)'!$KV$83,0))/INDEX('Inputs (values)'!$H$84:$KV$86,1,MATCH('Inputs (values)'!$H$10,'Inputs (values)'!$H$83:$KV$83,0)))*(INDEX('Inputs (values)'!$H$62:$KV$62,1,MATCH('Inputs (values)'!$H$12,'Inputs (values)'!$H$83:$KV$83,0))/INDEX('Inputs (values)'!$H$62:$KV$62,1,MATCH('Inputs (values)'!$H$11,'Inputs (values)'!$H$83:$KV$83,0))) -> 4.922909052 | BT22: =(INDEX('Inputs (values)'!$H$84:$KV$86,1,MATCH('Calculations (values)'!BT$21,'Inputs (values)'!$H$83:'Inputs (values)'!$KV$83,0))/INDEX('Inputs (values)'!$H$84:$KV$86,1,MATCH('Inputs (values)'!$H$10,'Inputs (values)'!$H$83:$KV$83,0)))*(INDEX('Inputs (values)'!$H$62:$KV$62,1,MATCH('Inputs (values)'!$H$12,'Inputs (values)'!$H$83:$KV$83,0))/INDEX('Inputs (values)'!$H$62:$KV$62,1,MATCH('Inputs (values)'!$H$11,'Inputs (values)'!$H$83:$KV$83,0))) -> 5.001496596 | BU22: =(INDEX('Inputs (values)'!$H$84:$KV$86,1,MATCH('Calculations (values)'!BU$21,'Inputs (values)'!$H$83:'Inputs (values)'!$KV$83,0))/INDEX('Inputs (values)'!$H$84:$KV$86,1,MATCH('Inputs (values)'!$H$10,'Inputs (values)'!$H$83:$KV$83,0)))*(INDEX('Inputs (values)'!$H$62:$KV$62,1,MATCH('Inputs (values)'!$H$12,'Inputs (values)'!$H$83:$KV$83,0))/INDEX('Inputs (values)'!$H$62:$KV$62,1,MATCH('Inputs (values)'!$H$11,'Inputs (values)'!$H$83:$KV$83,0))) -> 5.083615895 | BV22: =(INDEX('Inputs (values)'!$H$84:$KV$86,1,MATCH('Calculations (values)'!BV$21,'Inputs (values)'!$H$83:'Inputs (values)'!$KV$83,0))/INDEX('Inputs (values)'!$H$84:$KV$86,1,MATCH('Inputs (values)'!$H$10,'Inputs (values)'!$H$83:$KV$83,0)))*(INDEX('Inputs (values)'!$H$62:$KV$62,1,MATCH('Inputs (values)'!$H$12,'Inputs (values)'!$H$83:$KV$83,0))/INDEX('Inputs (values)'!$H$62:$KV$62,1,MATCH('Inputs (values)'!$H$11,'Inputs (values)'!$H$83:$KV$83,0))) -> 5.165790245 | BW22: =(INDEX('Inputs (values)'!$H$84:$KV$86,1,MATCH('Calculations (values)'!BW$21,'Inputs (values)'!$H$83:'Inputs (values)'!$KV$83,0))/INDEX('Inputs (values)'!$H$84:$KV$86,1,MATCH('Inputs (values)'!$H$10,'Inputs (values)'!$H$83:$KV$83,0)))*(INDEX('Inputs (values)'!$H$62:$KV$62,1,MATCH('Inputs (values)'!$H$12,'Inputs (values)'!$H$83:$KV$83,0))/INDEX('Inputs (values)'!$H$62:$KV$62,1,MATCH('Inputs (values)'!$H$11,'Inputs (values)'!$H$83:$KV$83,0))) -> 5.252299114 | BX22: =(INDEX('Inputs (values)'!$H$84:$KV$86,1,MATCH('Calculations (values)'!BX$21,'Inputs (values)'!$H$83:'Inputs (values)'!$KV$83,0))/INDEX('Inputs (values)'!$H$84:$KV$86,1,MATCH('Inputs (values)'!$H$10,'Inputs (values)'!$H$83:$KV$83,0)))*(INDEX('Inputs (values)'!$H$62:$KV$62,1,MATCH('Inputs (values)'!$H$12,'Inputs (values)'!$H$83:$KV$83,0))/INDEX('Inputs (values)'!$H$62:$KV$62,1,MATCH('Inputs (values)'!$H$11,'Inputs (values)'!$H$83:$KV$83,0))) -> 5.335853838 | BY22: =(INDEX('Inputs (values)'!$H$84:$KV$86,1,MATCH('Calculations (values)'!BY$21,'Inputs (values)'!$H$83:'Inputs (values)'!$KV$83,0))/INDEX('Inputs (values)'!$H$84:$KV$86,1,MATCH('Inputs (values)'!$H$10,'Inputs (values)'!$H$83:$KV$83,0)))*(INDEX('Inputs (values)'!$H$62:$KV$62,1,MATCH('Inputs (values)'!$H$12,'Inputs (values)'!$H$83:$KV$83,0))/INDEX('Inputs (values)'!$H$62:$KV$62,1,MATCH('Inputs (values)'!$H$11,'Inputs (values)'!$H$83:$KV$83,0))) -> 5.420070802 | BZ22: =(INDEX('Inputs (values)'!$H$84:$KV$86,1,MATCH('Calculations (values)'!BZ$21,'Inputs (values)'!$H$83:'Inputs (values)'!$KV$83,0))/INDEX('Inputs (values)'!$H$84:$KV$86,1,MATCH('Inputs (values)'!$H$10,'Inputs (values)'!$H$83:$KV$83,0)))*(INDEX('Inputs (values)'!$H$62:$KV$62,1,MATCH('Inputs (values)'!$H$12,'Inputs (values)'!$H$83:$KV$83,0))/INDEX('Inputs (values)'!$H$62:$KV$62,1,MATCH('Inputs (values)'!$H$11,'Inputs (values)'!$H$83:$KV$83,0))) -> 5.505340497 | CA22: =(INDEX('Inputs (values)'!$H$84:$KV$86,1,MATCH('Calculations (values)'!CA$21,'Inputs (values)'!$H$83:'Inputs (values)'!$KV$83,0))/INDEX('Inputs (values)'!$H$84:$KV$86,1,MATCH('Inputs (values)'!$H$10,'Inputs (values)'!$H$83:$KV$83,0)))*(INDEX('Inputs (values)'!$H$62:$KV$62,1,MATCH('Inputs (values)'!$H$12,'Inputs (values)'!$H$83:$KV$83,0))/INDEX('Inputs (values)'!$H$62:$KV$62,1,MATCH('Inputs (values)'!$H$11,'Inputs (values)'!$H$83:$KV$83,0))) -> 5.591739825 | CB22: =(INDEX('Inputs (values)'!$H$84:$KV$86,1,MATCH('Calculations (values)'!CB$21,'Inputs (values)'!$H$83:'Inputs (values)'!$KV$83,0))/INDEX('Inputs (values)'!$H$84:$KV$86,1,MATCH('Inputs (values)'!$H$10,'Inputs (values)'!$H$83:$KV$83,0)))*(INDEX('Inputs (values)'!$H$62:$KV$62,1,MATCH('Inputs (values)'!$H$12,'Inputs (values)'!$H$83:$KV$83,0))/INDEX('Inputs (values)'!$H$62:$KV$62,1,MATCH('Inputs (values)'!$H$11,'Inputs (values)'!$H$83:$KV$83,0))) -> 5.679351976 | CC22: =(INDEX('Inputs (values)'!$H$84:$KV$86,1,MATCH('Calculations (values)'!CC$21,'Inputs (values)'!$H$83:'Inputs (values)'!$KV$83,0))/INDEX('Inputs (values)'!$H$84:$KV$86,1,MATCH('Inputs (values)'!$H$10,'Inputs (values)'!$H$83:$KV$83,0)))*(INDEX('Inputs (values)'!$H$62:$KV$62,1,MATCH('Inputs (values)'!$H$12,'Inputs (values)'!$H$83:$KV$83,0))/INDEX('Inputs (values)'!$H$62:$KV$62,1,MATCH('Inputs (values)'!$H$11,'Inputs (values)'!$H$83:$KV$83,0))) -> 5.768238781 | CD22: =(INDEX('Inputs (values)'!$H$84:$KV$86,1,MATCH('Calculations (values)'!CD$21,'Inputs (values)'!$H$83:'Inputs (values)'!$KV$83,0))/INDEX('Inputs (values)'!$H$84:$KV$86,1,MATCH('Inputs (values)'!$H$10,'Inputs (values)'!$H$83:$KV$83,0)))*(INDEX('Inputs (values)'!$H$62:$KV$62,1,MATCH('Inputs (values)'!$H$12,'Inputs (values)'!$H$83:$KV$83,0))/INDEX('Inputs (values)'!$H$62:$KV$62,1,MATCH('Inputs (values)'!$H$11,'Inputs (values)'!$H$83:$KV$83,0))) -> 5.858399173 | CE22: =(INDEX('Inputs (values)'!$H$84:$KV$86,1,MATCH('Calculations (values)'!CE$21,'Inputs (values)'!$H$83:'Inputs (values)'!$KV$83,0))/INDEX('Inputs (values)'!$H$84:$KV$86,1,MATCH('Inputs (values)'!$H$10,'Inputs (values)'!$H$83:$KV$83,0)))*(INDEX('Inputs (values)'!$H$62:$KV$62,1,MATCH('Inputs (values)'!$H$12,'Inputs (values)'!$H$83:$KV$83,0))/INDEX('Inputs (values)'!$H$62:$KV$62,1,MATCH('Inputs (values)'!$H$11,'Inputs (values)'!$H$83:$KV$83,0))) -> 5.949829102 | CF22: =(INDEX('Inputs (values)'!$H$84:$KV$86,1,MATCH('Calculations (values)'!CF$21,'Inputs (values)'!$H$83:'Inputs (values)'!$KV$83,0))/INDEX('Inputs (values)'!$H$84:$KV$86,1,MATCH('Inputs (values)'!$H$10,'Inputs (values)'!$H$83:$KV$83,0)))*(INDEX('Inputs (values)'!$H$62:$KV$62,1,MATCH('Inputs (values)'!$H$12,'Inputs (values)'!$H$83:$KV$83,0))/INDEX('Inputs (values)'!$H$62:$KV$62,1,MATCH('Inputs (values)'!$H$11,'Inputs (values)'!$H$83:$KV$83,0))) -> 6.042510206 | CG22: =(INDEX('Inputs (values)'!$H$84:$KV$86,1,MATCH('Calculations (values)'!CG$21,'Inputs (values)'!$H$83:'Inputs (values)'!$KV$83,0))/INDEX('Inputs (values)'!$H$84:$KV$86,1,MATCH('Inputs (values)'!$H$10,'Inputs (values)'!$H$83:$KV$83,0)))*(INDEX('Inputs (values)'!$H$62:$KV$62,1,MATCH('Inputs (values)'!$H$12,'Inputs (values)'!$H$83:$KV$83,0))/INDEX('Inputs (values)'!$H$62:$KV$62,1,MATCH('Inputs (values)'!$H$11,'Inputs (values)'!$H$83:$KV$83,0))) -> 6.136635012 | CH22: =(INDEX('Inputs (values)'!$H$84:$KV$86,1,MATCH('Calculations (values)'!CH$21,'Inputs (values)'!$H$83:'Inputs (values)'!$KV$83,0))/INDEX('Inputs (values)'!$H$84:$KV$86,1,MATCH('Inputs (values)'!$H$10,'Inputs (values)'!$H$83:$KV$83,0)))*(INDEX('Inputs (values)'!$H$62:$KV$62,1,MATCH('Inputs (values)'!$H$12,'Inputs (values)'!$H$83:$KV$83,0))/INDEX('Inputs (values)'!$H$62:$KV$62,1,MATCH('Inputs (values)'!$H$11,'Inputs (values)'!$H$83:$KV$83,0))) -> 6.23222601 | CI22: =(INDEX('Inputs (values)'!$H$84:$KV$86,1,MATCH('Calculations (values)'!CI$21,'Inputs (values)'!$H$83:'Inputs (values)'!$KV$83,0))/INDEX('Inputs (values)'!$H$84:$KV$86,1,MATCH('Inputs (values)'!$H$10,'Inputs (values)'!$H$83:$KV$83,0)))*(INDEX('Inputs (values)'!$H$62:$KV$62,1,MATCH('Inputs (values)'!$H$12,'Inputs (values)'!$H$83:$KV$83,0))/INDEX('Inputs (values)'!$H$62:$KV$62,1,MATCH('Inputs (values)'!$H$11,'Inputs (values)'!$H$83:$KV$83,0))) -> 6.329306039 | CJ22: =(INDEX('Inputs (values)'!$H$84:$KV$86,1,MATCH('Calculations (values)'!CJ$21,'Inputs (values)'!$H$83:'Inputs (values)'!$KV$83,0))/INDEX('Inputs (values)'!$H$84:$KV$86,1,MATCH('Inputs (values)'!$H$10,'Inputs (values)'!$H$83:$KV$83,0)))*(INDEX('Inputs (values)'!$H$62:$KV$62,1,MATCH('Inputs (values)'!$H$12,'Inputs (values)'!$H$83:$KV$83,0))/INDEX('Inputs (values)'!$H$62:$KV$62,1,MATCH('Inputs (values)'!$H$11,'Inputs (values)'!$H$83:$KV$83,0))) -> 6.427898294 | CK22: =(INDEX('Inputs (values)'!$H$84:$KV$86,1,MATCH('Calculations (values)'!CK$21,'Inputs (values)'!$H$83:'Inputs (values)'!$KV$83,0))/INDEX('Inputs (values)'!$H$84:$KV$86,1,MATCH('Inputs (values)'!$H$10,'Inputs (values)'!$H$83:$KV$83,0)))*(INDEX('Inputs (values)'!$H$62:$KV$62,1,MATCH('Inputs (values)'!$H$12,'Inputs (values)'!$H$83:$KV$83,0))/INDEX('Inputs (values)'!$H$62:$KV$62,1,MATCH('Inputs (values)'!$H$11,'Inputs (values)'!$H$83:$KV$83,0))) -> 6.528026331 | CL22: =(INDEX('Inputs (values)'!$H$84:$KV$86,1,MATCH('Calculations (values)'!CL$21,'Inputs (values)'!$H$83:'Inputs (values)'!$KV$83,0))/INDEX('Inputs (values)'!$H$84:$KV$86,1,MATCH('Inputs (values)'!$H$10,'Inputs (values)'!$H$83:$KV$83,0)))*(INDEX('Inputs (values)'!$H$62:$KV$62,1,MATCH('Inputs (values)'!$H$12,'Inputs (values)'!$H$83:$KV$83,0))/INDEX('Inputs (values)'!$H$62:$KV$62,1,MATCH('Inputs (values)'!$H$11,'Inputs (values)'!$H$83:$KV$83,0))) -> 6.629714072 | CM22: =(INDEX('Inputs (values)'!$H$84:$KV$86,1,MATCH('Calculations (values)'!CM$21,'Inputs (values)'!$H$83:'Inputs (values)'!$KV$83,0))/INDEX('Inputs (values)'!$H$84:$KV$86,1,MATCH('Inputs (values)'!$H$10,'Inputs (values)'!$H$83:$KV$83,0)))*(INDEX('Inputs (values)'!$H$62:$KV$62,1,MATCH('Inputs (values)'!$H$12,'Inputs (values)'!$H$83:$KV$83,0))/INDEX('Inputs (values)'!$H$62:$KV$62,1,MATCH('Inputs (values)'!$H$11,'Inputs (values)'!$H$83:$KV$83,0))) -> 6.732985814 | CN22: =(INDEX('Inputs (values)'!$H$84:$KV$86,1,MATCH('Calculations (values)'!CN$21,'Inputs (values)'!$H$83:'Inputs (values)'!$KV$83,0))/INDEX('Inputs (values)'!$H$84:$KV$86,1,MATCH('Inputs (values)'!$H$10,'Inputs (values)'!$H$83:$KV$83,0)))*(INDEX('Inputs (values)'!$H$62:$KV$62,1,MATCH('Inputs (values)'!$H$12,'Inputs (values)'!$H$83:$KV$83,0))/INDEX('Inputs (values)'!$H$62:$KV$62,1,MATCH('Inputs (values)'!$H$11,'Inputs (values)'!$H$83:$KV$83,0))) -> 6.83786623 | CO22: =(INDEX('Inputs (values)'!$H$84:$KV$86,1,MATCH('Calculations (values)'!CO$21,'Inputs (values)'!$H$83:'Inputs (values)'!$KV$83,0))/INDEX('Inputs (values)'!$H$84:$KV$86,1,MATCH('Inputs (values)'!$H$10,'Inputs (values)'!$H$83:$KV$83,0)))*(INDEX('Inputs (values)'!$H$62:$KV$62,1,MATCH('Inputs (values)'!$H$12,'Inputs (values)'!$H$83:$KV$83,0))/INDEX('Inputs (values)'!$H$62:$KV$62,1,MATCH('Inputs (values)'!$H$11,'Inputs (values)'!$H$83:$KV$83,0))) -> 6.944380379 | CP22: =(INDEX('Inputs (values)'!$H$84:$KV$86,1,MATCH('Calculations (values)'!CP$21,'Inputs (values)'!$H$83:'Inputs (values)'!$KV$83,0))/INDEX('Inputs (values)'!$H$84:$KV$86,1,MATCH('Inputs (values)'!$H$10,'Inputs (values)'!$H$83:$KV$83,0)))*(INDEX('Inputs (values)'!$H$62:$KV$62,1,MATCH('Inputs (values)'!$H$12,'Inputs (values)'!$H$83:$KV$83,0))/INDEX('Inputs (values)'!$H$62:$KV$62,1,MATCH('Inputs (values)'!$H$11,'Inputs (values)'!$H$83:$KV$83,0))) -> 7.052553711 | CQ22: =(INDEX('Inputs (values)'!$H$84:$KV$86,1,MATCH('Calculations (values)'!CQ$21,'Inputs (values)'!$H$83:'Inputs (values)'!$KV$83,0))/INDEX('Inputs (values)'!$H$84:$KV$86,1,MATCH('Inputs (values)'!$H$10,'Inputs (values)'!$H$83:$KV$83,0)))*(INDEX('Inputs (values)'!$H$62:$KV$62,1,MATCH('Inputs (values)'!$H$12,'Inputs (values)'!$H$83:$KV$83,0))/INDEX('Inputs (values)'!$H$62:$KV$62,1,MATCH('Inputs (values)'!$H$11,'Inputs (values)'!$H$83:$KV$83,0))) -> 7.162412069 | CR22: =(INDEX('Inputs (values)'!$H$84:$KV$86,1,MATCH('Calculations (values)'!CR$21,'Inputs (values)'!$H$83:'Inputs (values)'!$KV$83,0))/INDEX('Inputs (values)'!$H$84:$KV$86,1,MATCH('Inputs (values)'!$H$10,'Inputs (values)'!$H$83:$KV$83,0)))*(INDEX('Inputs (values)'!$H$62:$KV$62,1,MATCH('Inputs (values)'!$H$12,'Inputs (values)'!$H$83:$KV$83,0))/INDEX('Inputs (values)'!$H$62:$KV$62,1,MATCH('Inputs (values)'!$H$11,'Inputs (values)'!$H$83:$KV$83,0))) -> 7.273981703 | CS22: =(INDEX('Inputs (values)'!$H$84:$KV$86,1,MATCH('Calculations (values)'!CS$21,'Inputs (values)'!$H$83:'Inputs (values)'!$KV$83,0))/INDEX('Inputs (values)'!$H$84:$KV$86,1,MATCH('Inputs (values)'!$H$10,'Inputs (values)'!$H$83:$KV$83,0)))*(INDEX('Inputs (values)'!$H$62:$KV$62,1,MATCH('Inputs (values)'!$H$12,'Inputs (values)'!$H$83:$KV$83,0))/INDEX('Inputs (values)'!$H$62:$KV$62,1,MATCH('Inputs (values)'!$H$11,'Inputs (values)'!$H$83:$KV$83,0))) -> 7.387289268 | CT22: =(INDEX('Inputs (values)'!$H$84:$KV$86,1,MATCH('Calculations (values)'!CT$21,'Inputs (values)'!$H$83:'Inputs (values)'!$KV$83,0))/INDEX('Inputs (values)'!$H$84:$KV$86,1,MATCH('Inputs (values)'!$H$10,'Inputs (values)'!$H$83:$KV$83,0)))*(INDEX('Inputs (values)'!$H$62:$KV$62,1,MATCH('Inputs (values)'!$H$12,'Inputs (values)'!$H$83:$KV$83,0))/INDEX('Inputs (values)'!$H$62:$KV$62,1,MATCH('Inputs (values)'!$H$11,'Inputs (values)'!$H$83:$KV$83,0))) -> 7.502361837 | CU22: =(INDEX('Inputs (values)'!$H$84:$KV$86,1,MATCH('Calculations (values)'!CU$21,'Inputs (values)'!$H$83:'Inputs (values)'!$KV$83,0))/INDEX('Inputs (values)'!$H$84:$KV$86,1,MATCH('Inputs (values)'!$H$10,'Inputs (values)'!$H$83:$KV$83,0)))*(INDEX('Inputs (values)'!$H$62:$KV$62,1,MATCH('Inputs (values)'!$H$12,'Inputs (values)'!$H$83:$KV$83,0))/INDEX('Inputs (values)'!$H$62:$KV$62,1,MATCH('Inputs (values)'!$H$11,'Inputs (values)'!$H$83:$KV$83,0))) -> 7.619226903 | CV22: =(INDEX('Inputs (values)'!$H$84:$KV$86,1,MATCH('Calculations (values)'!CV$21,'Inputs (values)'!$H$83:'Inputs (values)'!$KV$83,0))/INDEX('Inputs (values)'!$H$84:$KV$86,1,MATCH('Inputs (values)'!$H$10,'Inputs (values)'!$H$83:$KV$83,0)))*(INDEX('Inputs (values)'!$H$62:$KV$62,1,MATCH('Inputs (values)'!$H$12,'Inputs (values)'!$H$83:$KV$83,0))/INDEX('Inputs (values)'!$H$62:$KV$62,1,MATCH('Inputs (values)'!$H$11,'Inputs (values)'!$H$83:$KV$83,0))) -> 7.737912389 | CW22: =(INDEX('Inputs (values)'!$H$84:$KV$86,1,MATCH('Calculations (values)'!CW$21,'Inputs (values)'!$H$83:'Inputs (values)'!$KV$83,0))/INDEX('Inputs (values)'!$H$84:$KV$86,1,MATCH('Inputs (values)'!$H$10,'Inputs (values)'!$H$83:$KV$83,0)))*(INDEX('Inputs (values)'!$H$62:$KV$62,1,MATCH('Inputs (values)'!$H$12,'Inputs (values)'!$H$83:$KV$83,0))/INDEX('Inputs (values)'!$H$62:$KV$62,1,MATCH('Inputs (values)'!$H$11,'Inputs (values)'!$H$83:$KV$83,0))) -> 7.85844665 | CX22: =(INDEX('Inputs (values)'!$H$84:$KV$86,1,MATCH('Calculations (values)'!CX$21,'Inputs (values)'!$H$83:'Inputs (values)'!$KV$83,0))/INDEX('Inputs (values)'!$H$84:$KV$86,1,MATCH('Inputs (values)'!$H$10,'Inputs (values)'!$H$83:$KV$83,0)))*(INDEX('Inputs (values)'!$H$62:$KV$62,1,MATCH('Inputs (values)'!$H$12,'Inputs (values)'!$H$83:$KV$83,0))/INDEX('Inputs (values)'!$H$62:$KV$62,1,MATCH('Inputs (values)'!$H$11,'Inputs (values)'!$H$83:$KV$83,0))) -> 7.980858487 | CY22: =(INDEX('Inputs (values)'!$H$84:$KV$86,1,MATCH('Calculations (values)'!CY$21,'Inputs (values)'!$H$83:'Inputs (values)'!$KV$83,0))/INDEX('Inputs (values)'!$H$84:$KV$86,1,MATCH('Inputs (values)'!$H$10,'Inputs (values)'!$H$83:$KV$83,0)))*(INDEX('Inputs (values)'!$H$62:$KV$62,1,MATCH('Inputs (values)'!$H$12,'Inputs (values)'!$H$83:$KV$83,0))/INDEX('Inputs (values)'!$H$62:$KV$62,1,MATCH('Inputs (values)'!$H$11,'Inputs (values)'!$H$83:$KV$83,0))) -> 8.105177145 | CZ22: =(INDEX('Inputs (values)'!$H$84:$KV$86,1,MATCH('Calculations (values)'!CZ$21,'Inputs (values)'!$H$83:'Inputs (values)'!$KV$83,0))/INDEX('Inputs (values)'!$H$84:$KV$86,1,MATCH('Inputs (values)'!$H$10,'Inputs (values)'!$H$83:$KV$83,0)))*(INDEX('Inputs (values)'!$H$62:$KV$62,1,MATCH('Inputs (values)'!$H$12,'Inputs (values)'!$H$83:$KV$83,0))/INDEX('Inputs (values)'!$H$62:$KV$62,1,MATCH('Inputs (values)'!$H$11,'Inputs (values)'!$H$83:$KV$83,0))) -> 8.231432327 | DA22: =(INDEX('Inputs (values)'!$H$84:$KV$86,1,MATCH('Calculations (values)'!DA$21,'Inputs (values)'!$H$83:'Inputs (values)'!$KV$83,0))/INDEX('Inputs (values)'!$H$84:$KV$86,1,MATCH('Inputs (values)'!$H$10,'Inputs (values)'!$H$83:$KV$83,0)))*(INDEX('Inputs (values)'!$H$62:$KV$62,1,MATCH('Inputs (values)'!$H$12,'Inputs (values)'!$H$83:$KV$83,0))/INDEX('Inputs (values)'!$H$62:$KV$62,1,MATCH('Inputs (values)'!$H$11,'Inputs (values)'!$H$83:$KV$83,0))) -> 8.3596542 | DB22: =(INDEX('Inputs (values)'!$H$84:$KV$86,1,MATCH('Calculations (values)'!DB$21,'Inputs (values)'!$H$83:'Inputs (values)'!$KV$83,0))/INDEX('Inputs (values)'!$H$84:$KV$86,1,MATCH('Inputs (values)'!$H$10,'Inputs (values)'!$H$83:$KV$83,0)))*(INDEX('Inputs (values)'!$H$62:$KV$62,1,MATCH('Inputs (values)'!$H$12,'Inputs (values)'!$H$83:$KV$83,0))/INDEX('Inputs (values)'!$H$62:$KV$62,1,MATCH('Inputs (values)'!$H$11,'Inputs (values)'!$H$83:$KV$83,0))) -> 8.489873398 | DC22: =(INDEX('Inputs (values)'!$H$84:$KV$86,1,MATCH('Calculations (values)'!DC$21,'Inputs (values)'!$H$83:'Inputs (values)'!$KV$83,0))/INDEX('Inputs (values)'!$H$84:$KV$86,1,MATCH('Inputs (values)'!$H$10,'Inputs (values)'!$H$83:$KV$83,0)))*(INDEX('Inputs (values)'!$H$62:$KV$62,1,MATCH('Inputs (values)'!$H$12,'Inputs (values)'!$H$83:$KV$83,0))/INDEX('Inputs (values)'!$H$62:$KV$62,1,MATCH('Inputs (values)'!$H$11,'Inputs (values)'!$H$83:$KV$83,0))) -> 8.622121034 | DD22: =(INDEX('Inputs (values)'!$H$84:$KV$86,1,MATCH('Calculations (values)'!DD$21,'Inputs (values)'!$H$83:'Inputs (values)'!$KV$83,0))/INDEX('Inputs (values)'!$H$84:$KV$86,1,MATCH('Inputs (values)'!$H$10,'Inputs (values)'!$H$83:$KV$83,0)))*(INDEX('Inputs (values)'!$H$62:$KV$62,1,MATCH('Inputs (values)'!$H$12,'Inputs (values)'!$H$83:$KV$83,0))/INDEX('Inputs (values)'!$H$62:$KV$62,1,MATCH('Inputs (values)'!$H$11,'Inputs (values)'!$H$83:$KV$83,0))) -> 8.756428705 | DE22: =(INDEX('Inputs (values)'!$H$84:$KV$86,1,MATCH('Calculations (values)'!DE$21,'Inputs (values)'!$H$83:'Inputs (values)'!$KV$83,0))/INDEX('Inputs (values)'!$H$84:$KV$86,1,MATCH('Inputs (values)'!$H$10,'Inputs (values)'!$H$83:$KV$83,0)))*(INDEX('Inputs (values)'!$H$62:$KV$62,1,MATCH('Inputs (values)'!$H$12,'Inputs (values)'!$H$83:$KV$83,0))/INDEX('Inputs (values)'!$H$62:$KV$62,1,MATCH('Inputs (values)'!$H$11,'Inputs (values)'!$H$83:$KV$83,0))) -> 8.8928285 | DF22: =(INDEX('Inputs (values)'!$H$84:$KV$86,1,MATCH('Calculations (values)'!DF$21,'Inputs (values)'!$H$83:'Inputs (values)'!$KV$83,0))/INDEX('Inputs (values)'!$H$84:$KV$86,1,MATCH('Inputs (values)'!$H$10,'Inputs (values)'!$H$83:$KV$83,0)))*(INDEX('Inputs (values)'!$H$62:$KV$62,1,MATCH('Inputs (values)'!$H$12,'Inputs (values)'!$H$83:$KV$83,0))/INDEX('Inputs (values)'!$H$62:$KV$62,1,MATCH('Inputs (values)'!$H$11,'Inputs (values)'!$H$83:$KV$83,0))) -> 9.03135301 | DG22: =(INDEX('Inputs (values)'!$H$84:$KV$86,1,MATCH('Calculations (values)'!DG$21,'Inputs (values)'!$H$83:'Inputs (values)'!$KV$83,0))/INDEX('Inputs (values)'!$H$84:$KV$86,1,MATCH('Inputs (values)'!$H$10,'Inputs (values)'!$H$83:$KV$83,0)))*(INDEX('Inputs (values)'!$H$62:$KV$62,1,MATCH('Inputs (values)'!$H$12,'Inputs (values)'!$H$83:$KV$83,0))/INDEX('Inputs (values)'!$H$62:$KV$62,1,MATCH('Inputs (values)'!$H$11,'Inputs (values)'!$H$83:$KV$83,0))) -> 9.17203533 | DH22: =(INDEX('Inputs (values)'!$H$84:$KV$86,1,MATCH('Calculations (values)'!DH$21,'Inputs (values)'!$H$83:'Inputs (values)'!$KV$83,0))/INDEX('Inputs (values)'!$H$84:$KV$86,1,MATCH('Inputs (values)'!$H$10,'Inputs (values)'!$H$83:$KV$83,0)))*(INDEX('Inputs (values)'!$H$62:$KV$62,1,MATCH('Inputs (values)'!$H$12,'Inputs (values)'!$H$83:$KV$83,0))/INDEX('Inputs (values)'!$H$62:$KV$62,1,MATCH('Inputs (values)'!$H$11,'Inputs (values)'!$H$83:$KV$83,0))) -> 9.314909072 | DI22: =(INDEX('Inputs (values)'!$H$84:$KV$86,1,MATCH('Calculations (values)'!DI$21,'Inputs (values)'!$H$83:'Inputs (values)'!$KV$83,0))/INDEX('Inputs (values)'!$H$84:$KV$86,1,MATCH('Inputs (values)'!$H$10,'Inputs (values)'!$H$83:$KV$83,0)))*(INDEX('Inputs (values)'!$H$62:$KV$62,1,MATCH('Inputs (values)'!$H$12,'Inputs (values)'!$H$83:$KV$83,0))/INDEX('Inputs (values)'!$H$62:$KV$62,1,MATCH('Inputs (values)'!$H$11,'Inputs (values)'!$H$83:$KV$83,0))) -> 9.460008374 | DJ22: =(INDEX('Inputs (values)'!$H$84:$KV$86,1,MATCH('Calculations (values)'!DJ$21,'Inputs (values)'!$H$83:'Inputs (values)'!$KV$83,0))/INDEX('Inputs (values)'!$H$84:$KV$86,1,MATCH('Inputs (values)'!$H$10,'Inputs (values)'!$H$83:$KV$83,0)))*(INDEX('Inputs (values)'!$H$62:$KV$62,1,MATCH('Inputs (values)'!$H$12,'Inputs (values)'!$H$83:$KV$83,0))/INDEX('Inputs (values)'!$H$62:$KV$62,1,MATCH('Inputs (values)'!$H$11,'Inputs (values)'!$H$83:$KV$83,0))) -> 9.607367903 | DK22: =(INDEX('Inputs (values)'!$H$84:$KV$86,1,MATCH('Calculations (values)'!DK$21,'Inputs (values)'!$H$83:'Inputs (values)'!$KV$83,0))/INDEX('Inputs (values)'!$H$84:$KV$86,1,MATCH('Inputs (values)'!$H$10,'Inputs (values)'!$H$83:$KV$83,0)))*(INDEX('Inputs (values)'!$H$62:$KV$62,1,MATCH('Inputs (values)'!$H$12,'Inputs (values)'!$H$83:$KV$83,0))/INDEX('Inputs (values)'!$H$62:$KV$62,1,MATCH('Inputs (values)'!$H$11,'Inputs (values)'!$H$83:$KV$83,0))) -> 9.757022867 | DL22: =(INDEX('Inputs (values)'!$H$84:$KV$86,1,MATCH('Calculations (values)'!DL$21,'Inputs (values)'!$H$83:'Inputs (values)'!$KV$83,0))/INDEX('Inputs (values)'!$H$84:$KV$86,1,MATCH('Inputs (values)'!$H$10,'Inputs (values)'!$H$83:$KV$83,0)))*(INDEX('Inputs (values)'!$H$62:$KV$62,1,MATCH('Inputs (values)'!$H$12,'Inputs (values)'!$H$83:$KV$83,0))/INDEX('Inputs (values)'!$H$62:$KV$62,1,MATCH('Inputs (values)'!$H$11,'Inputs (values)'!$H$83:$KV$83,0))) -> 9.909009021 | DM22: =(INDEX('Inputs (values)'!$H$84:$KV$86,1,MATCH('Calculations (values)'!DM$21,'Inputs (values)'!$H$83:'Inputs (values)'!$KV$83,0))/INDEX('Inputs (values)'!$H$84:$KV$86,1,MATCH('Inputs (values)'!$H$10,'Inputs (values)'!$H$83:$KV$83,0)))*(INDEX('Inputs (values)'!$H$62:$KV$62,1,MATCH('Inputs (values)'!$H$12,'Inputs (values)'!$H$83:$KV$83,0))/INDEX('Inputs (values)'!$H$62:$KV$62,1,MATCH('Inputs (values)'!$H$11,'Inputs (values)'!$H$83:$KV$83,0))) -> 10.06336268 | DN22: =(INDEX('Inputs (values)'!$H$84:$KV$86,1,MATCH('Calculations (values)'!DN$21,'Inputs (values)'!$H$83:'Inputs (values)'!$KV$83,0))/INDEX('Inputs (values)'!$H$84:$KV$86,1,MATCH('Inputs (values)'!$H$10,'Inputs (values)'!$H$83:$KV$83,0)))*(INDEX('Inputs (values)'!$H$62:$KV$62,1,MATCH('Inputs (values)'!$H$12,'Inputs (values)'!$H$83:$KV$83,0))/INDEX('Inputs (values)'!$H$62:$KV$62,1,MATCH('Inputs (values)'!$H$11,'Inputs (values)'!$H$83:$KV$83,0))) -> 10.22012072 | DO22: =(INDEX('Inputs (values)'!$H$84:$KV$86,1,MATCH('Calculations (values)'!DO$21,'Inputs (values)'!$H$83:'Inputs (values)'!$KV$83,0))/INDEX('Inputs (values)'!$H$84:$KV$86,1,MATCH('Inputs (values)'!$H$10,'Inputs (values)'!$H$83:$KV$83,0)))*(INDEX('Inputs (values)'!$H$62:$KV$62,1,MATCH('Inputs (values)'!$H$12,'Inputs (values)'!$H$83:$KV$83,0))/INDEX('Inputs (values)'!$H$62:$KV$62,1,MATCH('Inputs (values)'!$H$11,'Inputs (values)'!$H$83:$KV$83,0))) -> 10.3793206 | DP22: =(INDEX('Inputs (values)'!$H$84:$KV$86,1,MATCH('Calculations (values)'!DP$21,'Inputs (values)'!$H$83:'Inputs (values)'!$KV$83,0))/INDEX('Inputs (values)'!$H$84:$KV$86,1,MATCH('Inputs (values)'!$H$10,'Inputs (values)'!$H$83:$KV$83,0)))*(INDEX('Inputs (values)'!$H$62:$KV$62,1,MATCH('Inputs (values)'!$H$12,'Inputs (values)'!$H$83:$KV$83,0))/INDEX('Inputs (values)'!$H$62:$KV$62,1,MATCH('Inputs (values)'!$H$11,'Inputs (values)'!$H$83:$KV$83,0))) -> 10.54100035 | DQ22: =(INDEX('Inputs (values)'!$H$84:$KV$86,1,MATCH('Calculations (values)'!DQ$21,'Inputs (values)'!$H$83:'Inputs (values)'!$KV$83,0))/INDEX('Inputs (values)'!$H$84:$KV$86,1,MATCH('Inputs (values)'!$H$10,'Inputs (values)'!$H$83:$KV$83,0)))*(INDEX('Inputs (values)'!$H$62:$KV$62,1,MATCH('Inputs (values)'!$H$12,'Inputs (values)'!$H$83:$KV$83,0))/INDEX('Inputs (values)'!$H$62:$KV$62,1,MATCH('Inputs (values)'!$H$11,'Inputs (values)'!$H$83:$KV$83,0))) -> 10.7051986 | DR22: =(INDEX('Inputs (values)'!$H$84:$KV$86,1,MATCH('Calculations (values)'!DR$21,'Inputs (values)'!$H$83:'Inputs (values)'!$KV$83,0))/INDEX('Inputs (values)'!$H$84:$KV$86,1,MATCH('Inputs (values)'!$H$10,'Inputs (values)'!$H$83:$KV$83,0)))*(INDEX('Inputs (values)'!$H$62:$KV$62,1,MATCH('Inputs (values)'!$H$12,'Inputs (values)'!$H$83:$KV$83,0))/INDEX('Inputs (values)'!$H$62:$KV$62,1,MATCH('Inputs (values)'!$H$11,'Inputs (values)'!$H$83:$KV$83,0))) -> 10.87195459 | DS22: =(INDEX('Inputs (values)'!$H$84:$KV$86,1,MATCH('Calculations (values)'!DS$21,'Inputs (values)'!$H$83:'Inputs (values)'!$KV$83,0))/INDEX('Inputs (values)'!$H$84:$KV$86,1,MATCH('Inputs (values)'!$H$10,'Inputs (values)'!$H$83:$KV$83,0)))*(INDEX('Inputs (values)'!$H$62:$KV$62,1,MATCH('Inputs (values)'!$H$12,'Inputs (values)'!$H$83:$KV$83,0))/INDEX('Inputs (values)'!$H$62:$KV$62,1,MATCH('Inputs (values)'!$H$11,'Inputs (values)'!$H$83:$KV$83,0))) -> 11.04130815 | DT22: =(INDEX('Inputs (values)'!$H$84:$KV$86,1,MATCH('Calculations (values)'!DT$21,'Inputs (values)'!$H$83:'Inputs (values)'!$KV$83,0))/INDEX('Inputs (values)'!$H$84:$KV$86,1,MATCH('Inputs (values)'!$H$10,'Inputs (values)'!$H$83:$KV$83,0)))*(INDEX('Inputs (values)'!$H$62:$KV$62,1,MATCH('Inputs (values)'!$H$12,'Inputs (values)'!$H$83:$KV$83,0))/INDEX('Inputs (values)'!$H$62:$KV$62,1,MATCH('Inputs (values)'!$H$11,'Inputs (values)'!$H$83:$KV$83,0))) -> 11.21329975 | DU22: =(INDEX('Inputs (values)'!$H$84:$KV$86,1,MATCH('Calculations (values)'!DU$21,'Inputs (values)'!$H$83:'Inputs (values)'!$KV$83,0))/INDEX('Inputs (values)'!$H$84:$KV$86,1,MATCH('Inputs (values)'!$H$10,'Inputs (values)'!$H$83:$KV$83,0)))*(INDEX('Inputs (values)'!$H$62:$KV$62,1,MATCH('Inputs (values)'!$H$12,'Inputs (values)'!$H$83:$KV$83,0))/INDEX('Inputs (values)'!$H$62:$KV$62,1,MATCH('Inputs (values)'!$H$11,'Inputs (values)'!$H$83:$KV$83,0))) -> 11.38797048 | DV22: =(INDEX('Inputs (values)'!$H$84:$KV$86,1,MATCH('Calculations (values)'!DV$21,'Inputs (values)'!$H$83:'Inputs (values)'!$KV$83,0))/INDEX('Inputs (values)'!$H$84:$KV$86,1,MATCH('Inputs (values)'!$H$10,'Inputs (values)'!$H$83:$KV$83,0)))*(INDEX('Inputs (values)'!$H$62:$KV$62,1,MATCH('Inputs (values)'!$H$12,'Inputs (values)'!$H$83:$KV$83,0))/INDEX('Inputs (values)'!$H$62:$KV$62,1,MATCH('Inputs (values)'!$H$11,'Inputs (values)'!$H$83:$KV$83,0))) -> 11.56536207 | DW22: =(INDEX('Inputs (values)'!$H$84:$KV$86,1,MATCH('Calculations (values)'!DW$21,'Inputs (values)'!$H$83:'Inputs (values)'!$KV$83,0))/INDEX('Inputs (values)'!$H$84:$KV$86,1,MATCH('Inputs (values)'!$H$10,'Inputs (values)'!$H$83:$KV$83,0)))*(INDEX('Inputs (values)'!$H$62:$KV$62,1,MATCH('Inputs (values)'!$H$12,'Inputs (values)'!$H$83:$KV$83,0))/INDEX('Inputs (values)'!$H$62:$KV$62,1,MATCH('Inputs (values)'!$H$11,'Inputs (values)'!$H$83:$KV$83,0))) -> 11.74551691 | DX22: =(INDEX('Inputs (values)'!$H$84:$KV$86,1,MATCH('Calculations (values)'!DX$21,'Inputs (values)'!$H$83:'Inputs (values)'!$KV$83,0))/INDEX('Inputs (values)'!$H$84:$KV$86,1,MATCH('Inputs (values)'!$H$10,'Inputs (values)'!$H$83:$KV$83,0)))*(INDEX('Inputs (values)'!$H$62:$KV$62,1,MATCH('Inputs (values)'!$H$12,'Inputs (values)'!$H$83:$KV$83,0))/INDEX('Inputs (values)'!$H$62:$KV$62,1,MATCH('Inputs (values)'!$H$11,'Inputs (values)'!$H$83:$KV$83,0))) -> 11.92847804 | DY22: =(INDEX('Inputs (values)'!$H$84:$KV$86,1,MATCH('Calculations (values)'!DY$21,'Inputs (values)'!$H$83:'Inputs (values)'!$KV$83,0))/INDEX('Inputs (values)'!$H$84:$KV$86,1,MATCH('Inputs (values)'!$H$10,'Inputs (values)'!$H$83:$KV$83,0)))*(INDEX('Inputs (values)'!$H$62:$KV$62,1,MATCH('Inputs (values)'!$H$12,'Inputs (values)'!$H$83:$KV$83,0))/INDEX('Inputs (values)'!$H$62:$KV$62,1,MATCH('Inputs (values)'!$H$11,'Inputs (values)'!$H$83:$KV$83,0))) -> 12.11428918 | DZ22: =(INDEX('Inputs (values)'!$H$84:$KV$86,1,MATCH('Calculations (values)'!DZ$21,'Inputs (values)'!$H$83:'Inputs (values)'!$KV$83,0))/INDEX('Inputs (values)'!$H$84:$KV$86,1,MATCH('Inputs (values)'!$H$10,'Inputs (values)'!$H$83:$KV$83,0)))*(INDEX('Inputs (values)'!$H$62:$KV$62,1,MATCH('Inputs (values)'!$H$12,'Inputs (values)'!$H$83:$KV$83,0))/INDEX('Inputs (values)'!$H$62:$KV$62,1,MATCH('Inputs (values)'!$H$11,'Inputs (values)'!$H$83:$KV$83,0))) -> 12.30299471 | EA22: =(INDEX('Inputs (values)'!$H$84:$KV$86,1,MATCH('Calculations (values)'!EA$21,'Inputs (values)'!$H$83:'Inputs (values)'!$KV$83,0))/INDEX('Inputs (values)'!$H$84:$KV$86,1,MATCH('Inputs (values)'!$H$10,'Inputs (values)'!$H$83:$KV$83,0)))*(INDEX('Inputs (values)'!$H$62:$KV$62,1,MATCH('Inputs (values)'!$H$12,'Inputs (values)'!$H$83:$KV$83,0))/INDEX('Inputs (values)'!$H$62:$KV$62,1,MATCH('Inputs (values)'!$H$11,'Inputs (values)'!$H$83:$KV$83,0))) -> 12.49463974 | EB22: =(INDEX('Inputs (values)'!$H$84:$KV$86,1,MATCH('Calculations (values)'!EB$21,'Inputs (values)'!$H$83:'Inputs (values)'!$KV$83,0))/INDEX('Inputs (values)'!$H$84:$KV$86,1,MATCH('Inputs (values)'!$H$10,'Inputs (values)'!$H$83:$KV$83,0)))*(INDEX('Inputs (values)'!$H$62:$KV$62,1,MATCH('Inputs (values)'!$H$12,'Inputs (values)'!$H$83:$KV$83,0))/INDEX('Inputs (values)'!$H$62:$KV$62,1,MATCH('Inputs (values)'!$H$11,'Inputs (values)'!$H$83:$KV$83,0))) -> 12.68927003 | EC22: =(INDEX('Inputs (values)'!$H$84:$KV$86,1,MATCH('Calculations (values)'!EC$21,'Inputs (values)'!$H$83:'Inputs (values)'!$KV$83,0))/INDEX('Inputs (values)'!$H$84:$KV$86,1,MATCH('Inputs (values)'!$H$10,'Inputs (values)'!$H$83:$KV$83,0)))*(INDEX('Inputs (values)'!$H$62:$KV$62,1,MATCH('Inputs (values)'!$H$12,'Inputs (values)'!$H$83:$KV$83,0))/INDEX('Inputs (values)'!$H$62:$KV$62,1,MATCH('Inputs (values)'!$H$11,'Inputs (values)'!$H$83:$KV$83,0))) -> 12.8869321 | ED22: =(INDEX('Inputs (values)'!$H$84:$KV$86,1,MATCH('Calculations (values)'!ED$21,'Inputs (values)'!$H$83:'Inputs (values)'!$KV$83,0))/INDEX('Inputs (values)'!$H$84:$KV$86,1,MATCH('Inputs (values)'!$H$10,'Inputs (values)'!$H$83:$KV$83,0)))*(INDEX('Inputs (values)'!$H$62:$KV$62,1,MATCH('Inputs (values)'!$H$12,'Inputs (values)'!$H$83:$KV$83,0))/INDEX('Inputs (values)'!$H$62:$KV$62,1,MATCH('Inputs (values)'!$H$11,'Inputs (values)'!$H$83:$KV$83,0))) -> 13.08767318 | EE22: =(INDEX('Inputs (values)'!$H$84:$KV$86,1,MATCH('Calculations (values)'!EE$21,'Inputs (values)'!$H$83:'Inputs (values)'!$KV$83,0))/INDEX('Inputs (values)'!$H$84:$KV$86,1,MATCH('Inputs (values)'!$H$10,'Inputs (values)'!$H$83:$KV$83,0)))*(INDEX('Inputs (values)'!$H$62:$KV$62,1,MATCH('Inputs (values)'!$H$12,'Inputs (values)'!$H$83:$KV$83,0))/INDEX('Inputs (values)'!$H$62:$KV$62,1,MATCH('Inputs (values)'!$H$11,'Inputs (values)'!$H$83:$KV$83,0))) -> 13.29154122 | EF22: =(INDEX('Inputs (values)'!$H$84:$KV$86,1,MATCH('Calculations (values)'!EF$21,'Inputs (values)'!$H$83:'Inputs (values)'!$KV$83,0))/INDEX('Inputs (values)'!$H$84:$KV$86,1,MATCH('Inputs (values)'!$H$10,'Inputs (values)'!$H$83:$KV$83,0)))*(INDEX('Inputs (values)'!$H$62:$KV$62,1,MATCH('Inputs (values)'!$H$12,'Inputs (values)'!$H$83:$KV$83,0))/INDEX('Inputs (values)'!$H$62:$KV$62,1,MATCH('Inputs (values)'!$H$11,'Inputs (values)'!$H$83:$KV$83,0))) -> 13.49858493 | EG22: =(INDEX('Inputs (values)'!$H$84:$KV$86,1,MATCH('Calculations (values)'!EG$21,'Inputs (values)'!$H$83:'Inputs (values)'!$KV$83,0))/INDEX('Inputs (values)'!$H$84:$KV$86,1,MATCH('Inputs (values)'!$H$10,'Inputs (values)'!$H$83:$KV$83,0)))*(INDEX('Inputs (values)'!$H$62:$KV$62,1,MATCH('Inputs (values)'!$H$12,'Inputs (values)'!$H$83:$KV$83,0))/INDEX('Inputs (values)'!$H$62:$KV$62,1,MATCH('Inputs (values)'!$H$11,'Inputs (values)'!$H$83:$KV$83,0))) -> 13.70885378 | EH22: =(INDEX('Inputs (values)'!$H$84:$KV$86,1,MATCH('Calculations (values)'!EH$21,'Inputs (values)'!$H$83:'Inputs (values)'!$KV$83,0))/INDEX('Inputs (values)'!$H$84:$KV$86,1,MATCH('Inputs (values)'!$H$10,'Inputs (values)'!$H$83:$KV$83,0)))*(INDEX('Inputs (values)'!$H$62:$KV$62,1,MATCH('Inputs (values)'!$H$12,'Inputs (values)'!$H$83:$KV$83,0))/INDEX('Inputs (values)'!$H$62:$KV$62,1,MATCH('Inputs (values)'!$H$11,'Inputs (values)'!$H$83:$KV$83,0))) -> 13.92239801 | EI22: =(INDEX('Inputs (values)'!$H$84:$KV$86,1,MATCH('Calculations (values)'!EI$21,'Inputs (values)'!$H$83:'Inputs (values)'!$KV$83,0))/INDEX('Inputs (values)'!$H$84:$KV$86,1,MATCH('Inputs (values)'!$H$10,'Inputs (values)'!$H$83:$KV$83,0)))*(INDEX('Inputs (values)'!$H$62:$KV$62,1,MATCH('Inputs (values)'!$H$12,'Inputs (values)'!$H$83:$KV$83,0))/INDEX('Inputs (values)'!$H$62:$KV$62,1,MATCH('Inputs (values)'!$H$11,'Inputs (values)'!$H$83:$KV$83,0))) -> 14.13926865 | EJ22: =(INDEX('Inputs (values)'!$H$84:$KV$86,1,MATCH('Calculations (values)'!EJ$21,'Inputs (values)'!$H$83:'Inputs (values)'!$KV$83,0))/INDEX('Inputs (values)'!$H$84:$KV$86,1,MATCH('Inputs (values)'!$H$10,'Inputs (values)'!$H$83:$KV$83,0)))*(INDEX('Inputs (values)'!$H$62:$KV$62,1,MATCH('Inputs (values)'!$H$12,'Inputs (values)'!$H$83:$KV$83,0))/INDEX('Inputs (values)'!$H$62:$KV$62,1,MATCH('Inputs (values)'!$H$11,'Inputs (values)'!$H$83:$KV$83,0))) -> 14.3595175 | EK22: =(INDEX('Inputs (values)'!$H$84:$KV$86,1,MATCH('Calculations (values)'!EK$21,'Inputs (values)'!$H$83:'Inputs (values)'!$KV$83,0))/INDEX('Inputs (values)'!$H$84:$KV$86,1,MATCH('Inputs (values)'!$H$10,'Inputs (values)'!$H$83:$KV$83,0)))*(INDEX('Inputs (values)'!$H$62:$KV$62,1,MATCH('Inputs (values)'!$H$12,'Inputs (values)'!$H$83:$KV$83,0))/INDEX('Inputs (values)'!$H$62:$KV$62,1,MATCH('Inputs (values)'!$H$11,'Inputs (values)'!$H$83:$KV$83,0))) -> 14.58319719 | EL22: =(INDEX('Inputs (values)'!$H$84:$KV$86,1,MATCH('Calculations (values)'!EL$21,'Inputs (values)'!$H$83:'Inputs (values)'!$KV$83,0))/INDEX('Inputs (values)'!$H$84:$KV$86,1,MATCH('Inputs (values)'!$H$10,'Inputs (values)'!$H$83:$KV$83,0)))*(INDEX('Inputs (values)'!$H$62:$KV$62,1,MATCH('Inputs (values)'!$H$12,'Inputs (values)'!$H$83:$KV$83,0))/INDEX('Inputs (values)'!$H$62:$KV$62,1,MATCH('Inputs (values)'!$H$11,'Inputs (values)'!$H$83:$KV$83,0))) -> 14.81036116 | EM22: =(INDEX('Inputs (values)'!$H$84:$KV$86,1,MATCH('Calculations (values)'!EM$21,'Inputs (values)'!$H$83:'Inputs (values)'!$KV$83,0))/INDEX('Inputs (values)'!$H$84:$KV$86,1,MATCH('Inputs (values)'!$H$10,'Inputs (values)'!$H$83:$KV$83,0)))*(INDEX('Inputs (values)'!$H$62:$KV$62,1,MATCH('Inputs (values)'!$H$12,'Inputs (values)'!$H$83:$KV$83,0))/INDEX('Inputs (values)'!$H$62:$KV$62,1,MATCH('Inputs (values)'!$H$11,'Inputs (values)'!$H$83:$KV$83,0))) -> 15.04106369 | EN22: =(INDEX('Inputs (values)'!$H$84:$KV$86,1,MATCH('Calculations (values)'!EN$21,'Inputs (values)'!$H$83:'Inputs (values)'!$KV$83,0))/INDEX('Inputs (values)'!$H$84:$KV$86,1,MATCH('Inputs (values)'!$H$10,'Inputs (values)'!$H$83:$KV$83,0)))*(INDEX('Inputs (values)'!$H$62:$KV$62,1,MATCH('Inputs (values)'!$H$12,'Inputs (values)'!$H$83:$KV$83,0))/INDEX('Inputs (values)'!$H$62:$KV$62,1,MATCH('Inputs (values)'!$H$11,'Inputs (values)'!$H$83:$KV$83,0))) -> 15.27535989 | EO22: =(INDEX('Inputs (values)'!$H$84:$KV$86,1,MATCH('Calculations (values)'!EO$21,'Inputs (values)'!$H$83:'Inputs (values)'!$KV$83,0))/INDEX('Inputs (values)'!$H$84:$KV$86,1,MATCH('Inputs (values)'!$H$10,'Inputs (values)'!$H$83:$KV$83,0)))*(INDEX('Inputs (values)'!$H$62:$KV$62,1,MATCH('Inputs (values)'!$H$12,'Inputs (values)'!$H$83:$KV$83,0))/INDEX('Inputs (values)'!$H$62:$KV$62,1,MATCH('Inputs (values)'!$H$11,'Inputs (values)'!$H$83:$KV$83,0))) -> 15.51330575 | EP22: =(INDEX('Inputs (values)'!$H$84:$KV$86,1,MATCH('Calculations (values)'!EP$21,'Inputs (values)'!$H$83:'Inputs (values)'!$KV$83,0))/INDEX('Inputs (values)'!$H$84:$KV$86,1,MATCH('Inputs (values)'!$H$10,'Inputs (values)'!$H$83:$KV$83,0)))*(INDEX('Inputs (values)'!$H$62:$KV$62,1,MATCH('Inputs (values)'!$H$12,'Inputs (values)'!$H$83:$KV$83,0))/INDEX('Inputs (values)'!$H$62:$KV$62,1,MATCH('Inputs (values)'!$H$11,'Inputs (values)'!$H$83:$KV$83,0))) -> 15.75495812 | EQ22: =(INDEX('Inputs (values)'!$H$84:$KV$86,1,MATCH('Calculations (values)'!EQ$21,'Inputs (values)'!$H$83:'Inputs (values)'!$KV$83,0))/INDEX('Inputs (values)'!$H$84:$KV$86,1,MATCH('Inputs (values)'!$H$10,'Inputs (values)'!$H$83:$KV$83,0)))*(INDEX('Inputs (values)'!$H$62:$KV$62,1,MATCH('Inputs (values)'!$H$12,'Inputs (values)'!$H$83:$KV$83,0))/INDEX('Inputs (values)'!$H$62:$KV$62,1,MATCH('Inputs (values)'!$H$11,'Inputs (values)'!$H$83:$KV$83,0))) -> 16.00037473 | ER22: =(INDEX('Inputs (values)'!$H$84:$KV$86,1,MATCH('Calculations (values)'!ER$21,'Inputs (values)'!$H$83:'Inputs (values)'!$KV$83,0))/INDEX('Inputs (values)'!$H$84:$KV$86,1,MATCH('Inputs (values)'!$H$10,'Inputs (values)'!$H$83:$KV$83,0)))*(INDEX('Inputs (values)'!$H$62:$KV$62,1,MATCH('Inputs (values)'!$H$12,'Inputs (values)'!$H$83:$KV$83,0))/INDEX('Inputs (values)'!$H$62:$KV$62,1,MATCH('Inputs (values)'!$H$11,'Inputs (values)'!$H$83:$KV$83,0))) -> 16.24961422 | ES22: =(INDEX('Inputs (values)'!$H$84:$KV$86,1,MATCH('Calculations (values)'!ES$21,'Inputs (values)'!$H$83:'Inputs (values)'!$KV$83,0))/INDEX('Inputs (values)'!$H$84:$KV$86,1,MATCH('Inputs (values)'!$H$10,'Inputs (values)'!$H$83:$KV$83,0)))*(INDEX('Inputs (values)'!$H$62:$KV$62,1,MATCH('Inputs (values)'!$H$12,'Inputs (values)'!$H$83:$KV$83,0))/INDEX('Inputs (values)'!$H$62:$KV$62,1,MATCH('Inputs (values)'!$H$11,'Inputs (values)'!$H$83:$KV$83,0))) -> 16.50273614 | ET22: =(INDEX('Inputs (values)'!$H$84:$KV$86,1,MATCH('Calculations (values)'!ET$21,'Inputs (values)'!$H$83:'Inputs (values)'!$KV$83,0))/INDEX('Inputs (values)'!$H$84:$KV$86,1,MATCH('Inputs (values)'!$H$10,'Inputs (values)'!$H$83:$KV$83,0)))*(INDEX('Inputs (values)'!$H$62:$KV$62,1,MATCH('Inputs (values)'!$H$12,'Inputs (values)'!$H$83:$KV$83,0))/INDEX('Inputs (values)'!$H$62:$KV$62,1,MATCH('Inputs (values)'!$H$11,'Inputs (values)'!$H$83:$KV$83,0))) -> 16.75980097 | EU22: =(INDEX('Inputs (values)'!$H$84:$KV$86,1,MATCH('Calculations (values)'!EU$21,'Inputs (values)'!$H$83:'Inputs (values)'!$KV$83,0))/INDEX('Inputs (values)'!$H$84:$KV$86,1,MATCH('Inputs (values)'!$H$10,'Inputs (values)'!$H$83:$KV$83,0)))*(INDEX('Inputs (values)'!$H$62:$KV$62,1,MATCH('Inputs (values)'!$H$12,'Inputs (values)'!$H$83:$KV$83,0))/INDEX('Inputs (values)'!$H$62:$KV$62,1,MATCH('Inputs (values)'!$H$11,'Inputs (values)'!$H$83:$KV$83,0))) -> 17.02087012 | EV22: =(INDEX('Inputs (values)'!$H$84:$KV$86,1,MATCH('Calculations (values)'!EV$21,'Inputs (values)'!$H$83:'Inputs (values)'!$KV$83,0))/INDEX('Inputs (values)'!$H$84:$KV$86,1,MATCH('Inputs (values)'!$H$10,'Inputs (values)'!$H$83:$KV$83,0)))*(INDEX('Inputs (values)'!$H$62:$KV$62,1,MATCH('Inputs (values)'!$H$12,'Inputs (values)'!$H$83:$KV$83,0))/INDEX('Inputs (values)'!$H$62:$KV$62,1,MATCH('Inputs (values)'!$H$11,'Inputs (values)'!$H$83:$KV$83,0))) -> 17.28600598 | EW22: =(INDEX('Inputs (values)'!$H$84:$KV$86,1,MATCH('Calculations (values)'!EW$21,'Inputs (values)'!$H$83:'Inputs (values)'!$KV$83,0))/INDEX('Inputs (values)'!$H$84:$KV$86,1,MATCH('Inputs (values)'!$H$10,'Inputs (values)'!$H$83:$KV$83,0)))*(INDEX('Inputs (values)'!$H$62:$KV$62,1,MATCH('Inputs (values)'!$H$12,'Inputs (values)'!$H$83:$KV$83,0))/INDEX('Inputs (values)'!$H$62:$KV$62,1,MATCH('Inputs (values)'!$H$11,'Inputs (values)'!$H$83:$KV$83,0))) -> 17.55527188 | EX22: =(INDEX('Inputs (values)'!$H$84:$KV$86,1,MATCH('Calculations (values)'!EX$21,'Inputs (values)'!$H$83:'Inputs (values)'!$KV$83,0))/INDEX('Inputs (values)'!$H$84:$KV$86,1,MATCH('Inputs (values)'!$H$10,'Inputs (values)'!$H$83:$KV$83,0)))*(INDEX('Inputs (values)'!$H$62:$KV$62,1,MATCH('Inputs (values)'!$H$12,'Inputs (values)'!$H$83:$KV$83,0))/INDEX('Inputs (values)'!$H$62:$KV$62,1,MATCH('Inputs (values)'!$H$11,'Inputs (values)'!$H$83:$KV$83,0))) -> 17.82873217 | EY22: =(INDEX('Inputs (values)'!$H$84:$KV$86,1,MATCH('Calculations (values)'!EY$21,'Inputs (values)'!$H$83:'Inputs (values)'!$KV$83,0))/INDEX('Inputs (values)'!$H$84:$KV$86,1,MATCH('Inputs (values)'!$H$10,'Inputs (values)'!$H$83:$KV$83,0)))*(INDEX('Inputs (values)'!$H$62:$KV$62,1,MATCH('Inputs (values)'!$H$12,'Inputs (values)'!$H$83:$KV$83,0))/INDEX('Inputs (values)'!$H$62:$KV$62,1,MATCH('Inputs (values)'!$H$11,'Inputs (values)'!$H$83:$KV$83,0))) -> 18.10645217 | EZ22: =(INDEX('Inputs (values)'!$H$84:$KV$86,1,MATCH('Calculations (values)'!EZ$21,'Inputs (values)'!$H$83:'Inputs (values)'!$KV$83,0))/INDEX('Inputs (values)'!$H$84:$KV$86,1,MATCH('Inputs (values)'!$H$10,'Inputs (values)'!$H$83:$KV$83,0)))*(INDEX('Inputs (values)'!$H$62:$KV$62,1,MATCH('Inputs (values)'!$H$12,'Inputs (values)'!$H$83:$KV$83,0))/INDEX('Inputs (values)'!$H$62:$KV$62,1,MATCH('Inputs (values)'!$H$11,'Inputs (values)'!$H$83:$KV$83,0))) -> 18.38849825 | FA22: =(INDEX('Inputs (values)'!$H$84:$KV$86,1,MATCH('Calculations (values)'!FA$21,'Inputs (values)'!$H$83:'Inputs (values)'!$KV$83,0))/INDEX('Inputs (values)'!$H$84:$KV$86,1,MATCH('Inputs (values)'!$H$10,'Inputs (values)'!$H$83:$KV$83,0)))*(INDEX('Inputs (values)'!$H$62:$KV$62,1,MATCH('Inputs (values)'!$H$12,'Inputs (values)'!$H$83:$KV$83,0))/INDEX('Inputs (values)'!$H$62:$KV$62,1,MATCH('Inputs (values)'!$H$11,'Inputs (values)'!$H$83:$KV$83,0))) -> 18.67493779 | FB22: =(INDEX('Inputs (values)'!$H$84:$KV$86,1,MATCH('Calculations (values)'!FB$21,'Inputs (values)'!$H$83:'Inputs (values)'!$KV$83,0))/INDEX('Inputs (values)'!$H$84:$KV$86,1,MATCH('Inputs (values)'!$H$10,'Inputs (values)'!$H$83:$KV$83,0)))*(INDEX('Inputs (values)'!$H$62:$KV$62,1,MATCH('Inputs (values)'!$H$12,'Inputs (values)'!$H$83:$KV$83,0))/INDEX('Inputs (values)'!$H$62:$KV$62,1,MATCH('Inputs (values)'!$H$11,'Inputs (values)'!$H$83:$KV$83,0))) -> 18.96583923 | FC22: =(INDEX('Inputs (values)'!$H$84:$KV$86,1,MATCH('Calculations (values)'!FC$21,'Inputs (values)'!$H$83:'Inputs (values)'!$KV$83,0))/INDEX('Inputs (values)'!$H$84:$KV$86,1,MATCH('Inputs (values)'!$H$10,'Inputs (values)'!$H$83:$KV$83,0)))*(INDEX('Inputs (values)'!$H$62:$KV$62,1,MATCH('Inputs (values)'!$H$12,'Inputs (values)'!$H$83:$KV$83,0))/INDEX('Inputs (values)'!$H$62:$KV$62,1,MATCH('Inputs (values)'!$H$11,'Inputs (values)'!$H$83:$KV$83,0))) -> 19.26127207 | FD22: =(INDEX('Inputs (values)'!$H$84:$KV$86,1,MATCH('Calculations (values)'!FD$21,'Inputs (values)'!$H$83:'Inputs (values)'!$KV$83,0))/INDEX('Inputs (values)'!$H$84:$KV$86,1,MATCH('Inputs (values)'!$H$10,'Inputs (values)'!$H$83:$KV$83,0)))*(INDEX('Inputs (values)'!$H$62:$KV$62,1,MATCH('Inputs (values)'!$H$12,'Inputs (values)'!$H$83:$KV$83,0))/INDEX('Inputs (values)'!$H$62:$KV$62,1,MATCH('Inputs (values)'!$H$11,'Inputs (values)'!$H$83:$KV$83,0))) -> 19.56130689 | FE22: =(INDEX('Inputs (values)'!$H$84:$KV$86,1,MATCH('Calculations (values)'!FE$21,'Inputs (values)'!$H$83:'Inputs (values)'!$KV$83,0))/INDEX('Inputs (values)'!$H$84:$KV$86,1,MATCH('Inputs (values)'!$H$10,'Inputs (values)'!$H$83:$KV$83,0)))*(INDEX('Inputs (values)'!$H$62:$KV$62,1,MATCH('Inputs (values)'!$H$12,'Inputs (values)'!$H$83:$KV$83,0))/INDEX('Inputs (values)'!$H$62:$KV$62,1,MATCH('Inputs (values)'!$H$11,'Inputs (values)'!$H$83:$KV$83,0))) -> 19.86601539 | FF22: =(INDEX('Inputs (values)'!$H$84:$KV$86,1,MATCH('Calculations (values)'!FF$21,'Inputs (values)'!$H$83:'Inputs (values)'!$KV$83,0))/INDEX('Inputs (values)'!$H$84:$KV$86,1,MATCH('Inputs (values)'!$H$10,'Inputs (values)'!$H$83:$KV$83,0)))*(INDEX('Inputs (values)'!$H$62:$KV$62,1,MATCH('Inputs (values)'!$H$12,'Inputs (values)'!$H$83:$KV$83,0))/INDEX('Inputs (values)'!$H$62:$KV$62,1,MATCH('Inputs (values)'!$H$11,'Inputs (values)'!$H$83:$KV$83,0))) -> 20.17547037 | FG22: =(INDEX('Inputs (values)'!$H$84:$KV$86,1,MATCH('Calculations (values)'!FG$21,'Inputs (values)'!$H$83:'Inputs (values)'!$KV$83,0))/INDEX('Inputs (values)'!$H$84:$KV$86,1,MATCH('Inputs (values)'!$H$10,'Inputs (values)'!$H$83:$KV$83,0)))*(INDEX('Inputs (values)'!$H$62:$KV$62,1,MATCH('Inputs (values)'!$H$12,'Inputs (values)'!$H$83:$KV$83,0))/INDEX('Inputs (values)'!$H$62:$KV$62,1,MATCH('Inputs (values)'!$H$11,'Inputs (values)'!$H$83:$KV$83,0))) -> 20.48974576 | FH22: =(INDEX('Inputs (values)'!$H$84:$KV$86,1,MATCH('Calculations (values)'!FH$21,'Inputs (values)'!$H$83:'Inputs (values)'!$KV$83,0))/INDEX('Inputs (values)'!$H$84:$KV$86,1,MATCH('Inputs (values)'!$H$10,'Inputs (values)'!$H$83:$KV$83,0)))*(INDEX('Inputs (values)'!$H$62:$KV$62,1,MATCH('Inputs (values)'!$H$12,'Inputs (values)'!$H$83:$KV$83,0))/INDEX('Inputs (values)'!$H$62:$KV$62,1,MATCH('Inputs (values)'!$H$11,'Inputs (values)'!$H$83:$KV$83,0))) -> 20.80891665 | FI22: =(INDEX('Inputs (values)'!$H$84:$KV$86,1,MATCH('Calculations (values)'!FI$21,'Inputs (values)'!$H$83:'Inputs (values)'!$KV$83,0))/INDEX('Inputs (values)'!$H$84:$KV$86,1,MATCH('Inputs (values)'!$H$10,'Inputs (values)'!$H$83:$KV$83,0)))*(INDEX('Inputs (values)'!$H$62:$KV$62,1,MATCH('Inputs (values)'!$H$12,'Inputs (values)'!$H$83:$KV$83,0))/INDEX('Inputs (values)'!$H$62:$KV$62,1,MATCH('Inputs (values)'!$H$11,'Inputs (values)'!$H$83:$KV$83,0))) -> 21.13305929 | FJ22: =(INDEX('Inputs (values)'!$H$84:$KV$86,1,MATCH('Calculations (values)'!FJ$21,'Inputs (values)'!$H$83:'Inputs (values)'!$KV$83,0))/INDEX('Inputs (values)'!$H$84:$KV$86,1,MATCH('Inputs (values)'!$H$10,'Inputs (values)'!$H$83:$KV$83,0)))*(INDEX('Inputs (values)'!$H$62:$KV$62,1,MATCH('Inputs (values)'!$H$12,'Inputs (values)'!$H$83:$KV$83,0))/INDEX('Inputs (values)'!$H$62:$KV$62,1,MATCH('Inputs (values)'!$H$11,'Inputs (values)'!$H$83:$KV$83,0))) -> 21.46225114 | FK22: =(INDEX('Inputs (values)'!$H$84:$KV$86,1,MATCH('Calculations (values)'!FK$21,'Inputs (values)'!$H$83:'Inputs (values)'!$KV$83,0))/INDEX('Inputs (values)'!$H$84:$KV$86,1,MATCH('Inputs (values)'!$H$10,'Inputs (values)'!$H$83:$KV$83,0)))*(INDEX('Inputs (values)'!$H$62:$KV$62,1,MATCH('Inputs (values)'!$H$12,'Inputs (values)'!$H$83:$KV$83,0))/INDEX('Inputs (values)'!$H$62:$KV$62,1,MATCH('Inputs (values)'!$H$11,'Inputs (values)'!$H$83:$KV$83,0))) -> 21.79657085 | FL22: =(INDEX('Inputs (values)'!$H$84:$KV$86,1,MATCH('Calculations (values)'!FL$21,'Inputs (values)'!$H$83:'Inputs (values)'!$KV$83,0))/INDEX('Inputs (values)'!$H$84:$KV$86,1,MATCH('Inputs (values)'!$H$10,'Inputs (values)'!$H$83:$KV$83,0)))*(INDEX('Inputs (values)'!$H$62:$KV$62,1,MATCH('Inputs (values)'!$H$12,'Inputs (values)'!$H$83:$KV$83,0))/INDEX('Inputs (values)'!$H$62:$KV$62,1,MATCH('Inputs (values)'!$H$11,'Inputs (values)'!$H$83:$KV$83,0))) -> 22.13609829 | FM22: =(INDEX('Inputs (values)'!$H$84:$KV$86,1,MATCH('Calculations (values)'!FM$21,'Inputs (values)'!$H$83:'Inputs (values)'!$KV$83,0))/INDEX('Inputs (values)'!$H$84:$KV$86,1,MATCH('Inputs (values)'!$H$10,'Inputs (values)'!$H$83:$KV$83,0)))*(INDEX('Inputs (values)'!$H$62:$KV$62,1,MATCH('Inputs (values)'!$H$12,'Inputs (values)'!$H$83:$KV$83,0))/INDEX('Inputs (values)'!$H$62:$KV$62,1,MATCH('Inputs (values)'!$H$11,'Inputs (values)'!$H$83:$KV$83,0))) -> 22.48091458 | FN22: =(INDEX('Inputs (values)'!$H$84:$KV$86,1,MATCH('Calculations (values)'!FN$21,'Inputs (values)'!$H$83:'Inputs (values)'!$KV$83,0))/INDEX('Inputs (values)'!$H$84:$KV$86,1,MATCH('Inputs (values)'!$H$10,'Inputs (values)'!$H$83:$KV$83,0)))*(INDEX('Inputs (values)'!$H$62:$KV$62,1,MATCH('Inputs (values)'!$H$12,'Inputs (values)'!$H$83:$KV$83,0))/INDEX('Inputs (values)'!$H$62:$KV$62,1,MATCH('Inputs (values)'!$H$11,'Inputs (values)'!$H$83:$KV$83,0))) -> 22.83110211 | FO22: =(INDEX('Inputs (values)'!$H$84:$KV$86,1,MATCH('Calculations (values)'!FO$21,'Inputs (values)'!$H$83:'Inputs (values)'!$KV$83,0))/INDEX('Inputs (values)'!$H$84:$KV$86,1,MATCH('Inputs (values)'!$H$10,'Inputs (values)'!$H$83:$KV$83,0)))*(INDEX('Inputs (values)'!$H$62:$KV$62,1,MATCH('Inputs (values)'!$H$12,'Inputs (values)'!$H$83:$KV$83,0))/INDEX('Inputs (values)'!$H$62:$KV$62,1,MATCH('Inputs (values)'!$H$11,'Inputs (values)'!$H$83:$KV$83,0))) -> 23.18674455 | FP22: =(INDEX('Inputs (values)'!$H$84:$KV$86,1,MATCH('Calculations (values)'!FP$21,'Inputs (values)'!$H$83:'Inputs (values)'!$KV$83,0))/INDEX('Inputs (values)'!$H$84:$KV$86,1,MATCH('Inputs (values)'!$H$10,'Inputs (values)'!$H$83:$KV$83,0)))*(INDEX('Inputs (values)'!$H$62:$KV$62,1,MATCH('Inputs (values)'!$H$12,'Inputs (values)'!$H$83:$KV$83,0))/INDEX('Inputs (values)'!$H$62:$KV$62,1,MATCH('Inputs (values)'!$H$11,'Inputs (values)'!$H$83:$KV$83,0))) -> 23.54792687 | FQ22: =(INDEX('Inputs (values)'!$H$84:$KV$86,1,MATCH('Calculations (values)'!FQ$21,'Inputs (values)'!$H$83:'Inputs (values)'!$KV$83,0))/INDEX('Inputs (values)'!$H$84:$KV$86,1,MATCH('Inputs (values)'!$H$10,'Inputs (values)'!$H$83:$KV$83,0)))*(INDEX('Inputs (values)'!$H$62:$KV$62,1,MATCH('Inputs (values)'!$H$12,'Inputs (values)'!$H$83:$KV$83,0))/INDEX('Inputs (values)'!$H$62:$KV$62,1,MATCH('Inputs (values)'!$H$11,'Inputs (values)'!$H$83:$KV$83,0))) -> 23.91473536 | FR22: =(INDEX('Inputs (values)'!$H$84:$KV$86,1,MATCH('Calculations (values)'!FR$21,'Inputs (values)'!$H$83:'Inputs (values)'!$KV$83,0))/INDEX('Inputs (values)'!$H$84:$KV$86,1,MATCH('Inputs (values)'!$H$10,'Inputs (values)'!$H$83:$KV$83,0)))*(INDEX('Inputs (values)'!$H$62:$KV$62,1,MATCH('Inputs (values)'!$H$12,'Inputs (values)'!$H$83:$KV$83,0))/INDEX('Inputs (values)'!$H$62:$KV$62,1,MATCH('Inputs (values)'!$H$11,'Inputs (values)'!$H$83:$KV$83,0))) -> 24.28725767 | FS22: =(INDEX('Inputs (values)'!$H$84:$KV$86,1,MATCH('Calculations (values)'!FS$21,'Inputs (values)'!$H$83:'Inputs (values)'!$KV$83,0))/INDEX('Inputs (values)'!$H$84:$KV$86,1,MATCH('Inputs (values)'!$H$10,'Inputs (values)'!$H$83:$KV$83,0)))*(INDEX('Inputs (values)'!$H$62:$KV$62,1,MATCH('Inputs (values)'!$H$12,'Inputs (values)'!$H$83:$KV$83,0))/INDEX('Inputs (values)'!$H$62:$KV$62,1,MATCH('Inputs (values)'!$H$11,'Inputs (values)'!$H$83:$KV$83,0))) -> 24.66558279 | FT22: =(INDEX('Inputs (values)'!$H$84:$KV$86,1,MATCH('Calculations (values)'!FT$21,'Inputs (values)'!$H$83:'Inputs (values)'!$KV$83,0))/INDEX('Inputs (values)'!$H$84:$KV$86,1,MATCH('Inputs (values)'!$H$10,'Inputs (values)'!$H$83:$KV$83,0)))*(INDEX('Inputs (values)'!$H$62:$KV$62,1,MATCH('Inputs (values)'!$H$12,'Inputs (values)'!$H$83:$KV$83,0))/INDEX('Inputs (values)'!$H$62:$KV$62,1,MATCH('Inputs (values)'!$H$11,'Inputs (values)'!$H$83:$KV$83,0))) -> 25.04980112 | FU22: =(INDEX('Inputs (values)'!$H$84:$KV$86,1,MATCH('Calculations (values)'!FU$21,'Inputs (values)'!$H$83:'Inputs (values)'!$KV$83,0))/INDEX('Inputs (values)'!$H$84:$KV$86,1,MATCH('Inputs (values)'!$H$10,'Inputs (values)'!$H$83:$KV$83,0)))*(INDEX('Inputs (values)'!$H$62:$KV$62,1,MATCH('Inputs (values)'!$H$12,'Inputs (values)'!$H$83:$KV$83,0))/INDEX('Inputs (values)'!$H$62:$KV$62,1,MATCH('Inputs (values)'!$H$11,'Inputs (values)'!$H$83:$KV$83,0))) -> 25.44000447 | FV22: =(INDEX('Inputs (values)'!$H$84:$KV$86,1,MATCH('Calculations (values)'!FV$21,'Inputs (values)'!$H$83:'Inputs (values)'!$KV$83,0))/INDEX('Inputs (values)'!$H$84:$KV$86,1,MATCH('Inputs (values)'!$H$10,'Inputs (values)'!$H$83:$KV$83,0)))*(INDEX('Inputs (values)'!$H$62:$KV$62,1,MATCH('Inputs (values)'!$H$12,'Inputs (values)'!$H$83:$KV$83,0))/INDEX('Inputs (values)'!$H$62:$KV$62,1,MATCH('Inputs (values)'!$H$11,'Inputs (values)'!$H$83:$KV$83,0))) -> 25.83628605 | FW22: =(INDEX('Inputs (values)'!$H$84:$KV$86,1,MATCH('Calculations (values)'!FW$21,'Inputs (values)'!$H$83:'Inputs (values)'!$KV$83,0))/INDEX('Inputs (values)'!$H$84:$KV$86,1,MATCH('Inputs (values)'!$H$10,'Inputs (values)'!$H$83:$KV$83,0)))*(INDEX('Inputs (values)'!$H$62:$KV$62,1,MATCH('Inputs (values)'!$H$12,'Inputs (values)'!$H$83:$KV$83,0))/INDEX('Inputs (values)'!$H$62:$KV$62,1,MATCH('Inputs (values)'!$H$11,'Inputs (values)'!$H$83:$KV$83,0))) -> 26.23874055 | FX22: =(INDEX('Inputs (values)'!$H$84:$KV$86,1,MATCH('Calculations (values)'!FX$21,'Inputs (values)'!$H$83:'Inputs (values)'!$KV$83,0))/INDEX('Inputs (values)'!$H$84:$KV$86,1,MATCH('Inputs (values)'!$H$10,'Inputs (values)'!$H$83:$KV$83,0)))*(INDEX('Inputs (values)'!$H$62:$KV$62,1,MATCH('Inputs (values)'!$H$12,'Inputs (values)'!$H$83:$KV$83,0))/INDEX('Inputs (values)'!$H$62:$KV$62,1,MATCH('Inputs (values)'!$H$11,'Inputs (values)'!$H$83:$KV$83,0))) -> 26.64746412 | FY22: =(INDEX('Inputs (values)'!$H$84:$KV$86,1,MATCH('Calculations (values)'!FY$21,'Inputs (values)'!$H$83:'Inputs (values)'!$KV$83,0))/INDEX('Inputs (values)'!$H$84:$KV$86,1,MATCH('Inputs (values)'!$H$10,'Inputs (values)'!$H$83:$KV$83,0)))*(INDEX('Inputs (values)'!$H$62:$KV$62,1,MATCH('Inputs (values)'!$H$12,'Inputs (values)'!$H$83:$KV$83,0))/INDEX('Inputs (values)'!$H$62:$KV$62,1,MATCH('Inputs (values)'!$H$11,'Inputs (values)'!$H$83:$KV$83,0))) -> 27.06255443 | FZ22: =(INDEX('Inputs (values)'!$H$84:$KV$86,1,MATCH('Calculations (values)'!FZ$21,'Inputs (values)'!$H$83:'Inputs (values)'!$KV$83,0))/INDEX('Inputs (values)'!$H$84:$KV$86,1,MATCH('Inputs (values)'!$H$10,'Inputs (values)'!$H$83:$KV$83,0)))*(INDEX('Inputs (values)'!$H$62:$KV$62,1,MATCH('Inputs (values)'!$H$12,'Inputs (values)'!$H$83:$KV$83,0))/INDEX('Inputs (values)'!$H$62:$KV$62,1,MATCH('Inputs (values)'!$H$11,'Inputs (values)'!$H$83:$KV$83,0))) -> 27.48411064 | GA22: =(INDEX('Inputs (values)'!$H$84:$KV$86,1,MATCH('Calculations (values)'!GA$21,'Inputs (values)'!$H$83:'Inputs (values)'!$KV$83,0))/INDEX('Inputs (values)'!$H$84:$KV$86,1,MATCH('Inputs (values)'!$H$10,'Inputs (values)'!$H$83:$KV$83,0)))*(INDEX('Inputs (values)'!$H$62:$KV$62,1,MATCH('Inputs (values)'!$H$12,'Inputs (values)'!$H$83:$KV$83,0))/INDEX('Inputs (values)'!$H$62:$KV$62,1,MATCH('Inputs (values)'!$H$11,'Inputs (values)'!$H$83:$KV$83,0))) -> 27.91223347 | GB22: =(INDEX('Inputs (values)'!$H$84:$KV$86,1,MATCH('Calculations (values)'!GB$21,'Inputs (values)'!$H$83:'Inputs (values)'!$KV$83,0))/INDEX('Inputs (values)'!$H$84:$KV$86,1,MATCH('Inputs (values)'!$H$10,'Inputs (values)'!$H$83:$KV$83,0)))*(INDEX('Inputs (values)'!$H$62:$KV$62,1,MATCH('Inputs (values)'!$H$12,'Inputs (values)'!$H$83:$KV$83,0))/INDEX('Inputs (values)'!$H$62:$KV$62,1,MATCH('Inputs (values)'!$H$11,'Inputs (values)'!$H$83:$KV$83,0))) -> 28.34702522 | GC22: =(INDEX('Inputs (values)'!$H$84:$KV$86,1,MATCH('Calculations (values)'!GC$21,'Inputs (values)'!$H$83:'Inputs (values)'!$KV$83,0))/INDEX('Inputs (values)'!$H$84:$KV$86,1,MATCH('Inputs (values)'!$H$10,'Inputs (values)'!$H$83:$KV$83,0)))*(INDEX('Inputs (values)'!$H$62:$KV$62,1,MATCH('Inputs (values)'!$H$12,'Inputs (values)'!$H$83:$KV$83,0))/INDEX('Inputs (values)'!$H$62:$KV$62,1,MATCH('Inputs (values)'!$H$11,'Inputs (values)'!$H$83:$KV$83,0))) -> 28.78858976 | GD22: =(INDEX('Inputs (values)'!$H$84:$KV$86,1,MATCH('Calculations (values)'!GD$21,'Inputs (values)'!$H$83:'Inputs (values)'!$KV$83,0))/INDEX('Inputs (values)'!$H$84:$KV$86,1,MATCH('Inputs (values)'!$H$10,'Inputs (values)'!$H$83:$KV$83,0)))*(INDEX('Inputs (values)'!$H$62:$KV$62,1,MATCH('Inputs (values)'!$H$12,'Inputs (values)'!$H$83:$KV$83,0))/INDEX('Inputs (values)'!$H$62:$KV$62,1,MATCH('Inputs (values)'!$H$11,'Inputs (values)'!$H$83:$KV$83,0))) -> 29.2370326 | GE22: =(INDEX('Inputs (values)'!$H$84:$KV$86,1,MATCH('Calculations (values)'!GE$21,'Inputs (values)'!$H$83:'Inputs (values)'!$KV$83,0))/INDEX('Inputs (values)'!$H$84:$KV$86,1,MATCH('Inputs (values)'!$H$10,'Inputs (values)'!$H$83:$KV$83,0)))*(INDEX('Inputs (values)'!$H$62:$KV$62,1,MATCH('Inputs (values)'!$H$12,'Inputs (values)'!$H$83:$KV$83,0))/INDEX('Inputs (values)'!$H$62:$KV$62,1,MATCH('Inputs (values)'!$H$11,'Inputs (values)'!$H$83:$KV$83,0))) -> 29.69246088 | GF22: =(INDEX('Inputs (values)'!$H$84:$KV$86,1,MATCH('Calculations (values)'!GF$21,'Inputs (values)'!$H$83:'Inputs (values)'!$KV$83,0))/INDEX('Inputs (values)'!$H$84:$KV$86,1,MATCH('Inputs (values)'!$H$10,'Inputs (values)'!$H$83:$KV$83,0)))*(INDEX('Inputs (values)'!$H$62:$KV$62,1,MATCH('Inputs (values)'!$H$12,'Inputs (values)'!$H$83:$KV$83,0))/INDEX('Inputs (values)'!$H$62:$KV$62,1,MATCH('Inputs (values)'!$H$11,'Inputs (values)'!$H$83:$KV$83,0))) -> 30.15498342 | GG22: =(INDEX('Inputs (values)'!$H$84:$KV$86,1,MATCH('Calculations (values)'!GG$21,'Inputs (values)'!$H$83:'Inputs (values)'!$KV$83,0))/INDEX('Inputs (values)'!$H$84:$KV$86,1,MATCH('Inputs (values)'!$H$10,'Inputs (values)'!$H$83:$KV$83,0)))*(INDEX('Inputs (values)'!$H$62:$KV$62,1,MATCH('Inputs (values)'!$H$12,'Inputs (values)'!$H$83:$KV$83,0))/INDEX('Inputs (values)'!$H$62:$KV$62,1,MATCH('Inputs (values)'!$H$11,'Inputs (values)'!$H$83:$KV$83,0))) -> 30.62471071 | GH22: =(INDEX('Inputs (values)'!$H$84:$KV$86,1,MATCH('Calculations (values)'!GH$21,'Inputs (values)'!$H$83:'Inputs (values)'!$KV$83,0))/INDEX('Inputs (values)'!$H$84:$KV$86,1,MATCH('Inputs (values)'!$H$10,'Inputs (values)'!$H$83:$KV$83,0)))*(INDEX('Inputs (values)'!$H$62:$KV$62,1,MATCH('Inputs (values)'!$H$12,'Inputs (values)'!$H$83:$KV$83,0))/INDEX('Inputs (values)'!$H$62:$KV$62,1,MATCH('Inputs (values)'!$H$11,'Inputs (values)'!$H$83:$KV$83,0))) -> 31.101755 | GI22: =(INDEX('Inputs (values)'!$H$84:$KV$86,1,MATCH('Calculations (values)'!GI$21,'Inputs (values)'!$H$83:'Inputs (values)'!$KV$83,0))/INDEX('Inputs (values)'!$H$84:$KV$86,1,MATCH('Inputs (values)'!$H$10,'Inputs (values)'!$H$83:$KV$83,0)))*(INDEX('Inputs (values)'!$H$62:$KV$62,1,MATCH('Inputs (values)'!$H$12,'Inputs (values)'!$H$83:$KV$83,0))/INDEX('Inputs (values)'!$H$62:$KV$62,1,MATCH('Inputs (values)'!$H$11,'Inputs (values)'!$H$83:$KV$83,0))) -> 31.58623025 | GJ22: =(INDEX('Inputs (values)'!$H$84:$KV$86,1,MATCH('Calculations (values)'!GJ$21,'Inputs (values)'!$H$83:'Inputs (values)'!$KV$83,0))/INDEX('Inputs (values)'!$H$84:$KV$86,1,MATCH('Inputs (values)'!$H$10,'Inputs (values)'!$H$83:$KV$83,0)))*(INDEX('Inputs (values)'!$H$62:$KV$62,1,MATCH('Inputs (values)'!$H$12,'Inputs (values)'!$H$83:$KV$83,0))/INDEX('Inputs (values)'!$H$62:$KV$62,1,MATCH('Inputs (values)'!$H$11,'Inputs (values)'!$H$83:$KV$83,0))) -> 32.07825223 | GK22: =(INDEX('Inputs (values)'!$H$84:$KV$86,1,MATCH('Calculations (values)'!GK$21,'Inputs (values)'!$H$83:'Inputs (values)'!$KV$83,0))/INDEX('Inputs (values)'!$H$84:$KV$86,1,MATCH('Inputs (values)'!$H$10,'Inputs (values)'!$H$83:$KV$83,0)))*(INDEX('Inputs (values)'!$H$62:$KV$62,1,MATCH('Inputs (values)'!$H$12,'Inputs (values)'!$H$83:$KV$83,0))/INDEX('Inputs (values)'!$H$62:$KV$62,1,MATCH('Inputs (values)'!$H$11,'Inputs (values)'!$H$83:$KV$83,0))) -> 32.57793848 | GL22: =(INDEX('Inputs (values)'!$H$84:$KV$86,1,MATCH('Calculations (values)'!GL$21,'Inputs (values)'!$H$83:'Inputs (values)'!$KV$83,0))/INDEX('Inputs (values)'!$H$84:$KV$86,1,MATCH('Inputs (values)'!$H$10,'Inputs (values)'!$H$83:$KV$83,0)))*(INDEX('Inputs (values)'!$H$62:$KV$62,1,MATCH('Inputs (values)'!$H$12,'Inputs (values)'!$H$83:$KV$83,0))/INDEX('Inputs (values)'!$H$62:$KV$62,1,MATCH('Inputs (values)'!$H$11,'Inputs (values)'!$H$83:$KV$83,0))) -> 33.0854084 | GM22: =(INDEX('Inputs (values)'!$H$84:$KV$86,1,MATCH('Calculations (values)'!GM$21,'Inputs (values)'!$H$83:'Inputs (values)'!$KV$83,0))/INDEX('Inputs (values)'!$H$84:$KV$86,1,MATCH('Inputs (values)'!$H$10,'Inputs (values)'!$H$83:$KV$83,0)))*(INDEX('Inputs (values)'!$H$62:$KV$62,1,MATCH('Inputs (values)'!$H$12,'Inputs (values)'!$H$83:$KV$83,0))/INDEX('Inputs (values)'!$H$62:$KV$62,1,MATCH('Inputs (values)'!$H$11,'Inputs (values)'!$H$83:$KV$83,0))) -> 33.60078322 | GN22: =(INDEX('Inputs (values)'!$H$84:$KV$86,1,MATCH('Calculations (values)'!GN$21,'Inputs (values)'!$H$83:'Inputs (values)'!$KV$83,0))/INDEX('Inputs (values)'!$H$84:$KV$86,1,MATCH('Inputs (values)'!$H$10,'Inputs (values)'!$H$83:$KV$83,0)))*(INDEX('Inputs (values)'!$H$62:$KV$62,1,MATCH('Inputs (values)'!$H$12,'Inputs (values)'!$H$83:$KV$83,0))/INDEX('Inputs (values)'!$H$62:$KV$62,1,MATCH('Inputs (values)'!$H$11,'Inputs (values)'!$H$83:$KV$83,0))) -> 34.1241861 | GO22: =(INDEX('Inputs (values)'!$H$84:$KV$86,1,MATCH('Calculations (values)'!GO$21,'Inputs (values)'!$H$83:'Inputs (values)'!$KV$83,0))/INDEX('Inputs (values)'!$H$84:$KV$86,1,MATCH('Inputs (values)'!$H$10,'Inputs (values)'!$H$83:$KV$83,0)))*(INDEX('Inputs (values)'!$H$62:$KV$62,1,MATCH('Inputs (values)'!$H$12,'Inputs (values)'!$H$83:$KV$83,0))/INDEX('Inputs (values)'!$H$62:$KV$62,1,MATCH('Inputs (values)'!$H$11,'Inputs (values)'!$H$83:$KV$83,0))) -> 34.65574208 | GP22: =(INDEX('Inputs (values)'!$H$84:$KV$86,1,MATCH('Calculations (values)'!GP$21,'Inputs (values)'!$H$83:'Inputs (values)'!$KV$83,0))/INDEX('Inputs (values)'!$H$84:$KV$86,1,MATCH('Inputs (values)'!$H$10,'Inputs (values)'!$H$83:$KV$83,0)))*(INDEX('Inputs (values)'!$H$62:$KV$62,1,MATCH('Inputs (values)'!$H$12,'Inputs (values)'!$H$83:$KV$83,0))/INDEX('Inputs (values)'!$H$62:$KV$62,1,MATCH('Inputs (values)'!$H$11,'Inputs (values)'!$H$83:$KV$83,0))) -> 35.19557815 | GQ22: =(INDEX('Inputs (values)'!$H$84:$KV$86,1,MATCH('Calculations (values)'!GQ$21,'Inputs (values)'!$H$83:'Inputs (values)'!$KV$83,0))/INDEX('Inputs (values)'!$H$84:$KV$86,1,MATCH('Inputs (values)'!$H$10,'Inputs (values)'!$H$83:$KV$83,0)))*(INDEX('Inputs (values)'!$H$62:$KV$62,1,MATCH('Inputs (values)'!$H$12,'Inputs (values)'!$H$83:$KV$83,0))/INDEX('Inputs (values)'!$H$62:$KV$62,1,MATCH('Inputs (values)'!$H$11,'Inputs (values)'!$H$83:$KV$83,0))) -> 35.74382332 | GR22: =(INDEX('Inputs (values)'!$H$84:$KV$86,1,MATCH('Calculations (values)'!GR$21,'Inputs (values)'!$H$83:'Inputs (values)'!$KV$83,0))/INDEX('Inputs (values)'!$H$84:$KV$86,1,MATCH('Inputs (values)'!$H$10,'Inputs (values)'!$H$83:$KV$83,0)))*(INDEX('Inputs (values)'!$H$62:$KV$62,1,MATCH('Inputs (values)'!$H$12,'Inputs (values)'!$H$83:$KV$83,0))/INDEX('Inputs (values)'!$H$62:$KV$62,1,MATCH('Inputs (values)'!$H$11,'Inputs (values)'!$H$83:$KV$83,0))) -> 36.30060855 | GS22: =(INDEX('Inputs (values)'!$H$84:$KV$86,1,MATCH('Calculations (values)'!GS$21,'Inputs (values)'!$H$83:'Inputs (values)'!$KV$83,0))/INDEX('Inputs (values)'!$H$84:$KV$86,1,MATCH('Inputs (values)'!$H$10,'Inputs (values)'!$H$83:$KV$83,0)))*(INDEX('Inputs (values)'!$H$62:$KV$62,1,MATCH('Inputs (values)'!$H$12,'Inputs (values)'!$H$83:$KV$83,0))/INDEX('Inputs (values)'!$H$62:$KV$62,1,MATCH('Inputs (values)'!$H$11,'Inputs (values)'!$H$83:$KV$83,0))) -> 36.86606688 | GT22: =(INDEX('Inputs (values)'!$H$84:$KV$86,1,MATCH('Calculations (values)'!GT$21,'Inputs (values)'!$H$83:'Inputs (values)'!$KV$83,0))/INDEX('Inputs (values)'!$H$84:$KV$86,1,MATCH('Inputs (values)'!$H$10,'Inputs (values)'!$H$83:$KV$83,0)))*(INDEX('Inputs (values)'!$H$62:$KV$62,1,MATCH('Inputs (values)'!$H$12,'Inputs (values)'!$H$83:$KV$83,0))/INDEX('Inputs (values)'!$H$62:$KV$62,1,MATCH('Inputs (values)'!$H$11,'Inputs (values)'!$H$83:$KV$83,0))) -> 37.44033342 | GU22: =(INDEX('Inputs (values)'!$H$84:$KV$86,1,MATCH('Calculations (values)'!GU$21,'Inputs (values)'!$H$83:'Inputs (values)'!$KV$83,0))/INDEX('Inputs (values)'!$H$84:$KV$86,1,MATCH('Inputs (values)'!$H$10,'Inputs (values)'!$H$83:$KV$83,0)))*(INDEX('Inputs (values)'!$H$62:$KV$62,1,MATCH('Inputs (values)'!$H$12,'Inputs (values)'!$H$83:$KV$83,0))/INDEX('Inputs (values)'!$H$62:$KV$62,1,MATCH('Inputs (values)'!$H$11,'Inputs (values)'!$H$83:$KV$83,0))) -> 38.02354536 | GV22: =(INDEX('Inputs (values)'!$H$84:$KV$86,1,MATCH('Calculations (values)'!GV$21,'Inputs (values)'!$H$83:'Inputs (values)'!$KV$83,0))/INDEX('Inputs (values)'!$H$84:$KV$86,1,MATCH('Inputs (values)'!$H$10,'Inputs (values)'!$H$83:$KV$83,0)))*(INDEX('Inputs (values)'!$H$62:$KV$62,1,MATCH('Inputs (values)'!$H$12,'Inputs (values)'!$H$83:$KV$83,0))/INDEX('Inputs (values)'!$H$62:$KV$62,1,MATCH('Inputs (values)'!$H$11,'Inputs (values)'!$H$83:$KV$83,0))) -> 38.61584206 | GW22: =(INDEX('Inputs (values)'!$H$84:$KV$86,1,MATCH('Calculations (values)'!GW$21,'Inputs (values)'!$H$83:'Inputs (values)'!$KV$83,0))/INDEX('Inputs (values)'!$H$84:$KV$86,1,MATCH('Inputs (values)'!$H$10,'Inputs (values)'!$H$83:$KV$83,0)))*(INDEX('Inputs (values)'!$H$62:$KV$62,1,MATCH('Inputs (values)'!$H$12,'Inputs (values)'!$H$83:$KV$83,0))/INDEX('Inputs (values)'!$H$62:$KV$62,1,MATCH('Inputs (values)'!$H$11,'Inputs (values)'!$H$83:$KV$83,0))) -> 39.21736503 | GX22: =(INDEX('Inputs (values)'!$H$84:$KV$86,1,MATCH('Calculations (values)'!GX$21,'Inputs (values)'!$H$83:'Inputs (values)'!$KV$83,0))/INDEX('Inputs (values)'!$H$84:$KV$86,1,MATCH('Inputs (values)'!$H$10,'Inputs (values)'!$H$83:$KV$83,0)))*(INDEX('Inputs (values)'!$H$62:$KV$62,1,MATCH('Inputs (values)'!$H$12,'Inputs (values)'!$H$83:$KV$83,0))/INDEX('Inputs (values)'!$H$62:$KV$62,1,MATCH('Inputs (values)'!$H$11,'Inputs (values)'!$H$83:$KV$83,0))) -> 39.82825798 | GY22: =(INDEX('Inputs (values)'!$H$84:$KV$86,1,MATCH('Calculations (values)'!GY$21,'Inputs (values)'!$H$83:'Inputs (values)'!$KV$83,0))/INDEX('Inputs (values)'!$H$84:$KV$86,1,MATCH('Inputs (values)'!$H$10,'Inputs (values)'!$H$83:$KV$83,0)))*(INDEX('Inputs (values)'!$H$62:$KV$62,1,MATCH('Inputs (values)'!$H$12,'Inputs (values)'!$H$83:$KV$83,0))/INDEX('Inputs (values)'!$H$62:$KV$62,1,MATCH('Inputs (values)'!$H$11,'Inputs (values)'!$H$83:$KV$83,0))) -> 40.44866687 | GZ22: =(INDEX('Inputs (values)'!$H$84:$KV$86,1,MATCH('Calculations (values)'!GZ$21,'Inputs (values)'!$H$83:'Inputs (values)'!$KV$83,0))/INDEX('Inputs (values)'!$H$84:$KV$86,1,MATCH('Inputs (values)'!$H$10,'Inputs (values)'!$H$83:$KV$83,0)))*(INDEX('Inputs (values)'!$H$62:$KV$62,1,MATCH('Inputs (values)'!$H$12,'Inputs (values)'!$H$83:$KV$83,0))/INDEX('Inputs (values)'!$H$62:$KV$62,1,MATCH('Inputs (values)'!$H$11,'Inputs (values)'!$H$83:$KV$83,0))) -> 41.07873994 | HA22: =(INDEX('Inputs (values)'!$H$84:$KV$86,1,MATCH('Calculations (values)'!HA$21,'Inputs (values)'!$H$83:'Inputs (values)'!$KV$83,0))/INDEX('Inputs (values)'!$H$84:$KV$86,1,MATCH('Inputs (values)'!$H$10,'Inputs (values)'!$H$83:$KV$83,0)))*(INDEX('Inputs (values)'!$H$62:$KV$62,1,MATCH('Inputs (values)'!$H$12,'Inputs (values)'!$H$83:$KV$83,0))/INDEX('Inputs (values)'!$H$62:$KV$62,1,MATCH('Inputs (values)'!$H$11,'Inputs (values)'!$H$83:$KV$83,0))) -> 41.71862772 | HB22: =(INDEX('Inputs (values)'!$H$84:$KV$86,1,MATCH('Calculations (values)'!HB$21,'Inputs (values)'!$H$83:'Inputs (values)'!$KV$83,0))/INDEX('Inputs (values)'!$H$84:$KV$86,1,MATCH('Inputs (values)'!$H$10,'Inputs (values)'!$H$83:$KV$83,0)))*(INDEX('Inputs (values)'!$H$62:$KV$62,1,MATCH('Inputs (values)'!$H$12,'Inputs (values)'!$H$83:$KV$83,0))/INDEX('Inputs (values)'!$H$62:$KV$62,1,MATCH('Inputs (values)'!$H$11,'Inputs (values)'!$H$83:$KV$83,0))) -> 42.3684831 | HC22: =(INDEX('Inputs (values)'!$H$84:$KV$86,1,MATCH('Calculations (values)'!HC$21,'Inputs (values)'!$H$83:'Inputs (values)'!$KV$83,0))/INDEX('Inputs (values)'!$H$84:$KV$86,1,MATCH('Inputs (values)'!$H$10,'Inputs (values)'!$H$83:$KV$83,0)))*(INDEX('Inputs (values)'!$H$62:$KV$62,1,MATCH('Inputs (values)'!$H$12,'Inputs (values)'!$H$83:$KV$83,0))/INDEX('Inputs (values)'!$H$62:$KV$62,1,MATCH('Inputs (values)'!$H$11,'Inputs (values)'!$H$83:$KV$83,0))) -> 43.02846134 | HD22: =(INDEX('Inputs (values)'!$H$84:$KV$86,1,MATCH('Calculations (values)'!HD$21,'Inputs (values)'!$H$83:'Inputs (values)'!$KV$83,0))/INDEX('Inputs (values)'!$H$84:$KV$86,1,MATCH('Inputs (values)'!$H$10,'Inputs (values)'!$H$83:$KV$83,0)))*(INDEX('Inputs (values)'!$H$62:$KV$62,1,MATCH('Inputs (values)'!$H$12,'Inputs (values)'!$H$83:$KV$83,0))/INDEX('Inputs (values)'!$H$62:$KV$62,1,MATCH('Inputs (values)'!$H$11,'Inputs (values)'!$H$83:$KV$83,0))) -> 43.69872013 | HE22: =(INDEX('Inputs (values)'!$H$84:$KV$86,1,MATCH('Calculations (values)'!HE$21,'Inputs (values)'!$H$83:'Inputs (values)'!$KV$83,0))/INDEX('Inputs (values)'!$H$84:$KV$86,1,MATCH('Inputs (values)'!$H$10,'Inputs (values)'!$H$83:$KV$83,0)))*(INDEX('Inputs (values)'!$H$62:$KV$62,1,MATCH('Inputs (values)'!$H$12,'Inputs (values)'!$H$83:$KV$83,0))/INDEX('Inputs (values)'!$H$62:$KV$62,1,MATCH('Inputs (values)'!$H$11,'Inputs (values)'!$H$83:$KV$83,0))) -> 44.37941962 | HF22: =(INDEX('Inputs (values)'!$H$84:$KV$86,1,MATCH('Calculations (values)'!HF$21,'Inputs (values)'!$H$83:'Inputs (values)'!$KV$83,0))/INDEX('Inputs (values)'!$H$84:$KV$86,1,MATCH('Inputs (values)'!$H$10,'Inputs (values)'!$H$83:$KV$83,0)))*(INDEX('Inputs (values)'!$H$62:$KV$62,1,MATCH('Inputs (values)'!$H$12,'Inputs (values)'!$H$83:$KV$83,0))/INDEX('Inputs (values)'!$H$62:$KV$62,1,MATCH('Inputs (values)'!$H$11,'Inputs (values)'!$H$83:$KV$83,0))) -> 45.07072243 | HG22: =(INDEX('Inputs (values)'!$H$84:$KV$86,1,MATCH('Calculations (values)'!HG$21,'Inputs (values)'!$H$83:'Inputs (values)'!$KV$83,0))/INDEX('Inputs (values)'!$H$84:$KV$86,1,MATCH('Inputs (values)'!$H$10,'Inputs (values)'!$H$83:$KV$83,0)))*(INDEX('Inputs (values)'!$H$62:$KV$62,1,MATCH('Inputs (values)'!$H$12,'Inputs (values)'!$H$83:$KV$83,0))/INDEX('Inputs (values)'!$H$62:$KV$62,1,MATCH('Inputs (values)'!$H$11,'Inputs (values)'!$H$83:$KV$83,0))) -> 45.77279373 | HH22: =(INDEX('Inputs (values)'!$H$84:$KV$86,1,MATCH('Calculations (values)'!HH$21,'Inputs (values)'!$H$83:'Inputs (values)'!$KV$83,0))/INDEX('Inputs (values)'!$H$84:$KV$86,1,MATCH('Inputs (values)'!$H$10,'Inputs (values)'!$H$83:$KV$83,0)))*(INDEX('Inputs (values)'!$H$62:$KV$62,1,MATCH('Inputs (values)'!$H$12,'Inputs (values)'!$H$83:$KV$83,0))/INDEX('Inputs (values)'!$H$62:$KV$62,1,MATCH('Inputs (values)'!$H$11,'Inputs (values)'!$H$83:$KV$83,0))) -> 46.48580127 | HI22: =(INDEX('Inputs (values)'!$H$84:$KV$86,1,MATCH('Calculations (values)'!HI$21,'Inputs (values)'!$H$83:'Inputs (values)'!$KV$83,0))/INDEX('Inputs (values)'!$H$84:$KV$86,1,MATCH('Inputs (values)'!$H$10,'Inputs (values)'!$H$83:$KV$83,0)))*(INDEX('Inputs (values)'!$H$62:$KV$62,1,MATCH('Inputs (values)'!$H$12,'Inputs (values)'!$H$83:$KV$83,0))/INDEX('Inputs (values)'!$H$62:$KV$62,1,MATCH('Inputs (values)'!$H$11,'Inputs (values)'!$H$83:$KV$83,0))) -> 47.20991541 | HJ22: =(INDEX('Inputs (values)'!$H$84:$KV$86,1,MATCH('Calculations (values)'!HJ$21,'Inputs (values)'!$H$83:'Inputs (values)'!$KV$83,0))/INDEX('Inputs (values)'!$H$84:$KV$86,1,MATCH('Inputs (values)'!$H$10,'Inputs (values)'!$H$83:$KV$83,0)))*(INDEX('Inputs (values)'!$H$62:$KV$62,1,MATCH('Inputs (values)'!$H$12,'Inputs (values)'!$H$83:$KV$83,0))/INDEX('Inputs (values)'!$H$62:$KV$62,1,MATCH('Inputs (values)'!$H$11,'Inputs (values)'!$H$83:$KV$83,0))) -> 47.94530914 | HK22: =(INDEX('Inputs (values)'!$H$84:$KV$86,1,MATCH('Calculations (values)'!HK$21,'Inputs (values)'!$H$83:'Inputs (values)'!$KV$83,0))/INDEX('Inputs (values)'!$H$84:$KV$86,1,MATCH('Inputs (values)'!$H$10,'Inputs (values)'!$H$83:$KV$83,0)))*(INDEX('Inputs (values)'!$H$62:$KV$62,1,MATCH('Inputs (values)'!$H$12,'Inputs (values)'!$H$83:$KV$83,0))/INDEX('Inputs (values)'!$H$62:$KV$62,1,MATCH('Inputs (values)'!$H$11,'Inputs (values)'!$H$83:$KV$83,0))) -> 48.69215818 | HL22: =(INDEX('Inputs (values)'!$H$84:$KV$86,1,MATCH('Calculations (values)'!HL$21,'Inputs (values)'!$H$83:'Inputs (values)'!$KV$83,0))/INDEX('Inputs (values)'!$H$84:$KV$86,1,MATCH('Inputs (values)'!$H$10,'Inputs (values)'!$H$83:$KV$83,0)))*(INDEX('Inputs (values)'!$H$62:$KV$62,1,MATCH('Inputs (values)'!$H$12,'Inputs (values)'!$H$83:$KV$83,0))/INDEX('Inputs (values)'!$H$62:$KV$62,1,MATCH('Inputs (values)'!$H$11,'Inputs (values)'!$H$83:$KV$83,0))) -> 49.45064096 | HM22: =(INDEX('Inputs (values)'!$H$84:$KV$86,1,MATCH('Calculations (values)'!HM$21,'Inputs (values)'!$H$83:'Inputs (values)'!$KV$83,0))/INDEX('Inputs (values)'!$H$84:$KV$86,1,MATCH('Inputs (values)'!$H$10,'Inputs (values)'!$H$83:$KV$83,0)))*(INDEX('Inputs (values)'!$H$62:$KV$62,1,MATCH('Inputs (values)'!$H$12,'Inputs (values)'!$H$83:$KV$83,0))/INDEX('Inputs (values)'!$H$62:$KV$62,1,MATCH('Inputs (values)'!$H$11,'Inputs (values)'!$H$83:$KV$83,0))) -> 50.22093871 | HN22: =(INDEX('Inputs (values)'!$H$84:$KV$86,1,MATCH('Calculations (values)'!HN$21,'Inputs (values)'!$H$83:'Inputs (values)'!$KV$83,0))/INDEX('Inputs (values)'!$H$84:$KV$86,1,MATCH('Inputs (values)'!$H$10,'Inputs (values)'!$H$83:$KV$83,0)))*(INDEX('Inputs (values)'!$H$62:$KV$62,1,MATCH('Inputs (values)'!$H$12,'Inputs (values)'!$H$83:$KV$83,0))/INDEX('Inputs (values)'!$H$62:$KV$62,1,MATCH('Inputs (values)'!$H$11,'Inputs (values)'!$H$83:$KV$83,0))) -> 51.00323547 | HO22: =(INDEX('Inputs (values)'!$H$84:$KV$86,1,MATCH('Calculations (values)'!HO$21,'Inputs (values)'!$H$83:'Inputs (values)'!$KV$83,0))/INDEX('Inputs (values)'!$H$84:$KV$86,1,MATCH('Inputs (values)'!$H$10,'Inputs (values)'!$H$83:$KV$83,0)))*(INDEX('Inputs (values)'!$H$62:$KV$62,1,MATCH('Inputs (values)'!$H$12,'Inputs (values)'!$H$83:$KV$83,0))/INDEX('Inputs (values)'!$H$62:$KV$62,1,MATCH('Inputs (values)'!$H$11,'Inputs (values)'!$H$83:$KV$83,0))) -> 51.79771814 | HP22: =(INDEX('Inputs (values)'!$H$84:$KV$86,1,MATCH('Calculations (values)'!HP$21,'Inputs (values)'!$H$83:'Inputs (values)'!$KV$83,0))/INDEX('Inputs (values)'!$H$84:$KV$86,1,MATCH('Inputs (values)'!$H$10,'Inputs (values)'!$H$83:$KV$83,0)))*(INDEX('Inputs (values)'!$H$62:$KV$62,1,MATCH('Inputs (values)'!$H$12,'Inputs (values)'!$H$83:$KV$83,0))/INDEX('Inputs (values)'!$H$62:$KV$62,1,MATCH('Inputs (values)'!$H$11,'Inputs (values)'!$H$83:$KV$83,0))) -> 52.60457655 | HQ22: =(INDEX('Inputs (values)'!$H$84:$KV$86,1,MATCH('Calculations (values)'!HQ$21,'Inputs (values)'!$H$83:'Inputs (values)'!$KV$83,0))/INDEX('Inputs (values)'!$H$84:$KV$86,1,MATCH('Inputs (values)'!$H$10,'Inputs (values)'!$H$83:$KV$83,0)))*(INDEX('Inputs (values)'!$H$62:$KV$62,1,MATCH('Inputs (values)'!$H$12,'Inputs (values)'!$H$83:$KV$83,0))/INDEX('Inputs (values)'!$H$62:$KV$62,1,MATCH('Inputs (values)'!$H$11,'Inputs (values)'!$H$83:$KV$83,0))) -> 53.42400348 | HR22: =(INDEX('Inputs (values)'!$H$84:$KV$86,1,MATCH('Calculations (values)'!HR$21,'Inputs (values)'!$H$83:'Inputs (values)'!$KV$83,0))/INDEX('Inputs (values)'!$H$84:$KV$86,1,MATCH('Inputs (values)'!$H$10,'Inputs (values)'!$H$83:$KV$83,0)))*(INDEX('Inputs (values)'!$H$62:$KV$62,1,MATCH('Inputs (values)'!$H$12,'Inputs (values)'!$H$83:$KV$83,0))/INDEX('Inputs (values)'!$H$62:$KV$62,1,MATCH('Inputs (values)'!$H$11,'Inputs (values)'!$H$83:$KV$83,0))) -> 54.25619471 | HS22: =(INDEX('Inputs (values)'!$H$84:$KV$86,1,MATCH('Calculations (values)'!HS$21,'Inputs (values)'!$H$83:'Inputs (values)'!$KV$83,0))/INDEX('Inputs (values)'!$H$84:$KV$86,1,MATCH('Inputs (values)'!$H$10,'Inputs (values)'!$H$83:$KV$83,0)))*(INDEX('Inputs (values)'!$H$62:$KV$62,1,MATCH('Inputs (values)'!$H$12,'Inputs (values)'!$H$83:$KV$83,0))/INDEX('Inputs (values)'!$H$62:$KV$62,1,MATCH('Inputs (values)'!$H$11,'Inputs (values)'!$H$83:$KV$83,0))) -> 55.10134907 | HT22: =(INDEX('Inputs (values)'!$H$84:$KV$86,1,MATCH('Calculations (values)'!HT$21,'Inputs (values)'!$H$83:'Inputs (values)'!$KV$83,0))/INDEX('Inputs (values)'!$H$84:$KV$86,1,MATCH('Inputs (values)'!$H$10,'Inputs (values)'!$H$83:$KV$83,0)))*(INDEX('Inputs (values)'!$H$62:$KV$62,1,MATCH('Inputs (values)'!$H$12,'Inputs (values)'!$H$83:$KV$83,0))/INDEX('Inputs (values)'!$H$62:$KV$62,1,MATCH('Inputs (values)'!$H$11,'Inputs (values)'!$H$83:$KV$83,0))) -> 55.95966848 | HU22: =(INDEX('Inputs (values)'!$H$84:$KV$86,1,MATCH('Calculations (values)'!HU$21,'Inputs (values)'!$H$83:'Inputs (values)'!$KV$83,0))/INDEX('Inputs (values)'!$H$84:$KV$86,1,MATCH('Inputs (values)'!$H$10,'Inputs (values)'!$H$83:$KV$83,0)))*(INDEX('Inputs (values)'!$H$62:$KV$62,1,MATCH('Inputs (values)'!$H$12,'Inputs (values)'!$H$83:$KV$83,0))/INDEX('Inputs (values)'!$H$62:$KV$62,1,MATCH('Inputs (values)'!$H$11,'Inputs (values)'!$H$83:$KV$83,0))) -> 56.83135802 | HV22: =(INDEX('Inputs (values)'!$H$84:$KV$86,1,MATCH('Calculations (values)'!HV$21,'Inputs (values)'!$H$83:'Inputs (values)'!$KV$83,0))/INDEX('Inputs (values)'!$H$84:$KV$86,1,MATCH('Inputs (values)'!$H$10,'Inputs (values)'!$H$83:$KV$83,0)))*(INDEX('Inputs (values)'!$H$62:$KV$62,1,MATCH('Inputs (values)'!$H$12,'Inputs (values)'!$H$83:$KV$83,0))/INDEX('Inputs (values)'!$H$62:$KV$62,1,MATCH('Inputs (values)'!$H$11,'Inputs (values)'!$H$83:$KV$83,0))) -> 57.71662597 | HW22: =(INDEX('Inputs (values)'!$H$84:$KV$86,1,MATCH('Calculations (values)'!HW$21,'Inputs (values)'!$H$83:'Inputs (values)'!$KV$83,0))/INDEX('Inputs (values)'!$H$84:$KV$86,1,MATCH('Inputs (values)'!$H$10,'Inputs (values)'!$H$83:$KV$83,0)))*(INDEX('Inputs (values)'!$H$62:$KV$62,1,MATCH('Inputs (values)'!$H$12,'Inputs (values)'!$H$83:$KV$83,0))/INDEX('Inputs (values)'!$H$62:$KV$62,1,MATCH('Inputs (values)'!$H$11,'Inputs (values)'!$H$83:$KV$83,0))) -> 58.61568382 | HX22: =(INDEX('Inputs (values)'!$H$84:$KV$86,1,MATCH('Calculations (values)'!HX$21,'Inputs (values)'!$H$83:'Inputs (values)'!$KV$83,0))/INDEX('Inputs (values)'!$H$84:$KV$86,1,MATCH('Inputs (values)'!$H$10,'Inputs (values)'!$H$83:$KV$83,0)))*(INDEX('Inputs (values)'!$H$62:$KV$62,1,MATCH('Inputs (values)'!$H$12,'Inputs (values)'!$H$83:$KV$83,0))/INDEX('Inputs (values)'!$H$62:$KV$62,1,MATCH('Inputs (values)'!$H$11,'Inputs (values)'!$H$83:$KV$83,0))) -> 59.52874639 | HY22: =(INDEX('Inputs (values)'!$H$84:$KV$86,1,MATCH('Calculations (values)'!HY$21,'Inputs (values)'!$H$83:'Inputs (values)'!$KV$83,0))/INDEX('Inputs (values)'!$H$84:$KV$86,1,MATCH('Inputs (values)'!$H$10,'Inputs (values)'!$H$83:$KV$83,0)))*(INDEX('Inputs (values)'!$H$62:$KV$62,1,MATCH('Inputs (values)'!$H$12,'Inputs (values)'!$H$83:$KV$83,0))/INDEX('Inputs (values)'!$H$62:$KV$62,1,MATCH('Inputs (values)'!$H$11,'Inputs (values)'!$H$83:$KV$83,0))) -> 60.45603183 | HZ22: =(INDEX('Inputs (values)'!$H$84:$KV$86,1,MATCH('Calculations (values)'!HZ$21,'Inputs (values)'!$H$83:'Inputs (values)'!$KV$83,0))/INDEX('Inputs (values)'!$H$84:$KV$86,1,MATCH('Inputs (values)'!$H$10,'Inputs (values)'!$H$83:$KV$83,0)))*(INDEX('Inputs (values)'!$H$62:$KV$62,1,MATCH('Inputs (values)'!$H$12,'Inputs (values)'!$H$83:$KV$83,0))/INDEX('Inputs (values)'!$H$62:$KV$62,1,MATCH('Inputs (values)'!$H$11,'Inputs (values)'!$H$83:$KV$83,0))) -> 61.39776169 | IA22: =(INDEX('Inputs (values)'!$H$84:$KV$86,1,MATCH('Calculations (values)'!IA$21,'Inputs (values)'!$H$83:'Inputs (values)'!$KV$83,0))/INDEX('Inputs (values)'!$H$84:$KV$86,1,MATCH('Inputs (values)'!$H$10,'Inputs (values)'!$H$83:$KV$83,0)))*(INDEX('Inputs (values)'!$H$62:$KV$62,1,MATCH('Inputs (values)'!$H$12,'Inputs (values)'!$H$83:$KV$83,0))/INDEX('Inputs (values)'!$H$62:$KV$62,1,MATCH('Inputs (values)'!$H$11,'Inputs (values)'!$H$83:$KV$83,0))) -> 62.35416097 | IB22: =(INDEX('Inputs (values)'!$H$84:$KV$86,1,MATCH('Calculations (values)'!IB$21,'Inputs (values)'!$H$83:'Inputs (values)'!$KV$83,0))/INDEX('Inputs (values)'!$H$84:$KV$86,1,MATCH('Inputs (values)'!$H$10,'Inputs (values)'!$H$83:$KV$83,0)))*(INDEX('Inputs (values)'!$H$62:$KV$62,1,MATCH('Inputs (values)'!$H$12,'Inputs (values)'!$H$83:$KV$83,0))/INDEX('Inputs (values)'!$H$62:$KV$62,1,MATCH('Inputs (values)'!$H$11,'Inputs (values)'!$H$83:$KV$83,0))) -> 63.32545818 | IC22: =(INDEX('Inputs (values)'!$H$84:$KV$86,1,MATCH('Calculations (values)'!IC$21,'Inputs (values)'!$H$83:'Inputs (values)'!$KV$83,0))/INDEX('Inputs (values)'!$H$84:$KV$86,1,MATCH('Inputs (values)'!$H$10,'Inputs (values)'!$H$83:$KV$83,0)))*(INDEX('Inputs (values)'!$H$62:$KV$62,1,MATCH('Inputs (values)'!$H$12,'Inputs (values)'!$H$83:$KV$83,0))/INDEX('Inputs (values)'!$H$62:$KV$62,1,MATCH('Inputs (values)'!$H$11,'Inputs (values)'!$H$83:$KV$83,0))) -> 64.31188539 | ID22: =(INDEX('Inputs (values)'!$H$84:$KV$86,1,MATCH('Calculations (values)'!ID$21,'Inputs (values)'!$H$83:'Inputs (values)'!$KV$83,0))/INDEX('Inputs (values)'!$H$84:$KV$86,1,MATCH('Inputs (values)'!$H$10,'Inputs (values)'!$H$83:$KV$83,0)))*(INDEX('Inputs (values)'!$H$62:$KV$62,1,MATCH('Inputs (values)'!$H$12,'Inputs (values)'!$H$83:$KV$83,0))/INDEX('Inputs (values)'!$H$62:$KV$62,1,MATCH('Inputs (values)'!$H$11,'Inputs (values)'!$H$83:$KV$83,0))) -> 65.31367828 | IE22: =(INDEX('Inputs (values)'!$H$84:$KV$86,1,MATCH('Calculations (values)'!IE$21,'Inputs (values)'!$H$83:'Inputs (values)'!$KV$83,0))/INDEX('Inputs (values)'!$H$84:$KV$86,1,MATCH('Inputs (values)'!$H$10,'Inputs (values)'!$H$83:$KV$83,0)))*(INDEX('Inputs (values)'!$H$62:$KV$62,1,MATCH('Inputs (values)'!$H$12,'Inputs (values)'!$H$83:$KV$83,0))/INDEX('Inputs (values)'!$H$62:$KV$62,1,MATCH('Inputs (values)'!$H$11,'Inputs (values)'!$H$83:$KV$83,0))) -> 66.33107621 | IF22: =(INDEX('Inputs (values)'!$H$84:$KV$86,1,MATCH('Calculations (values)'!IF$21,'Inputs (values)'!$H$83:'Inputs (values)'!$KV$83,0))/INDEX('Inputs (values)'!$H$84:$KV$86,1,MATCH('Inputs (values)'!$H$10,'Inputs (values)'!$H$83:$KV$83,0)))*(INDEX('Inputs (values)'!$H$62:$KV$62,1,MATCH('Inputs (values)'!$H$12,'Inputs (values)'!$H$83:$KV$83,0))/INDEX('Inputs (values)'!$H$62:$KV$62,1,MATCH('Inputs (values)'!$H$11,'Inputs (values)'!$H$83:$KV$83,0))) -> 67.36432224 | IG22: =(INDEX('Inputs (values)'!$H$84:$KV$86,1,MATCH('Calculations (values)'!IG$21,'Inputs (values)'!$H$83:'Inputs (values)'!$KV$83,0))/INDEX('Inputs (values)'!$H$84:$KV$86,1,MATCH('Inputs (values)'!$H$10,'Inputs (values)'!$H$83:$KV$83,0)))*(INDEX('Inputs (values)'!$H$62:$KV$62,1,MATCH('Inputs (values)'!$H$12,'Inputs (values)'!$H$83:$KV$83,0))/INDEX('Inputs (values)'!$H$62:$KV$62,1,MATCH('Inputs (values)'!$H$11,'Inputs (values)'!$H$83:$KV$83,0))) -> 68.41366325 | IH22: =(INDEX('Inputs (values)'!$H$84:$KV$86,1,MATCH('Calculations (values)'!IH$21,'Inputs (values)'!$H$83:'Inputs (values)'!$KV$83,0))/INDEX('Inputs (values)'!$H$84:$KV$86,1,MATCH('Inputs (values)'!$H$10,'Inputs (values)'!$H$83:$KV$83,0)))*(INDEX('Inputs (values)'!$H$62:$KV$62,1,MATCH('Inputs (values)'!$H$12,'Inputs (values)'!$H$83:$KV$83,0))/INDEX('Inputs (values)'!$H$62:$KV$62,1,MATCH('Inputs (values)'!$H$11,'Inputs (values)'!$H$83:$KV$83,0))) -> 69.47934996 | II22: =(INDEX('Inputs (values)'!$H$84:$KV$86,1,MATCH('Calculations (values)'!II$21,'Inputs (values)'!$H$83:'Inputs (values)'!$KV$83,0))/INDEX('Inputs (values)'!$H$84:$KV$86,1,MATCH('Inputs (values)'!$H$10,'Inputs (values)'!$H$83:$KV$83,0)))*(INDEX('Inputs (values)'!$H$62:$KV$62,1,MATCH('Inputs (values)'!$H$12,'Inputs (values)'!$H$83:$KV$83,0))/INDEX('Inputs (values)'!$H$62:$KV$62,1,MATCH('Inputs (values)'!$H$11,'Inputs (values)'!$H$83:$KV$83,0))) -> 70.56163698 | IJ22: =(INDEX('Inputs (values)'!$H$84:$KV$86,1,MATCH('Calculations (values)'!IJ$21,'Inputs (values)'!$H$83:'Inputs (values)'!$KV$83,0))/INDEX('Inputs (values)'!$H$84:$KV$86,1,MATCH('Inputs (values)'!$H$10,'Inputs (values)'!$H$83:$KV$83,0)))*(INDEX('Inputs (values)'!$H$62:$KV$62,1,MATCH('Inputs (values)'!$H$12,'Inputs (values)'!$H$83:$KV$83,0))/INDEX('Inputs (values)'!$H$62:$KV$62,1,MATCH('Inputs (values)'!$H$11,'Inputs (values)'!$H$83:$KV$83,0))) -> 71.6607829 | IK22: =(INDEX('Inputs (values)'!$H$84:$KV$86,1,MATCH('Calculations (values)'!IK$21,'Inputs (values)'!$H$83:'Inputs (values)'!$KV$83,0))/INDEX('Inputs (values)'!$H$84:$KV$86,1,MATCH('Inputs (values)'!$H$10,'Inputs (values)'!$H$83:$KV$83,0)))*(INDEX('Inputs (values)'!$H$62:$KV$62,1,MATCH('Inputs (values)'!$H$12,'Inputs (values)'!$H$83:$KV$83,0))/INDEX('Inputs (values)'!$H$62:$KV$62,1,MATCH('Inputs (values)'!$H$11,'Inputs (values)'!$H$83:$KV$83,0))) -> 72.77705033 | IL22: =(INDEX('Inputs (values)'!$H$84:$KV$86,1,MATCH('Calculations (values)'!IL$21,'Inputs (values)'!$H$83:'Inputs (values)'!$KV$83,0))/INDEX('Inputs (values)'!$H$84:$KV$86,1,MATCH('Inputs (values)'!$H$10,'Inputs (values)'!$H$83:$KV$83,0)))*(INDEX('Inputs (values)'!$H$62:$KV$62,1,MATCH('Inputs (values)'!$H$12,'Inputs (values)'!$H$83:$KV$83,0))/INDEX('Inputs (values)'!$H$62:$KV$62,1,MATCH('Inputs (values)'!$H$11,'Inputs (values)'!$H$83:$KV$83,0))) -> 73.91070597 | IM22: =(INDEX('Inputs (values)'!$H$84:$KV$86,1,MATCH('Calculations (values)'!IM$21,'Inputs (values)'!$H$83:'Inputs (values)'!$KV$83,0))/INDEX('Inputs (values)'!$H$84:$KV$86,1,MATCH('Inputs (values)'!$H$10,'Inputs (values)'!$H$83:$KV$83,0)))*(INDEX('Inputs (values)'!$H$62:$KV$62,1,MATCH('Inputs (values)'!$H$12,'Inputs (values)'!$H$83:$KV$83,0))/INDEX('Inputs (values)'!$H$62:$KV$62,1,MATCH('Inputs (values)'!$H$11,'Inputs (values)'!$H$83:$KV$83,0))) -> 75.06202068 | IN22: =(INDEX('Inputs (values)'!$H$84:$KV$86,1,MATCH('Calculations (values)'!IN$21,'Inputs (values)'!$H$83:'Inputs (values)'!$KV$83,0))/INDEX('Inputs (values)'!$H$84:$KV$86,1,MATCH('Inputs (values)'!$H$10,'Inputs (values)'!$H$83:$KV$83,0)))*(INDEX('Inputs (values)'!$H$62:$KV$62,1,MATCH('Inputs (values)'!$H$12,'Inputs (values)'!$H$83:$KV$83,0))/INDEX('Inputs (values)'!$H$62:$KV$62,1,MATCH('Inputs (values)'!$H$11,'Inputs (values)'!$H$83:$KV$83,0))) -> 76.23126954 | IO22: =(INDEX('Inputs (values)'!$H$84:$KV$86,1,MATCH('Calculations (values)'!IO$21,'Inputs (values)'!$H$83:'Inputs (values)'!$KV$83,0))/INDEX('Inputs (values)'!$H$84:$KV$86,1,MATCH('Inputs (values)'!$H$10,'Inputs (values)'!$H$83:$KV$83,0)))*(INDEX('Inputs (values)'!$H$62:$KV$62,1,MATCH('Inputs (values)'!$H$12,'Inputs (values)'!$H$83:$KV$83,0))/INDEX('Inputs (values)'!$H$62:$KV$62,1,MATCH('Inputs (values)'!$H$11,'Inputs (values)'!$H$83:$KV$83,0))) -> 77.4187319 | IP22: =(INDEX('Inputs (values)'!$H$84:$KV$86,1,MATCH('Calculations (values)'!IP$21,'Inputs (values)'!$H$83:'Inputs (values)'!$KV$83,0))/INDEX('Inputs (values)'!$H$84:$KV$86,1,MATCH('Inputs (values)'!$H$10,'Inputs (values)'!$H$83:$KV$83,0)))*(INDEX('Inputs (values)'!$H$62:$KV$62,1,MATCH('Inputs (values)'!$H$12,'Inputs (values)'!$H$83:$KV$83,0))/INDEX('Inputs (values)'!$H$62:$KV$62,1,MATCH('Inputs (values)'!$H$11,'Inputs (values)'!$H$83:$KV$83,0))) -> 78.6246915 | IQ22: =(INDEX('Inputs (values)'!$H$84:$KV$86,1,MATCH('Calculations (values)'!IQ$21,'Inputs (values)'!$H$83:'Inputs (values)'!$KV$83,0))/INDEX('Inputs (values)'!$H$84:$KV$86,1,MATCH('Inputs (values)'!$H$10,'Inputs (values)'!$H$83:$KV$83,0)))*(INDEX('Inputs (values)'!$H$62:$KV$62,1,MATCH('Inputs (values)'!$H$12,'Inputs (values)'!$H$83:$KV$83,0))/INDEX('Inputs (values)'!$H$62:$KV$62,1,MATCH('Inputs (values)'!$H$11,'Inputs (values)'!$H$83:$KV$83,0))) -> 79.84943645 | IR22: =(INDEX('Inputs (values)'!$H$84:$KV$86,1,MATCH('Calculations (values)'!IR$21,'Inputs (values)'!$H$83:'Inputs (values)'!$KV$83,0))/INDEX('Inputs (values)'!$H$84:$KV$86,1,MATCH('Inputs (values)'!$H$10,'Inputs (values)'!$H$83:$KV$83,0)))*(INDEX('Inputs (values)'!$H$62:$KV$62,1,MATCH('Inputs (values)'!$H$12,'Inputs (values)'!$H$83:$KV$83,0))/INDEX('Inputs (values)'!$H$62:$KV$62,1,MATCH('Inputs (values)'!$H$11,'Inputs (values)'!$H$83:$KV$83,0))) -> 81.09325938 | IS22: =(INDEX('Inputs (values)'!$H$84:$KV$86,1,MATCH('Calculations (values)'!IS$21,'Inputs (values)'!$H$83:'Inputs (values)'!$KV$83,0))/INDEX('Inputs (values)'!$H$84:$KV$86,1,MATCH('Inputs (values)'!$H$10,'Inputs (values)'!$H$83:$KV$83,0)))*(INDEX('Inputs (values)'!$H$62:$KV$62,1,MATCH('Inputs (values)'!$H$12,'Inputs (values)'!$H$83:$KV$83,0))/INDEX('Inputs (values)'!$H$62:$KV$62,1,MATCH('Inputs (values)'!$H$11,'Inputs (values)'!$H$83:$KV$83,0))) -> 82.35645747 | IT22: =(INDEX('Inputs (values)'!$H$84:$KV$86,1,MATCH('Calculations (values)'!IT$21,'Inputs (values)'!$H$83:'Inputs (values)'!$KV$83,0))/INDEX('Inputs (values)'!$H$84:$KV$86,1,MATCH('Inputs (values)'!$H$10,'Inputs (values)'!$H$83:$KV$83,0)))*(INDEX('Inputs (values)'!$H$62:$KV$62,1,MATCH('Inputs (values)'!$H$12,'Inputs (values)'!$H$83:$KV$83,0))/INDEX('Inputs (values)'!$H$62:$KV$62,1,MATCH('Inputs (values)'!$H$11,'Inputs (values)'!$H$83:$KV$83,0))) -> 83.63933252 | IU22: =(INDEX('Inputs (values)'!$H$84:$KV$86,1,MATCH('Calculations (values)'!IU$21,'Inputs (values)'!$H$83:'Inputs (values)'!$KV$83,0))/INDEX('Inputs (values)'!$H$84:$KV$86,1,MATCH('Inputs (values)'!$H$10,'Inputs (values)'!$H$83:$KV$83,0)))*(INDEX('Inputs (values)'!$H$62:$KV$62,1,MATCH('Inputs (values)'!$H$12,'Inputs (values)'!$H$83:$KV$83,0))/INDEX('Inputs (values)'!$H$62:$KV$62,1,MATCH('Inputs (values)'!$H$11,'Inputs (values)'!$H$83:$KV$83,0))) -> 84.94219105 | IV22: =(INDEX('Inputs (values)'!$H$84:$KV$86,1,MATCH('Calculations (values)'!IV$21,'Inputs (values)'!$H$83:'Inputs (values)'!$KV$83,0))/INDEX('Inputs (values)'!$H$84:$KV$86,1,MATCH('Inputs (values)'!$H$10,'Inputs (values)'!$H$83:$KV$83,0)))*(INDEX('Inputs (values)'!$H$62:$KV$62,1,MATCH('Inputs (values)'!$H$12,'Inputs (values)'!$H$83:$KV$83,0))/INDEX('Inputs (values)'!$H$62:$KV$62,1,MATCH('Inputs (values)'!$H$11,'Inputs (values)'!$H$83:$KV$83,0))) -> 86.26534435 | IW22: =(INDEX('Inputs (values)'!$H$84:$KV$86,1,MATCH('Calculations (values)'!IW$21,'Inputs (values)'!$H$83:'Inputs (values)'!$KV$83,0))/INDEX('Inputs (values)'!$H$84:$KV$86,1,MATCH('Inputs (values)'!$H$10,'Inputs (values)'!$H$83:$KV$83,0)))*(INDEX('Inputs (values)'!$H$62:$KV$62,1,MATCH('Inputs (values)'!$H$12,'Inputs (values)'!$H$83:$KV$83,0))/INDEX('Inputs (values)'!$H$62:$KV$62,1,MATCH('Inputs (values)'!$H$11,'Inputs (values)'!$H$83:$KV$83,0))) -> 87.60910854 | IX22: =(INDEX('Inputs (values)'!$H$84:$KV$86,1,MATCH('Calculations (values)'!IX$21,'Inputs (values)'!$H$83:'Inputs (values)'!$KV$83,0))/INDEX('Inputs (values)'!$H$84:$KV$86,1,MATCH('Inputs (values)'!$H$10,'Inputs (values)'!$H$83:$KV$83,0)))*(INDEX('Inputs (values)'!$H$62:$KV$62,1,MATCH('Inputs (values)'!$H$12,'Inputs (values)'!$H$83:$KV$83,0))/INDEX('Inputs (values)'!$H$62:$KV$62,1,MATCH('Inputs (values)'!$H$11,'Inputs (values)'!$H$83:$KV$83,0))) -> 88.97380468 | IY22: =(INDEX('Inputs (values)'!$H$84:$KV$86,1,MATCH('Calculations (values)'!IY$21,'Inputs (values)'!$H$83:'Inputs (values)'!$KV$83,0))/INDEX('Inputs (values)'!$H$84:$KV$86,1,MATCH('Inputs (values)'!$H$10,'Inputs (values)'!$H$83:$KV$83,0)))*(INDEX('Inputs (values)'!$H$62:$KV$62,1,MATCH('Inputs (values)'!$H$12,'Inputs (values)'!$H$83:$KV$83,0))/INDEX('Inputs (values)'!$H$62:$KV$62,1,MATCH('Inputs (values)'!$H$11,'Inputs (values)'!$H$83:$KV$83,0))) -> 90.35975884 | IZ22: =(INDEX('Inputs (values)'!$H$84:$KV$86,1,MATCH('Calculations (values)'!IZ$21,'Inputs (values)'!$H$83:'Inputs (values)'!$KV$83,0))/INDEX('Inputs (values)'!$H$84:$KV$86,1,MATCH('Inputs (values)'!$H$10,'Inputs (values)'!$H$83:$KV$83,0)))*(INDEX('Inputs (values)'!$H$62:$KV$62,1,MATCH('Inputs (values)'!$H$12,'Inputs (values)'!$H$83:$KV$83,0))/INDEX('Inputs (values)'!$H$62:$KV$62,1,MATCH('Inputs (values)'!$H$11,'Inputs (values)'!$H$83:$KV$83,0))) -> 91.76730215 | JA22: =(INDEX('Inputs (values)'!$H$84:$KV$86,1,MATCH('Calculations (values)'!JA$21,'Inputs (values)'!$H$83:'Inputs (values)'!$KV$83,0))/INDEX('Inputs (values)'!$H$84:$KV$86,1,MATCH('Inputs (values)'!$H$10,'Inputs (values)'!$H$83:$KV$83,0)))*(INDEX('Inputs (values)'!$H$62:$KV$62,1,MATCH('Inputs (values)'!$H$12,'Inputs (values)'!$H$83:$KV$83,0))/INDEX('Inputs (values)'!$H$62:$KV$62,1,MATCH('Inputs (values)'!$H$11,'Inputs (values)'!$H$83:$KV$83,0))) -> 93.19677091 | JB22: =(INDEX('Inputs (values)'!$H$84:$KV$86,1,MATCH('Calculations (values)'!JB$21,'Inputs (values)'!$H$83:'Inputs (values)'!$KV$83,0))/INDEX('Inputs (values)'!$H$84:$KV$86,1,MATCH('Inputs (values)'!$H$10,'Inputs (values)'!$H$83:$KV$83,0)))*(INDEX('Inputs (values)'!$H$62:$KV$62,1,MATCH('Inputs (values)'!$H$12,'Inputs (values)'!$H$83:$KV$83,0))/INDEX('Inputs (values)'!$H$62:$KV$62,1,MATCH('Inputs (values)'!$H$11,'Inputs (values)'!$H$83:$KV$83,0))) -> 94.64850665 | JC22: =(INDEX('Inputs (values)'!$H$84:$KV$86,1,MATCH('Calculations (values)'!JC$21,'Inputs (values)'!$H$83:'Inputs (values)'!$KV$83,0))/INDEX('Inputs (values)'!$H$84:$KV$86,1,MATCH('Inputs (values)'!$H$10,'Inputs (values)'!$H$83:$KV$83,0)))*(INDEX('Inputs (values)'!$H$62:$KV$62,1,MATCH('Inputs (values)'!$H$12,'Inputs (values)'!$H$83:$KV$83,0))/INDEX('Inputs (values)'!$H$62:$KV$62,1,MATCH('Inputs (values)'!$H$11,'Inputs (values)'!$H$83:$KV$83,0))) -> 96.12285622 | JD22: =(INDEX('Inputs (values)'!$H$84:$KV$86,1,MATCH('Calculations (values)'!JD$21,'Inputs (values)'!$H$83:'Inputs (values)'!$KV$83,0))/INDEX('Inputs (values)'!$H$84:$KV$86,1,MATCH('Inputs (values)'!$H$10,'Inputs (values)'!$H$83:$KV$83,0)))*(INDEX('Inputs (values)'!$H$62:$KV$62,1,MATCH('Inputs (values)'!$H$12,'Inputs (values)'!$H$83:$KV$83,0))/INDEX('Inputs (values)'!$H$62:$KV$62,1,MATCH('Inputs (values)'!$H$11,'Inputs (values)'!$H$83:$KV$83,0))) -> 97.62017189 | JE22: =(INDEX('Inputs (values)'!$H$84:$KV$86,1,MATCH('Calculations (values)'!JE$21,'Inputs (values)'!$H$83:'Inputs (values)'!$KV$83,0))/INDEX('Inputs (values)'!$H$84:$KV$86,1,MATCH('Inputs (values)'!$H$10,'Inputs (values)'!$H$83:$KV$83,0)))*(INDEX('Inputs (values)'!$H$62:$KV$62,1,MATCH('Inputs (values)'!$H$12,'Inputs (values)'!$H$83:$KV$83,0))/INDEX('Inputs (values)'!$H$62:$KV$62,1,MATCH('Inputs (values)'!$H$11,'Inputs (values)'!$H$83:$KV$83,0))) -> 99.14081141 | JF22: =(INDEX('Inputs (values)'!$H$84:$KV$86,1,MATCH('Calculations (values)'!JF$21,'Inputs (values)'!$H$83:'Inputs (values)'!$KV$83,0))/INDEX('Inputs (values)'!$H$84:$KV$86,1,MATCH('Inputs (values)'!$H$10,'Inputs (values)'!$H$83:$KV$83,0)))*(INDEX('Inputs (values)'!$H$62:$KV$62,1,MATCH('Inputs (values)'!$H$12,'Inputs (values)'!$H$83:$KV$83,0))/INDEX('Inputs (values)'!$H$62:$KV$62,1,MATCH('Inputs (values)'!$H$11,'Inputs (values)'!$H$83:$KV$83,0))) -> 100.6851381 | JG22: =(INDEX('Inputs (values)'!$H$84:$KV$86,1,MATCH('Calculations (values)'!JG$21,'Inputs (values)'!$H$83:'Inputs (values)'!$KV$83,0))/INDEX('Inputs (values)'!$H$84:$KV$86,1,MATCH('Inputs (values)'!$H$10,'Inputs (values)'!$H$83:$KV$83,0)))*(INDEX('Inputs (values)'!$H$62:$KV$62,1,MATCH('Inputs (values)'!$H$12,'Inputs (values)'!$H$83:$KV$83,0))/INDEX('Inputs (values)'!$H$62:$KV$62,1,MATCH('Inputs (values)'!$H$11,'Inputs (values)'!$H$83:$KV$83,0))) -> 102.2535209 | JH22: =(INDEX('Inputs (values)'!$H$84:$KV$86,1,MATCH('Calculations (values)'!JH$21,'Inputs (values)'!$H$83:'Inputs (values)'!$KV$83,0))/INDEX('Inputs (values)'!$H$84:$KV$86,1,MATCH('Inputs (values)'!$H$10,'Inputs (values)'!$H$83:$KV$83,0)))*(INDEX('Inputs (values)'!$H$62:$KV$62,1,MATCH('Inputs (values)'!$H$12,'Inputs (values)'!$H$83:$KV$83,0))/INDEX('Inputs (values)'!$H$62:$KV$62,1,MATCH('Inputs (values)'!$H$11,'Inputs (values)'!$H$83:$KV$83,0))) -> 103.8463346 | JI22: =(INDEX('Inputs (values)'!$H$84:$KV$86,1,MATCH('Calculations (values)'!JI$21,'Inputs (values)'!$H$83:'Inputs (values)'!$KV$83,0))/INDEX('Inputs (values)'!$H$84:$KV$86,1,MATCH('Inputs (values)'!$H$10,'Inputs (values)'!$H$83:$KV$83,0)))*(INDEX('Inputs (values)'!$H$62:$KV$62,1,MATCH('Inputs (values)'!$H$12,'Inputs (values)'!$H$83:$KV$83,0))/INDEX('Inputs (values)'!$H$62:$KV$62,1,MATCH('Inputs (values)'!$H$11,'Inputs (values)'!$H$83:$KV$83,0))) -> 105.4639597 | JJ22: =(INDEX('Inputs (values)'!$H$84:$KV$86,1,MATCH('Calculations (values)'!JJ$21,'Inputs (values)'!$H$83:'Inputs (values)'!$KV$83,0))/INDEX('Inputs (values)'!$H$84:$KV$86,1,MATCH('Inputs (values)'!$H$10,'Inputs (values)'!$H$83:$KV$83,0)))*(INDEX('Inputs (values)'!$H$62:$KV$62,1,MATCH('Inputs (values)'!$H$12,'Inputs (values)'!$H$83:$KV$83,0))/INDEX('Inputs (values)'!$H$62:$KV$62,1,MATCH('Inputs (values)'!$H$11,'Inputs (values)'!$H$83:$KV$83,0))) -> 107.1067827 | JK22: =(INDEX('Inputs (values)'!$H$84:$KV$86,1,MATCH('Calculations (values)'!JK$21,'Inputs (values)'!$H$83:'Inputs (values)'!$KV$83,0))/INDEX('Inputs (values)'!$H$84:$KV$86,1,MATCH('Inputs (values)'!$H$10,'Inputs (values)'!$H$83:$KV$83,0)))*(INDEX('Inputs (values)'!$H$62:$KV$62,1,MATCH('Inputs (values)'!$H$12,'Inputs (values)'!$H$83:$KV$83,0))/INDEX('Inputs (values)'!$H$62:$KV$62,1,MATCH('Inputs (values)'!$H$11,'Inputs (values)'!$H$83:$KV$83,0))) -> 108.7751961 | JL22: =(INDEX('Inputs (values)'!$H$84:$KV$86,1,MATCH('Calculations (values)'!JL$21,'Inputs (values)'!$H$83:'Inputs (values)'!$KV$83,0))/INDEX('Inputs (values)'!$H$84:$KV$86,1,MATCH('Inputs (values)'!$H$10,'Inputs (values)'!$H$83:$KV$83,0)))*(INDEX('Inputs (values)'!$H$62:$KV$62,1,MATCH('Inputs (values)'!$H$12,'Inputs (values)'!$H$83:$KV$83,0))/INDEX('Inputs (values)'!$H$62:$KV$62,1,MATCH('Inputs (values)'!$H$11,'Inputs (values)'!$H$83:$KV$83,0))) -> 110.4695986 | JM22: =(INDEX('Inputs (values)'!$H$84:$KV$86,1,MATCH('Calculations (values)'!JM$21,'Inputs (values)'!$H$83:'Inputs (values)'!$KV$83,0))/INDEX('Inputs (values)'!$H$84:$KV$86,1,MATCH('Inputs (values)'!$H$10,'Inputs (values)'!$H$83:$KV$83,0)))*(INDEX('Inputs (values)'!$H$62:$KV$62,1,MATCH('Inputs (values)'!$H$12,'Inputs (values)'!$H$83:$KV$83,0))/INDEX('Inputs (values)'!$H$62:$KV$62,1,MATCH('Inputs (values)'!$H$11,'Inputs (values)'!$H$83:$KV$83,0))) -> 112.1903949 | JN22: =(INDEX('Inputs (values)'!$H$84:$KV$86,1,MATCH('Calculations (values)'!JN$21,'Inputs (values)'!$H$83:'Inputs (values)'!$KV$83,0))/INDEX('Inputs (values)'!$H$84:$KV$86,1,MATCH('Inputs (values)'!$H$10,'Inputs (values)'!$H$83:$KV$83,0)))*(INDEX('Inputs (values)'!$H$62:$KV$62,1,MATCH('Inputs (values)'!$H$12,'Inputs (values)'!$H$83:$KV$83,0))/INDEX('Inputs (values)'!$H$62:$KV$62,1,MATCH('Inputs (values)'!$H$11,'Inputs (values)'!$H$83:$KV$83,0))) -> 113.9379963 | JO22: =(INDEX('Inputs (values)'!$H$84:$KV$86,1,MATCH('Calculations (values)'!JO$21,'Inputs (values)'!$H$83:'Inputs (values)'!$KV$83,0))/INDEX('Inputs (values)'!$H$84:$KV$86,1,MATCH('Inputs (values)'!$H$10,'Inputs (values)'!$H$83:$KV$83,0)))*(INDEX('Inputs (values)'!$H$62:$KV$62,1,MATCH('Inputs (values)'!$H$12,'Inputs (values)'!$H$83:$KV$83,0))/INDEX('Inputs (values)'!$H$62:$KV$62,1,MATCH('Inputs (values)'!$H$11,'Inputs (values)'!$H$83:$KV$83,0))) -> 115.7128203 | JP22: =(INDEX('Inputs (values)'!$H$84:$KV$86,1,MATCH('Calculations (values)'!JP$21,'Inputs (values)'!$H$83:'Inputs (values)'!$KV$83,0))/INDEX('Inputs (values)'!$H$84:$KV$86,1,MATCH('Inputs (values)'!$H$10,'Inputs (values)'!$H$83:$KV$83,0)))*(INDEX('Inputs (values)'!$H$62:$KV$62,1,MATCH('Inputs (values)'!$H$12,'Inputs (values)'!$H$83:$KV$83,0))/INDEX('Inputs (values)'!$H$62:$KV$62,1,MATCH('Inputs (values)'!$H$11,'Inputs (values)'!$H$83:$KV$83,0))) -> 117.5152908 | JQ22: =(INDEX('Inputs (values)'!$H$84:$KV$86,1,MATCH('Calculations (values)'!JQ$21,'Inputs (values)'!$H$83:'Inputs (values)'!$KV$83,0))/INDEX('Inputs (values)'!$H$84:$KV$86,1,MATCH('Inputs (values)'!$H$10,'Inputs (values)'!$H$83:$KV$83,0)))*(INDEX('Inputs (values)'!$H$62:$KV$62,1,MATCH('Inputs (values)'!$H$12,'Inputs (values)'!$H$83:$KV$83,0))/INDEX('Inputs (values)'!$H$62:$KV$62,1,MATCH('Inputs (values)'!$H$11,'Inputs (values)'!$H$83:$KV$83,0))) -> 119.3458387 | JR22: =(INDEX('Inputs (values)'!$H$84:$KV$86,1,MATCH('Calculations (values)'!JR$21,'Inputs (values)'!$H$83:'Inputs (values)'!$KV$83,0))/INDEX('Inputs (values)'!$H$84:$KV$86,1,MATCH('Inputs (values)'!$H$10,'Inputs (values)'!$H$83:$KV$83,0)))*(INDEX('Inputs (values)'!$H$62:$KV$62,1,MATCH('Inputs (values)'!$H$12,'Inputs (values)'!$H$83:$KV$83,0))/INDEX('Inputs (values)'!$H$62:$KV$62,1,MATCH('Inputs (values)'!$H$11,'Inputs (values)'!$H$83:$KV$83,0))) -> 121.2049011 | JS22: =(INDEX('Inputs (values)'!$H$84:$KV$86,1,MATCH('Calculations (values)'!JS$21,'Inputs (values)'!$H$83:'Inputs (values)'!$KV$83,0))/INDEX('Inputs (values)'!$H$84:$KV$86,1,MATCH('Inputs (values)'!$H$10,'Inputs (values)'!$H$83:$KV$83,0)))*(INDEX('Inputs (values)'!$H$62:$KV$62,1,MATCH('Inputs (values)'!$H$12,'Inputs (values)'!$H$83:$KV$83,0))/INDEX('Inputs (values)'!$H$62:$KV$62,1,MATCH('Inputs (values)'!$H$11,'Inputs (values)'!$H$83:$KV$83,0))) -> 123.0929224 | JT22: =(INDEX('Inputs (values)'!$H$84:$KV$86,1,MATCH('Calculations (values)'!JT$21,'Inputs (values)'!$H$83:'Inputs (values)'!$KV$83,0))/INDEX('Inputs (values)'!$H$84:$KV$86,1,MATCH('Inputs (values)'!$H$10,'Inputs (values)'!$H$83:$KV$83,0)))*(INDEX('Inputs (values)'!$H$62:$KV$62,1,MATCH('Inputs (values)'!$H$12,'Inputs (values)'!$H$83:$KV$83,0))/INDEX('Inputs (values)'!$H$62:$KV$62,1,MATCH('Inputs (values)'!$H$11,'Inputs (values)'!$H$83:$KV$83,0))) -> 125.0103536 | JU22: =(INDEX('Inputs (values)'!$H$84:$KV$86,1,MATCH('Calculations (values)'!JU$21,'Inputs (values)'!$H$83:'Inputs (values)'!$KV$83,0))/INDEX('Inputs (values)'!$H$84:$KV$86,1,MATCH('Inputs (values)'!$H$10,'Inputs (values)'!$H$83:$KV$83,0)))*(INDEX('Inputs (values)'!$H$62:$KV$62,1,MATCH('Inputs (values)'!$H$12,'Inputs (values)'!$H$83:$KV$83,0))/INDEX('Inputs (values)'!$H$62:$KV$62,1,MATCH('Inputs (values)'!$H$11,'Inputs (values)'!$H$83:$KV$83,0))) -> 126.9576528 | JV22: =(INDEX('Inputs (values)'!$H$84:$KV$86,1,MATCH('Calculations (values)'!JV$21,'Inputs (values)'!$H$83:'Inputs (values)'!$KV$83,0))/INDEX('Inputs (values)'!$H$84:$KV$86,1,MATCH('Inputs (values)'!$H$10,'Inputs (values)'!$H$83:$KV$83,0)))*(INDEX('Inputs (values)'!$H$62:$KV$62,1,MATCH('Inputs (values)'!$H$12,'Inputs (values)'!$H$83:$KV$83,0))/INDEX('Inputs (values)'!$H$62:$KV$62,1,MATCH('Inputs (values)'!$H$11,'Inputs (values)'!$H$83:$KV$83,0))) -> 128.9352853 | JW22: =(INDEX('Inputs (values)'!$H$84:$KV$86,1,MATCH('Calculations (values)'!JW$21,'Inputs (values)'!$H$83:'Inputs (values)'!$KV$83,0))/INDEX('Inputs (values)'!$H$84:$KV$86,1,MATCH('Inputs (values)'!$H$10,'Inputs (values)'!$H$83:$KV$83,0)))*(INDEX('Inputs (values)'!$H$62:$KV$62,1,MATCH('Inputs (values)'!$H$12,'Inputs (values)'!$H$83:$KV$83,0))/INDEX('Inputs (values)'!$H$62:$KV$62,1,MATCH('Inputs (values)'!$H$11,'Inputs (values)'!$H$83:$KV$83,0))) -> 130.9437236 | JX22: =(INDEX('Inputs (values)'!$H$84:$KV$86,1,MATCH('Calculations (values)'!JX$21,'Inputs (values)'!$H$83:'Inputs (values)'!$KV$83,0))/INDEX('Inputs (values)'!$H$84:$KV$86,1,MATCH('Inputs (values)'!$H$10,'Inputs (values)'!$H$83:$KV$83,0)))*(INDEX('Inputs (values)'!$H$62:$KV$62,1,MATCH('Inputs (values)'!$H$12,'Inputs (values)'!$H$83:$KV$83,0))/INDEX('Inputs (values)'!$H$62:$KV$62,1,MATCH('Inputs (values)'!$H$11,'Inputs (values)'!$H$83:$KV$83,0))) -> 132.9834475 | JY22: =(INDEX('Inputs (values)'!$H$84:$KV$86,1,MATCH('Calculations (values)'!JY$21,'Inputs (values)'!$H$83:'Inputs (values)'!$KV$83,0))/INDEX('Inputs (values)'!$H$84:$KV$86,1,MATCH('Inputs (values)'!$H$10,'Inputs (values)'!$H$83:$KV$83,0)))*(INDEX('Inputs (values)'!$H$62:$KV$62,1,MATCH('Inputs (values)'!$H$12,'Inputs (values)'!$H$83:$KV$83,0))/INDEX('Inputs (values)'!$H$62:$KV$62,1,MATCH('Inputs (values)'!$H$11,'Inputs (values)'!$H$83:$KV$83,0))) ->  | JZ22: =(INDEX('Inputs (values)'!$H$84:$KV$86,1,MATCH('Calculations (values)'!JZ$21,'Inputs (values)'!$H$83:'Inputs (values)'!$KV$83,0))/INDEX('Inputs (values)'!$H$84:$KV$86,1,MATCH('Inputs (values)'!$H$10,'Inputs (values)'!$H$83:$KV$83,0)))*(INDEX('Inputs (values)'!$H$62:$KV$62,1,MATCH('Inputs (values)'!$H$12,'Inputs (values)'!$H$83:$KV$83,0))/INDEX('Inputs (values)'!$H$62:$KV$62,1,MATCH('Inputs (values)'!$H$11,'Inputs (values)'!$H$83:$KV$83,0))) ->  | KA22: =(INDEX('Inputs (values)'!$H$84:$KV$86,1,MATCH('Calculations (values)'!KA$21,'Inputs (values)'!$H$83:'Inputs (values)'!$KV$83,0))/INDEX('Inputs (values)'!$H$84:$KV$86,1,MATCH('Inputs (values)'!$H$10,'Inputs (values)'!$H$83:$KV$83,0)))*(INDEX('Inputs (values)'!$H$62:$KV$62,1,MATCH('Inputs (values)'!$H$12,'Inputs (values)'!$H$83:$KV$83,0))/INDEX('Inputs (values)'!$H$62:$KV$62,1,MATCH('Inputs (values)'!$H$11,'Inputs (values)'!$H$83:$KV$83,0))) -> 
